Workbook

Sheet Dashboard
A2: =Auswahl_Bundesland & ":" -> Burgenland: | B2: KAMMERMITGLIEDER NACH BEZIRKEN | AI2: bis 2016 | AL2: ab 2013 | AP2: bis 2011 | AQ2: 2012 | AR2: ab 2017
A3: Ergebnisse der Mitgliederstatistik der Wirtschaftskammern Österreichs - Stand: 31.12. | G3: =Auswahl_Jahr -> 2025 | O3: 1 | P3: Beschriftung wegnehmen, da sonst du viele Zahlen | AA3: Zeilenbeschriftungen | AD3: 1 | AE3: Auswahl_Bundesland | AG3: =COUNTA(AG5:AG28) -> 7 | AH3: 10 | AI3: 21 | AJ3: 18 | AK3: =COUNTA(AK5:AK17) -> 6 | AL3: =COUNTA(AL5:AL28) -> 14 | AM3: =COUNTA(AM5:AM28) -> 9 | AN3: 4 | AO3: 23 | AP3: =COUNTA(AP5:AP26) -> 20 | AQ3: =COUNTA(AQ5:AQ26) -> 17 | AR3: =COUNTA(AR5:AR27) -> 20
O4: 2 | P4: Bundesland einfärben, sonst geht es unter | AA4: Burgenland | AB4: 1 | AC4: =AA4 -> Burgenland | AD4: 1 | AE4: =LOOKUP($AD$4,$AB$4:$AC$12) -> Burgenland | AG4: Burgenland | AH4: Kärnten | AI4: Niederösterreich | AJ4: Oberösterreich | AK4: Salzburg | AL4: Steiermark | AM4: Tirol | AN4: Vorarlberg | AO4: Wien | AP4: Steiermark | AQ4: Steiermark | AR4: Niederösterreich
O5: 3 | P5: Weniger in Kreisdiagramm | AA5: Kärnten | AB5: 2 | AC5: Kärnten | AD5: 4 | AE5: =IF(AND($AD$5>AG3,Auswahl_Bundesland="Burgenland"),AG5,IF(Auswahl_Bundesland="Burgenland",LOOKUP($AD$5,$AF:$AF,$AG:$AG),IF(AND($AD$5>AH3,Auswahl_Bundesland="Kärnten"),AH5,IF(Auswahl_Bundesland="Kärnten",LOOKUP($AD$5,$AF:$AF,$AH:$AH),IF(AND($AD$5>AI3,Auswahl_Bundesland="Niederösterreich",Auswahl_Jahr<=2016),AI5,IF(AND($AD$5>AR3,Auswahl_Bundesland="Niederösterreich",Auswahl_Jahr>=2017),AR5,IF(AND($AD$5>AJ3,Auswahl_Bundesland="Oberösterreich"),AJ5,IF(AND($AD$5>AK3,Auswahl_Bundesland="Salzburg"),AK5,IF(AND($AD5>AL3,Auswahl_Bundesland="Steiermark",Auswahl_Jahr>2012),AL5,IF(AND($AD$5>AP3,Auswahl_Bundesland="Steiermark",Auswahl_Jahr<2012),AP5,IF(AND($AD$5>AQ3,Auswahl_Bundesland="Steiermark",Auswahl_Jahr=2012),AQ5,IF(AND($AD$5>AM3,Auswahl_Bundesland="Tirol"),AM5,IF(AND($AD$5>AN3,Auswahl_Bundesland="Vorarlberg"),AN5,IF(AND($AD$5>AO3,Auswahl_Bundesland="Wien"),AO5,IF(AND(Auswahl_Bundesland="Niederösterreich",Auswahl_Jahr>=2017),LOOKUP($AD$5,$AF:$AF,$AR:$AR),IF(Auswahl_Bundesland="Oberösterreich",LOOKUP($AD$5,$AF:$AF,$AJ:$AJ),IF(Auswahl_Bundesland="Salzburg",LOOKUP($AD$5,$AF:$AF,$AK:$AK),IF(AND(Auswahl_Bundesland="Steiermark",Auswahl_Jahr>2012),LOOKUP($AD$5,$AF:$AF,$AL:$AL),IF(AND(Auswahl_Bundesland="Steiermark",Auswahl_Jahr<2012),LOOKUP($AD$5,$AF:$AF,$AP:$AP),IF(AND(Auswahl_Bundesland="Steiermark",Auswahl_Jahr=2012),LOOKUP($AD$5,$AF:$AF,$AQ:$AQ),IF(Auswahl_Bundesland="Tirol",LOOKUP($AD$5,$AF:$AF,$AM:$AM),IF(Auswahl_Bundesland="Vorarlberg",LOOKUP($AD$5,$AF:$AF,$AN:$AN),IF(AND(Auswahl_Bundesland="Niederösterreich",Auswahl_Jahr<=2016),LOOKUP($AD$5,$AF:$AF,$AI:$AI),IF(Auswahl_Bundesland="Wien",LOOKUP($AD$5,$AF:$AF,$AO:$AO),"")))))))))))))))))))))))) -> Oberpullendorf | AF5: 1 | AG5: Eisenstadt-Umgebung | AH5: Feldkirchen | AI5: Amstetten | AJ5: Linz | AK5: Salzburg | AL5: Graz | AM5: Innsbruck | AN5: Bludenz | AO5: Innere Stadt | AP5: Graz | AQ5: Graz | AR5: Amstetten
O6: 4 | P6: Anteil des ausgewählten Bundeslandes anschreiben | AA6: Niederösterreich | AB6: 3 | AC6: Niederösterreich | AF6: 2 | AG6: Neusiedl am See | AH6: Hermagor | AI6: Baden | AJ6: Steyr | AK6: Hallein | AL6: Deutschlandsberg | AM6: Imst | AN6: Bregenz | AO6: Leopoldstadt | AP6: Deutschlandsberg | AQ6: Deutschlandsberg | AR6: Baden
O7: 5 | P7: Veränderung für Murtal (neue Bezirke in der Steiermark) korrigieren | AA7: Oberösterreich | AB7: 4 | AC7: Oberösterreich | AF7: 3 | AG7: Mattersburg | AH7: Klagenfurt-Land | AI7: Bruck an der Leitha | AJ7: Wels | AK7: Salzburg-Umgebung | AL7: Graz-Umgebung | AM7: Innsbruck Land | AN7: Dornbirn | AO7: Landstraße | AP7: Graz-Umgebung | AQ7: Graz-Umgebung | AR7: Bruck an der Leitha
O8: 6 | P8: Wenn sich Auswahl_Bundesland ändert immer ersten Bezirk auswählen --> nur mit Makro möglich | AA8: Salzburg | AB8: 5 | AC8: Salzburg | AF8: 4 | AG8: Oberpullendorf | AH8: Klagenfurt am Wörthersee | AI8: Gänserndorf | AJ8: Braunau am Inn | AK8: Sankt Johann im Pongau | AL8: Leibnitz | AM8: Kitzbühel | AN8: Feldkirch | AO8: Wieden | AP8: Leibnitz | AQ8: Leibnitz | AR8: Gänserndorf
A9: =Auswahl_Bundesland -> Burgenland | O9: 7 | P9: Wenn sich Auswahl_Jahr ändert, Auswahl_Bezirk belassen | AA9: Steiermark | AB9: 6 | AC9: Steiermark | AF9: 5 | AG9: Oberwart | AH9: Sankt Veit an der Glan | AI9: Gmünd | AJ9: Eferding | AK9: Tamsweg | AL9: Leoben | AM9: Kufstein | AO9: Margareten | AP9: Leoben | AQ9: Leoben | AR9: Gmünd
A10: =Status -> Aktive | AA10: Tirol | AB10: 7 | AC10: Tirol | AF10: 6 | AG10: Güssing | AH10: Spittal an der Drau | AI10: Hollabrunn | AJ10: Freistadt | AK10: Zell am See | AL10: Liezen | AM10: Landeck | AO10: Mariahilf | AP10: Liezen | AQ10: Liezen | AR10: Hollabrunn
A11: Kammermitglieder | AA11: Vorarlberg | AB11: 8 | AC11: Vorarlberg | AF11: 7 | AG11: Jennersdorf | AH11: Villach-Land | AI11: Horn | AJ11: Gmunden | AL11: Murau | AM11: Lienz | AO11: Neubau | AP11: Murau | AQ11: Murau | AR11: Horn
A12: =KM_Bundesland -> 21835 | AA12: Wien | AB12: 9 | AC12: Wien | AF12: 8 | AH12: Villach | AI12: Korneuburg | AJ12: Grieskirchen | AL12: Gröbming | AM12: Reutte | AO12: Josefstadt | AP12: Gröbming | AQ12: Gröbming | AR12: Korneuburg
A13: Veränderung zum Vj. | AA13: Gesamtergebnis | AF13: 9 | AH13: Völkermarkt | AI13: Krems-Land | AJ13: Kirchdorf an der Krems | AL13: Voitsberg | AM13: Schwaz | AO13: Alsergrund | AP13: Voitsberg | AQ13: Voitsberg | AR13: Krems-Land
A14: ="absolut: " & Verae_absolut_bld -> absolut: 340 | AF14: 10 | AH14: Wolfsberg | AI14: Lilienfeld | AJ14: Linz-Land | AL14: Weiz | AO14: Favoriten | AP14: Weiz | AQ14: Weiz | AR14: Lilienfeld
A15: ="in Prozent: " & Verae_Proz_bld -> in Prozent: 1,6 | AF15: 11 | AI15: Melk | AJ15: Perg | AL15: Murtal | AO15: Simmering | AP15: Judenburg | AQ15: Murtal | AR15: Melk
AF16: 12 | AI16: Mistelbach | AJ16: Ried im Innkreis | AL16: Bruck-Mürzzuschlag | AO16: Meidling | AP16: Bruck an der Mur | AQ16: Bruck an der Mur | AR16: Mistelbach
AF17: 13 | AI17: Mödling | AJ17: Rohrbach | AL17: Hartberg-Fürstenfeld | AO17: Hietzing | AP17: Hartberg | AQ17: Hartberg | AR17: Mödling
AF18: 14 | AI18: Neunkirchen | AJ18: Schärding | AL18: Südoststeiermark | AO18: Penzing | AP18: Radkersburg | AQ18: Radkersburg | AR18: Neunkirchen
AF19: 15 | AI19: Sankt Pölten-Land | AJ19: Steyr-Land | AO19: Rudolfsheim-Fünfhaus | AP19: Mürzzuschlag | AQ19: Mürzzuschlag | AR19: Sankt Pölten-Land
AF20: 16 | AI20: Scheibbs | AJ20: Urfahr-Umgebung | AO20: Ottakring | AP20: Fürstenfeld | AQ20: Fürstenfeld | AR20: Scheibbs
AF21: 17 | AI21: Tulln | AJ21: Vöcklabruck | AO21: Hernals | AP21: Feldbach | AQ21: Feldbach | AR21: Tulln
B22: =Kartentitel -> Aktive Kammermitglieder nach Bezirken in Burgenland 2025 | AF22: 18 | AI22: Waidhofen an der Thaya | AJ22: Wels-Land | AO22: Währing | AP22: Knittelfeld | AR22: Waidhofen an der Thaya
AF23: 19 | AI23: Wiener Neustadt-Land | AO23: Döbling | AP23: Bad Aussee | AR23: Wiener Neustadt-Land
AF24: 20 | AI24: Wien-Umgebung | AO24: Brigittenau | AP24: Mariazell | AR24: Zwettl
AF25: 21 | AI25: Zwettl | AO25: Floridsdorf
A26: =Auswahl_Bezirk -> Oberpullendorf | AF26: 22 | AO26: Donaustadt
AF27: 23 | AO27: Liesing
A28: =Status -> Aktive
A29: Bezirksmitglieder
A30: =KM_Bezirk -> 2785
A31: Veränderung zum Vj.
A32: ="absolut: " & Verae_absolut_bezirk -> absolut: 93
A33: ="in Prozent: " & Verae_Proz_bezirk -> in Prozent: 3,5
A34: Anteil des Bezirks
A35: am Bundesland
A36: ="in Prozent: " & Anteil_bez -> in Prozent: 12,5
A38: Die Summe der Bezirksmitgliedschaften kann durch das Auftreten von Mehrfachmitgliedschaften (Mitgliedschaften in mehreren Bezirken) von der Summe der (Landes-)Kammermitgliedschaften abweichen.

Sheet Dropdown_Jahr (hidden)
A3: Zeilenbeschriftungen | C3: Auswahl
A4: Jahresstatistik 2001 | B4: =IF(LEFT(A4,5)="Jahre",RIGHT(A4,4),"") -> 2001 | C4: 2025
A5: Jahresstatistik 2002 | B5: =IF(LEFT(A5,5)="Jahre",RIGHT(A5,4),"") -> 2002
A6: Jahresstatistik 2003 | B6: 2003
A7: Jahresstatistik 2004 | B7: 2004
A8: Jahresstatistik 2005 | B8: 2005
A9: Jahresstatistik 2006 | B9: 2006
A10: Jahresstatistik 2007 | B10: 2007
A11: Jahresstatistik 2008 | B11: 2008
A12: Jahresstatistik 2009 | B12: 2009
A13: Jahresstatistik 2010 | B13: 2010
A14: Jahresstatistik 2011 | B14: 2011
A15: Jahresstatistik 2012 | B15: 2012
A16: Jahresstatistik 2013 | B16: 2013
A17: Jahresstatistik 2014 | B17: 2014
A18: Jahresstatistik 2015 | B18: 2015
A19: Jahresstatistik 2016 | B19: =IF(LEFT(A19,5)="Jahre",RIGHT(A19,4),"") -> 2016
A20: Jahresstatistik 2017 | B20: 2017
A21: Jahresstatistik 2018 | B21: =IF(LEFT(A21,5)="Jahre",RIGHT(A21,4),"") -> 2018
A22: Jahresstatistik 2019 | B22: 2019
A23: Jahresstatistik 2020 | B23: 2020
A24: Jahresstatistik 2021 | B24: 2021
A25: Jahresstatistik 2022 | B25: 2022
A26: Jahresstatistik 2023 | B26: 2023
A27: Jahresstatistik 2024 | B27: 2024
A28: Jahresstatistik 2025 | B28: 2025

Sheet Dropdown_Bundesland (hidden)
I2: bis 2016 | L2: ab 2013 | P2: bis 2011 | Q2: 2012 | R2: ab 2017
A3: Zeilenbeschriftungen | D3: 2 | E3: Auswahl_Bundesland | G3: =COUNTA(G5:G28) -> 7 | H3: 10 | I3: 21 | J3: 18 | K3: =COUNTA(K5:K17) -> 6 | L3: =COUNTA(L5:L28) -> 14 | M3: =COUNTA(M5:M28) -> 9 | N3: 4 | O3: 23 | P3: =COUNTA(P5:P26) -> 20 | Q3: =COUNTA(Q5:Q26) -> 17 | R3: =COUNTA(R5:R27) -> 20
A4: Burgenland | B4: 1 | C4: =A4 -> Burgenland | D4: =Dashboard!AD4 -> 1 | E4: =Dashboard!AE4 -> Burgenland | G4: Burgenland | H4: Kärnten | I4: Niederösterreich | J4: Oberösterreich | K4: Salzburg | L4: Steiermark | M4: Tirol | N4: Vorarlberg | O4: Wien | P4: Steiermark | Q4: Steiermark | R4: Niederösterreich
A5: Kärnten | B5: 2 | C5: Kärnten | D5: =Dashboard!AD5 -> 4 | E5: =Dashboard!AE5 -> Oberpullendorf | F5: 1 | G5: Eisenstadt-Umgebung | H5: Feldkirchen | I5: Amstetten | J5: Linz | K5: Salzburg | L5: Graz | M5: Innsbruck | N5: Bludenz | O5: Innere Stadt | P5: Graz | Q5: Graz | R5: Amstetten
A6: Niederösterreich | B6: 3 | C6: Niederösterreich | F6: 2 | G6: Neusiedl am See | H6: Hermagor | I6: Baden | J6: Steyr | K6: Hallein | L6: Deutschlandsberg | M6: Imst | N6: Bregenz | O6: Leopoldstadt | P6: Deutschlandsberg | Q6: Deutschlandsberg | R6: Baden
A7: Oberösterreich | B7: 4 | C7: Oberösterreich | F7: 3 | G7: Mattersburg | H7: Klagenfurt-Land | I7: Bruck an der Leitha | J7: Wels | K7: Salzburg-Umgebung | L7: Graz-Umgebung | M7: Innsbruck Land | N7: Dornbirn | O7: Landstraße | P7: Graz-Umgebung | Q7: Graz-Umgebung | R7: Bruck an der Leitha
A8: Salzburg | B8: 5 | C8: Salzburg | F8: 4 | G8: Oberpullendorf | H8: Klagenfurt am Wörthersee | I8: Gänserndorf | J8: Braunau am Inn | K8: Sankt Johann im Pongau | L8: Leibnitz | M8: Kitzbühel | N8: Feldkirch | O8: Wieden | P8: Leibnitz | Q8: Leibnitz | R8: Gänserndorf
A9: Steiermark | B9: 6 | C9: Steiermark | F9: 5 | G9: Oberwart | H9: Sankt Veit an der Glan | I9: Gmünd | J9: Eferding | K9: Tamsweg | L9: Leoben | M9: Kufstein | O9: Margareten | P9: Leoben | Q9: Leoben | R9: Gmünd
A10: Tirol | B10: 7 | C10: Tirol | F10: 6 | G10: Güssing | H10: Spittal an der Drau | I10: Hollabrunn | J10: Freistadt | K10: Zell am See | L10: Liezen | M10: Landeck | O10: Mariahilf | P10: Liezen | Q10: Liezen | R10: Hollabrunn
A11: Vorarlberg | B11: 8 | C11: Vorarlberg | F11: 7 | G11: Jennersdorf | H11: Villach-Land | I11: Horn | J11: Gmunden | L11: Murau | M11: Lienz | O11: Neubau | P11: Murau | Q11: Murau | R11: Horn
A12: Wien | B12: 9 | C12: Wien | F12: 8 | H12: Villach | I12: Korneuburg | J12: Grieskirchen | L12: Gröbming | M12: Reutte | O12: Josefstadt | P12: Gröbming | Q12: Gröbming | R12: Korneuburg
A13: Gesamtergebnis | F13: 9 | H13: Völkermarkt | I13: Krems-Land | J13: Kirchdorf an der Krems | L13: Voitsberg | M13: Schwaz | O13: Alsergrund | P13: Voitsberg | Q13: Voitsberg | R13: Krems-Land
F14: 10 | H14: Wolfsberg | I14: Lilienfeld | J14: Linz-Land | L14: Weiz | O14: Favoriten | P14: Weiz | Q14: Weiz | R14: Lilienfeld
F15: 11 | I15: Melk | J15: Perg | L15: Murtal | O15: Simmering | P15: Judenburg | Q15: Murtal | R15: Melk
F16: 12 | I16: Mistelbach | J16: Ried im Innkreis | L16: Bruck-Mürzzuschlag | O16: Meidling | P16: Bruck an der Mur | Q16: Bruck an der Mur | R16: Mistelbach
F17: 13 | I17: Mödling | J17: Rohrbach | L17: Hartberg-Fürstenfeld | O17: Hietzing | P17: Hartberg | Q17: Hartberg | R17: Mödling
F18: 14 | I18: Neunkirchen | J18: Schärding | L18: Südoststeiermark | O18: Penzing | P18: Radkersburg | Q18: Radkersburg | R18: Neunkirchen
F19: 15 | I19: Sankt Pölten-Land | J19: Steyr-Land | O19: Rudolfsheim-Fünfhaus | P19: Mürzzuschlag | Q19: Mürzzuschlag | R19: Sankt Pölten-Land
F20: 16 | I20: Scheibbs | J20: Urfahr-Umgebung | O20: Ottakring | P20: Fürstenfeld | Q20: Fürstenfeld | R20: Scheibbs
F21: 17 | I21: Tulln | J21: Vöcklabruck | O21: Hernals | P21: Feldbach | Q21: Feldbach | R21: Tulln
F22: 18 | I22: Waidhofen an der Thaya | J22: Wels-Land | O22: Währing | P22: Knittelfeld | R22: Waidhofen an der Thaya
F23: 19 | I23: Wiener Neustadt-Land | O23: Döbling | P23: Bad Aussee | R23: Wiener Neustadt-Land
F24: 20 | I24: Wien-Umgebung | O24: Brigittenau | P24: Mariazell | R24: Zwettl
F25: 21 | I25: Zwettl | O25: Floridsdorf
F26: 22 | O26: Donaustadt
F27: 23 | O27: Liesing

Sheet olap_km_bld (hidden)
A1: Status | B1: Aktiv | C1: 1 | D1: =IF($C$1=1,"Aktive",IF($C$1=2,"Ruhende","Gesamte")) -> Aktive
A2: Aktiv | B2: 2001 | C2: 2002 | D2: 2003 | E2: 2004 | F2: 2005 | G2: 2006 | H2: 2007 | I2: 2008 | J2: 2009 | K2: 2010 | L2: 2011 | M2: 2012 | N2: 2013 | O2: 2014 | P2: 2015 | Q2: 2016 | R2: 2017 | S2: 2018 | T2: 2019 | U2: 2020 | V2: 2021 | W2: 2022 | X2: 2023 | Y2: 2024 | Z2: 2025
A3: Anzahl Mitglieder | B3: Spaltenbeschriftungen
A4: Zeilenbeschriftungen | B4: Jahresstatistik 2001 | C4: Jahresstatistik 2002 | D4: Jahresstatistik 2003 | E4: Jahresstatistik 2004 | F4: Jahresstatistik 2005 | G4: Jahresstatistik 2006 | H4: Jahresstatistik 2007 | I4: Jahresstatistik 2008 | J4: Jahresstatistik 2009 | K4: Jahresstatistik 2010 | L4: Jahresstatistik 2011 | M4: Jahresstatistik 2012 | N4: Jahresstatistik 2013 | O4: Jahresstatistik 2014 | P4: Jahresstatistik 2015 | Q4: Jahresstatistik 2016 | R4: Jahresstatistik 2017 | S4: Jahresstatistik 2018 | T4: Jahresstatistik 2019 | U4: Jahresstatistik 2020 | V4: Jahresstatistik 2021 | W4: Jahresstatistik 2022 | X4: Jahresstatistik 2023 | Y4: Jahresstatistik 2024 | Z4: Jahresstatistik 2025
A5: Burgenland | B5: 9761 | C5: 10119 | D5: 10579 | E5: 11063 | F5: 11540 | G5: 11883 | H5: 12296 | I5: 13409 | J5: 14068 | K5: 15011 | L5: 15666 | M5: 16264 | N5: 16711 | O5: 17321 | P5: 17908 | Q5: 18532 | R5: 18870 | S5: 19393 | T5: 19790 | U5: 20090 | V5: 20546 | W5: 20962 | X5: 21240 | Y5: 21495 | Z5: 21835
A6: Kärnten | B6: 21147 | C6: 21678 | D6: 22305 | E6: 22809 | F6: 23487 | G6: 24199 | H6: 24889 | I6: 25591 | J6: 26217 | K6: 26639 | L6: 27425 | M6: 28325 | N6: 29561 | O6: 30916 | P6: 31565 | Q6: 32559 | R6: 33112 | S6: 33964 | T6: 34446 | U6: 35292 | V6: 36330 | W6: 36751 | X6: 37491 | Y6: 38265 | Z6: 39384
A7: Niederösterreich | B7: 54428 | C7: 56325 | D7: 58737 | E7: 61350 | F7: 63672 | G7: 65815 | H7: 68136 | I7: 73473 | J7: 76649 | K7: 80423 | L7: 83404 | M7: 86657 | N7: 90021 | O7: 93258 | P7: 96650 | Q7: 99737 | R7: 102299 | S7: 103892 | T7: 105885 | U7: 107881 | V7: 111367 | W7: 112937 | X7: 114598 | Y7: 116166 | Z7: 118550
A8: Oberösterreich | B8: 46551 | C8: 48140 | D8: 49935 | E8: 51712 | F8: 53412 | G8: 54900 | H8: 56150 | I8: 60717 | J8: 63015 | K8: 65024 | L8: 66607 | M8: 68099 | N8: 70357 | O8: 72613 | P8: 74718 | Q8: 76572 | R8: 78447 | S8: 79638 | T8: 80796 | U8: 82966 | V8: 85634 | W8: 87042 | X8: 87878 | Y8: 88944 | Z8: 91092
A9: Salzburg | B9: 25168 | C9: 25669 | D9: 26458 | E9: 27115 | F9: 27632 | G9: 28148 | H9: 28884 | I9: 29854 | J9: 30510 | K9: 31344 | L9: 32137 | M9: 32825 | N9: 33553 | O9: 34457 | P9: 35242 | Q9: 36014 | R9: 36437 | S9: 37221 | T9: 37902 | U9: 38392 | V9: 39792 | W9: 40351 | X9: 40982 | Y9: 41632 | Z9: 42261
A10: Steiermark | B10: 41803 | C10: 43501 | D10: 45163 | E10: 46679 | F10: 48479 | G10: 49787 | H10: 51177 | I10: 53659 | J10: 55390 | K10: 57517 | L10: 59174 | M10: 60998 | N10: 63491 | O10: 65989 | P10: 68143 | Q10: 70333 | R10: 72684 | S10: 74654 | T10: 76404 | U10: 78681 | V10: 81497 | W10: 82829 | X10: 84031 | Y10: 85466 | Z10: 86559
A11: Tirol | B11: 29881 | C11: 30835 | D11: 31830 | E11: 32863 | F11: 33482 | G11: 34065 | H11: 35135 | I11: 36186 | J11: 36999 | K11: 37916 | L11: 38741 | M11: 39609 | N11: 40673 | O11: 41545 | P11: 42593 | Q11: 43776 | R11: 44785 | S11: 45521 | T11: 46521 | U11: 47516 | V11: 49429 | W11: 50562 | X11: 51435 | Y11: 52161 | Z11: 53184
A12: Vorarlberg | B12: 15108 | C12: 15414 | D12: 15666 | E12: 16136 | F12: 16238 | G12: 16390 | H12: 16564 | I12: 17555 | J12: 18004 | K12: 18539 | L12: 19142 | M12: 19591 | N12: 20087 | O12: 20706 | P12: 21212 | Q12: 21540 | R12: 21879 | S12: 22334 | T12: 22772 | U12: 23235 | V12: 24040 | W12: 24471 | X12: 24952 | Y12: 25121 | Z12: 25706
A13: Wien | B13: 67453 | C13: 69092 | D13: 71420 | E13: 76279 | F13: 79914 | G13: 82661 | H13: 85238 | I13: 89225 | J13: 92732 | K13: 96011 | L13: 97181 | M13: 99281 | N13: 101733 | O13: 102533 | P13: 104454 | Q13: 107082 | R13: 108964 | S13: 111334 | T13: 113120 | U13: 114870 | V13: 118359 | W13: 120158 | X13: 121841 | Y13: 124389 | Z13: 127255
A14: Gesamtergebnis | B14: 311300 | C14: 320773 | D14: 332093 | E14: 346006 | F14: 357856 | G14: 367848 | H14: 378469 | I14: 399669 | J14: 413584 | K14: 428424 | L14: 439477 | M14: 451649 | N14: 466187 | O14: 479338 | P14: 492485 | Q14: 506145 | R14: 517477 | S14: 527951 | T14: 537636 | U14: 548923 | V14: 566994 | W14: 576063 | X14: 584448 | Y14: 593639 | Z14: 605826
A16: Status | B16: Ruhend
A17: Ruhend | B17: 2001 | C17: 2002 | D17: 2003 | E17: 2004 | F17: 2005 | G17: 2006 | H17: 2007 | I17: 2008 | J17: 2009 | K17: 2010 | L17: 2011 | M17: 2012 | N17: 2013 | O17: 2014 | P17: 2015 | Q17: 2016 | R17: 2017 | S17: 2018 | T17: 2019 | U17: 2020 | V17: 2021 | W17: 2022 | X17: 2023 | Y17: 2024 | Z17: 2025
A18: Anzahl Mitglieder | B18: Spaltenbeschriftungen
A19: Zeilenbeschriftungen | B19: Jahresstatistik 2001 | C19: Jahresstatistik 2002 | D19: Jahresstatistik 2003 | E19: Jahresstatistik 2004 | F19: Jahresstatistik 2005 | G19: Jahresstatistik 2006 | H19: Jahresstatistik 2007 | I19: Jahresstatistik 2008 | J19: Jahresstatistik 2009 | K19: Jahresstatistik 2010 | L19: Jahresstatistik 2011 | M19: Jahresstatistik 2012 | N19: Jahresstatistik 2013 | O19: Jahresstatistik 2014 | P19: Jahresstatistik 2015 | Q19: Jahresstatistik 2016 | R19: Jahresstatistik 2017 | S19: Jahresstatistik 2018 | T19: Jahresstatistik 2019 | U19: Jahresstatistik 2020 | V19: Jahresstatistik 2021 | W19: Jahresstatistik 2022 | X19: Jahresstatistik 2023 | Y19: Jahresstatistik 2024 | Z19: Jahresstatistik 2025
A20: Burgenland | B20: 2088 | C20: 2185 | D20: 2312 | E20: 2433 | F20: 2525 | G20: 2595 | H20: 2630 | I20: 3223 | J20: 3670 | K20: 4170 | L20: 4686 | M20: 5178 | N20: 5605 | O20: 6039 | P20: 6506 | Q20: 6608 | R20: 6504 | S20: 6431 | T20: 6048 | U20: 6350 | V20: 5835 | W20: 5691 | X20: 5219 | Y20: 5237 | Z20: 5249
A21: Kärnten | B21: 5318 | C21: 5474 | D21: 5786 | E21: 5764 | F21: 5667 | G21: 5499 | H21: 5466 | I21: 5582 | J21: 5795 | K21: 6106 | L21: 6245 | M21: 6713 | N21: 7117 | O21: 7436 | P21: 7721 | Q21: 7804 | R21: 8149 | S21: 7679 | T21: 7548 | U21: 7689 | V21: 7226 | W21: 7075 | X21: 6969 | Y21: 7081 | Z21: 7194
A22: Niederösterreich | B22: 18362 | C22: 19124 | D22: 19985 | E22: 20497 | F22: 20922 | G22: 21242 | H22: 21343 | I22: 21993 | J22: 22977 | K22: 24004 | L22: 25103 | M22: 26298 | N22: 27065 | O22: 28067 | P22: 29031 | Q22: 29193 | R22: 29850 | S22: 29589 | T22: 29472 | U22: 31025 | V22: 30760 | W22: 29206 | X22: 27093 | Y22: 26747 | Z22: 26461
A23: Oberösterreich | B23: 12846 | C23: 13377 | D23: 13736 | E23: 13892 | F23: 13933 | G23: 13726 | H23: 13944 | I23: 14276 | J23: 14848 | K23: 15217 | L23: 15526 | M23: 16107 | N23: 16639 | O23: 16960 | P23: 17390 | Q23: 17752 | R23: 17957 | S23: 17939 | T23: 18090 | U23: 18878 | V23: 18880 | W23: 18234 | X23: 17568 | Y23: 17487 | Z23: 17478
A24: Salzburg | B24: 7454 | C24: 7826 | D24: 7938 | E24: 7834 | F24: 7965 | G24: 7924 | H24: 7758 | I24: 7774 | J24: 7879 | K24: 7919 | L24: 8125 | M24: 8145 | N24: 8340 | O24: 8478 | P24: 8559 | Q24: 8385 | R24: 8336 | S24: 8229 | T24: 8042 | U24: 8455 | V24: 7896 | W24: 7728 | X24: 7550 | Y24: 7466 | Z24: 7487
A25: Steiermark | B25: 10415 | C25: 11108 | D25: 11583 | E25: 11943 | F25: 12090 | G25: 11964 | H25: 11997 | I25: 12284 | J25: 12616 | K25: 13068 | L25: 13539 | M25: 14233 | N25: 15010 | O25: 15518 | P25: 15908 | Q25: 16101 | R25: 16606 | S25: 16518 | T25: 16476 | U25: 17380 | V25: 16854 | W25: 16220 | X25: 15730 | Y25: 15965 | Z25: 15981
A26: Tirol | B26: 7367 | C26: 7509 | D26: 7734 | E26: 7615 | F26: 7608 | G26: 7628 | H26: 7548 | I26: 7665 | J26: 7870 | K26: 7891 | L26: 7944 | M26: 8120 | N26: 8381 | O26: 8393 | P26: 8370 | Q26: 8529 | R26: 8526 | S26: 8194 | T26: 8095 | U26: 8108 | V26: 7814 | W26: 7456 | X26: 7446 | Y26: 7529 | Z26: 7506
A27: Vorarlberg | B27: 3846 | C27: 3959 | D27: 4088 | E27: 4147 | F27: 4155 | G27: 3962 | H27: 3876 | I27: 3888 | J27: 3952 | K27: 3891 | L27: 3883 | M27: 3947 | N27: 4011 | O27: 3964 | P27: 4047 | Q27: 3963 | R27: 4077 | S27: 3994 | T27: 4028 | U27: 4116 | V27: 3976 | W27: 3894 | X27: 3814 | Y27: 3895 | Z27: 3862
A28: Wien | B28: 21940 | C28: 22535 | D28: 23086 | E28: 23482 | F28: 23807 | G28: 24299 | H28: 24774 | I28: 25246 | J28: 25671 | K28: 26446 | L28: 26895 | M28: 27513 | N28: 27995 | O28: 28519 | P28: 29186 | Q28: 29203 | R28: 28870 | S28: 28457 | T28: 28099 | U28: 29075 | V28: 27808 | W28: 27104 | X28: 25903 | Y28: 25855 | Z28: 25831
A29: Gesamtergebnis | B29: 89636 | C29: 93097 | D29: 96248 | E29: 97607 | F29: 98672 | G29: 98839 | H29: 99336 | I29: 101931 | J29: 105278 | K29: 108712 | L29: 111946 | M29: 116254 | N29: 120163 | O29: 123374 | P29: 126718 | Q29: 127538 | R29: 128875 | S29: 127030 | T29: 125898 | U29: 131076 | V29: 127049 | W29: 122608 | X29: 117292 | Y29: 117262 | Z29: 117049
A31: Status | B31: Insgesamt
A32: Insgesamt | B32: 2001 | C32: 2002 | D32: 2003 | E32: 2004 | F32: 2005 | G32: 2006 | H32: 2007 | I32: 2008 | J32: 2009 | K32: 2010 | L32: 2011 | M32: 2012 | N32: 2013 | O32: 2014 | P32: 2015 | Q32: 2016 | R32: 2017 | S32: 2018 | T32: 2019 | U32: 2020 | V32: 2021 | W32: 2022 | X32: 2023 | Y32: 2024 | Z32: 2025
A33: Anzahl Mitglieder | B33: Spaltenbeschriftungen
A34: Zeilenbeschriftungen | B34: Jahresstatistik 2001 | C34: Jahresstatistik 2002 | D34: Jahresstatistik 2003 | E34: Jahresstatistik 2004 | F34: Jahresstatistik 2005 | G34: Jahresstatistik 2006 | H34: Jahresstatistik 2007 | I34: Jahresstatistik 2008 | J34: Jahresstatistik 2009 | K34: Jahresstatistik 2010 | L34: Jahresstatistik 2011 | M34: Jahresstatistik 2012 | N34: Jahresstatistik 2013 | O34: Jahresstatistik 2014 | P34: Jahresstatistik 2015 | Q34: Jahresstatistik 2016 | R34: Jahresstatistik 2017 | S34: Jahresstatistik 2018 | T34: Jahresstatistik 2019 | U34: Jahresstatistik 2020 | V34: Jahresstatistik 2021 | W34: Jahresstatistik 2022 | X34: Jahresstatistik 2023 | Y34: Jahresstatistik 2024 | Z34: Jahresstatistik 2025
A35: Burgenland | B35: 11849 | C35: 12304 | D35: 12891 | E35: 13496 | F35: 14065 | G35: 14478 | H35: 14926 | I35: 16632 | J35: 17738 | K35: 19181 | L35: 20352 | M35: 21442 | N35: 22316 | O35: 23360 | P35: 24414 | Q35: 25140 | R35: 25374 | S35: 25824 | T35: 25838 | U35: 26440 | V35: 26381 | W35: 26653 | X35: 26459 | Y35: 26732 | Z35: 27084
A36: Kärnten | B36: 26465 | C36: 27152 | D36: 28091 | E36: 28573 | F36: 29154 | G36: 29698 | H36: 30355 | I36: 31173 | J36: 32012 | K36: 32745 | L36: 33670 | M36: 35038 | N36: 36678 | O36: 38352 | P36: 39286 | Q36: 40363 | R36: 41261 | S36: 41643 | T36: 41994 | U36: 42981 | V36: 43556 | W36: 43826 | X36: 44460 | Y36: 45346 | Z36: 46578
A37: Niederösterreich | B37: 72790 | C37: 75449 | D37: 78722 | E37: 81847 | F37: 84594 | G37: 87057 | H37: 89479 | I37: 95466 | J37: 99626 | K37: 104427 | L37: 108507 | M37: 112955 | N37: 117086 | O37: 121325 | P37: 125681 | Q37: 128930 | R37: 132149 | S37: 133481 | T37: 135357 | U37: 138906 | V37: 142127 | W37: 142143 | X37: 141691 | Y37: 142913 | Z37: 145011
A38: Oberösterreich | B38: 59397 | C38: 61517 | D38: 63671 | E38: 65604 | F38: 67345 | G38: 68626 | H38: 70094 | I38: 74993 | J38: 77863 | K38: 80241 | L38: 82133 | M38: 84206 | N38: 86996 | O38: 89573 | P38: 92108 | Q38: 94324 | R38: 96404 | S38: 97577 | T38: 98886 | U38: 101844 | V38: 104514 | W38: 105276 | X38: 105446 | Y38: 106431 | Z38: 108570
A39: Salzburg | B39: 32622 | C39: 33495 | D39: 34396 | E39: 34949 | F39: 35597 | G39: 36072 | H39: 36642 | I39: 37628 | J39: 38389 | K39: 39263 | L39: 40262 | M39: 40970 | N39: 41893 | O39: 42935 | P39: 43801 | Q39: 44399 | R39: 44773 | S39: 45450 | T39: 45944 | U39: 46847 | V39: 47688 | W39: 48079 | X39: 48532 | Y39: 49098 | Z39: 49748
A40: Steiermark | B40: 52218 | C40: 54609 | D40: 56746 | E40: 58622 | F40: 60569 | G40: 61751 | H40: 63174 | I40: 65943 | J40: 68006 | K40: 70585 | L40: 72713 | M40: 75231 | N40: 78501 | O40: 81507 | P40: 84051 | Q40: 86434 | R40: 89290 | S40: 91172 | T40: 92880 | U40: 96061 | V40: 98351 | W40: 99049 | X40: 99761 | Y40: 101431 | Z40: 102540
A41: Tirol | B41: 37248 | C41: 38344 | D41: 39564 | E41: 40478 | F41: 41090 | G41: 41693 | H41: 42683 | I41: 43851 | J41: 44869 | K41: 45807 | L41: 46685 | M41: 47729 | N41: 49054 | O41: 49938 | P41: 50963 | Q41: 52305 | R41: 53311 | S41: 53715 | T41: 54616 | U41: 55624 | V41: 57243 | W41: 58018 | X41: 58881 | Y41: 59690 | Z41: 60690
A42: Vorarlberg | B42: 18954 | C42: 19373 | D42: 19754 | E42: 20283 | F42: 20393 | G42: 20352 | H42: 20440 | I42: 21443 | J42: 21956 | K42: 22430 | L42: 23025 | M42: 23538 | N42: 24098 | O42: 24670 | P42: 25259 | Q42: 25503 | R42: 25956 | S42: 26328 | T42: 26800 | U42: 27351 | V42: 28016 | W42: 28365 | X42: 28766 | Y42: 29016 | Z42: 29568
A43: Wien | B43: 89393 | C43: 91627 | D43: 94506 | E43: 99761 | F43: 103721 | G43: 106960 | H43: 110012 | I43: 114471 | J43: 118403 | K43: 122457 | L43: 124076 | M43: 126794 | N43: 129728 | O43: 131052 | P43: 133640 | Q43: 136285 | R43: 137834 | S43: 139791 | T43: 141219 | U43: 143945 | V43: 146167 | W43: 147262 | X43: 147744 | Y43: 150244 | Z43: 153086
A44: Gesamtergebnis | B44: 400936 | C44: 413870 | D44: 428341 | E44: 443613 | F44: 456528 | G44: 466687 | H44: 477805 | I44: 501600 | J44: 518862 | K44: 537136 | L44: 551423 | M44: 567903 | N44: 586350 | O44: 602712 | P44: 619203 | Q44: 633683 | R44: 646352 | S44: 654981 | T44: 663534 | U44: 679999 | V44: 694043 | W44: 698671 | X44: 701740 | Y44: 710901 | Z44: 722875
A47: =Status -> Aktive | B47: =IF(Status="Aktive",B2,IF(Status="Ruhende",B17,B32)) -> 2001 | C47: 2002 | D47: 2003 | E47: 2004 | F47: 2005 | G47: 2006 | H47: 2007 | I47: 2008 | J47: 2009 | K47: 2010 | L47: 2011 | M47: 2012 | N47: 2013 | O47: 2014 | P47: 2015 | Q47: =IF(Status="Aktive",Q2,IF(Status="Ruhende",Q17,Q32)) -> 2016 | R47: 2017 | S47: =IF(Status="Aktive",S2,IF(Status="Ruhende",S17,S32)) -> 2018 | T47: 2019 | U47: =IF(Status="Aktive",U2,IF(Status="Ruhende",U17,U32)) -> 2020 | V47: 2021 | W47: 2022 | X47: =IF(Status="Aktive",X2,IF(Status="Ruhende",X17,X32)) -> 2023 | Y47: 2024 | Z47: =IF(Status="Aktive",Z2,IF(Status="Ruhende",Z17,Z32)) -> 2025
A48: =IF(Status="Aktive",A3,IF(Status="Ruhende",A18,A33)) -> Anzahl Mitglieder
A49: Zeilenbeschriftungen | B49: =IF(Status="Aktive",B4,IF(Status="Ruhende",B19,B34)) -> Jahresstatistik 2001 | C49: Jahresstatistik 2002 | D49: Jahresstatistik 2003 | E49: Jahresstatistik 2004 | F49: Jahresstatistik 2005 | G49: Jahresstatistik 2006 | H49: Jahresstatistik 2007 | I49: Jahresstatistik 2008 | J49: Jahresstatistik 2009 | K49: Jahresstatistik 2010 | L49: Jahresstatistik 2011 | M49: Jahresstatistik 2012 | N49: Jahresstatistik 2013 | O49: Jahresstatistik 2014 | P49: Jahresstatistik 2015 | Q49: =IF(Status="Aktive",Q4,IF(Status="Ruhende",Q19,Q34)) -> Jahresstatistik 2016 | R49: Jahresstatistik 2017 | S49: =IF(Status="Aktive",S4,IF(Status="Ruhende",S19,S34)) -> Jahresstatistik 2018 | T49: Jahresstatistik 2019 | U49: =IF(Status="Aktive",U4,IF(Status="Ruhende",U19,U34)) -> Jahresstatistik 2020 | V49: Jahresstatistik 2021 | W49: =IF(Status="Aktive",W4,IF(Status="Ruhende",W19,W34)) -> Jahresstatistik 2022 | X49: Jahresstatistik 2023 | Y49: =IF(Status="Aktive",Y4,IF(Status="Ruhende",Y19,Y34)) -> Jahresstatistik 2024 | Z49: Jahresstatistik 2025
A50: Burgenland | B50: =IF(Status="Aktive",B5,IF(Status="Ruhende",B20,B35)) -> 9761 | C50: 10119 | D50: 10579 | E50: 11063 | F50: 11540 | G50: 11883 | H50: 12296 | I50: 13409 | J50: 14068 | K50: 15011 | L50: 15666 | M50: 16264 | N50: 16711 | O50: 17321 | P50: 17908 | Q50: =IF(Status="Aktive",Q5,IF(Status="Ruhende",Q20,Q35)) -> 18532 | R50: 18870 | S50: =IF(Status="Aktive",S5,IF(Status="Ruhende",S20,S35)) -> 19393 | T50: 19790 | U50: =IF(Status="Aktive",U5,IF(Status="Ruhende",U20,U35)) -> 20090 | V50: 20546 | W50: =IF(Status="Aktive",W5,IF(Status="Ruhende",W20,W35)) -> 20962 | X50: 21240 | Y50: =IF(Status="Aktive",Y5,IF(Status="Ruhende",Y20,Y35)) -> 21495 | Z50: 21835
A51: Kärnten | B51: =IF(Status="Aktive",B6,IF(Status="Ruhende",B21,B36)) -> 21147 | C51: 21678 | D51: 22305 | E51: 22809 | F51: 23487 | G51: 24199 | H51: 24889 | I51: 25591 | J51: 26217 | K51: 26639 | L51: 27425 | M51: 28325 | N51: 29561 | O51: 30916 | P51: 31565 | Q51: =IF(Status="Aktive",Q6,IF(Status="Ruhende",Q21,Q36)) -> 32559 | R51: 33112 | S51: =IF(Status="Aktive",S6,IF(Status="Ruhende",S21,S36)) -> 33964 | T51: 34446 | U51: =IF(Status="Aktive",U6,IF(Status="Ruhende",U21,U36)) -> 35292 | V51: 36330 | W51: =IF(Status="Aktive",W6,IF(Status="Ruhende",W21,W36)) -> 36751 | X51: 37491 | Y51: =IF(Status="Aktive",Y6,IF(Status="Ruhende",Y21,Y36)) -> 38265 | Z51: 39384
A52: Niederösterreich | B52: =IF(Status="Aktive",B7,IF(Status="Ruhende",B22,B37)) -> 54428 | C52: 56325 | D52: 58737 | E52: 61350 | F52: 63672 | G52: 65815 | H52: 68136 | I52: 73473 | J52: 76649 | K52: 80423 | L52: 83404 | M52: 86657 | N52: 90021 | O52: 93258 | P52: 96650 | Q52: =IF(Status="Aktive",Q7,IF(Status="Ruhende",Q22,Q37)) -> 99737 | R52: 102299 | S52: =IF(Status="Aktive",S7,IF(Status="Ruhende",S22,S37)) -> 103892 | T52: 105885 | U52: =IF(Status="Aktive",U7,IF(Status="Ruhende",U22,U37)) -> 107881 | V52: 111367 | W52: =IF(Status="Aktive",W7,IF(Status="Ruhende",W22,W37)) -> 112937 | X52: 114598 | Y52: =IF(Status="Aktive",Y7,IF(Status="Ruhende",Y22,Y37)) -> 116166 | Z52: 118550
A53: Oberösterreich | B53: =IF(Status="Aktive",B8,IF(Status="Ruhende",B23,B38)) -> 46551 | C53: 48140 | D53: 49935 | E53: 51712 | F53: 53412 | G53: 54900 | H53: 56150 | I53: 60717 | J53: 63015 | K53: 65024 | L53: 66607 | M53: 68099 | N53: 70357 | O53: 72613 | P53: 74718 | Q53: =IF(Status="Aktive",Q8,IF(Status="Ruhende",Q23,Q38)) -> 76572 | R53: 78447 | S53: =IF(Status="Aktive",S8,IF(Status="Ruhende",S23,S38)) -> 79638 | T53: 80796 | U53: =IF(Status="Aktive",U8,IF(Status="Ruhende",U23,U38)) -> 82966 | V53: 85634 | W53: =IF(Status="Aktive",W8,IF(Status="Ruhende",W23,W38)) -> 87042 | X53: 87878 | Y53: =IF(Status="Aktive",Y8,IF(Status="Ruhende",Y23,Y38)) -> 88944 | Z53: 91092
A54: Salzburg | B54: =IF(Status="Aktive",B9,IF(Status="Ruhende",B24,B39)) -> 25168 | C54: 25669 | D54: 26458 | E54: 27115 | F54: 27632 | G54: 28148 | H54: 28884 | I54: 29854 | J54: 30510 | K54: 31344 | L54: 32137 | M54: 32825 | N54: 33553 | O54: 34457 | P54: 35242 | Q54: =IF(Status="Aktive",Q9,IF(Status="Ruhende",Q24,Q39)) -> 36014 | R54: 36437 | S54: =IF(Status="Aktive",S9,IF(Status="Ruhende",S24,S39)) -> 37221 | T54: 37902 | U54: =IF(Status="Aktive",U9,IF(Status="Ruhende",U24,U39)) -> 38392 | V54: 39792 | W54: =IF(Status="Aktive",W9,IF(Status="Ruhende",W24,W39)) -> 40351 | X54: 40982 | Y54: =IF(Status="Aktive",Y9,IF(Status="Ruhende",Y24,Y39)) -> 41632 | Z54: 42261
A55: Steiermark | B55: =IF(Status="Aktive",B10,IF(Status="Ruhende",B25,B40)) -> 41803 | C55: 43501 | D55: 45163 | E55: 46679 | F55: 48479 | G55: 49787 | H55: 51177 | I55: 53659 | J55: 55390 | K55: 57517 | L55: 59174 | M55: 60998 | N55: 63491 | O55: 65989 | P55: 68143 | Q55: =IF(Status="Aktive",Q10,IF(Status="Ruhende",Q25,Q40)) -> 70333 | R55: 72684 | S55: =IF(Status="Aktive",S10,IF(Status="Ruhende",S25,S40)) -> 74654 | T55: 76404 | U55: =IF(Status="Aktive",U10,IF(Status="Ruhende",U25,U40)) -> 78681 | V55: 81497 | W55: =IF(Status="Aktive",W10,IF(Status="Ruhende",W25,W40)) -> 82829 | X55: 84031 | Y55: =IF(Status="Aktive",Y10,IF(Status="Ruhende",Y25,Y40)) -> 85466 | Z55: 86559
A56: Tirol | B56: =IF(Status="Aktive",B11,IF(Status="Ruhende",B26,B41)) -> 29881 | C56: 30835 | D56: 31830 | E56: 32863 | F56: 33482 | G56: 34065 | H56: 35135 | I56: 36186 | J56: 36999 | K56: 37916 | L56: 38741 | M56: 39609 | N56: 40673 | O56: 41545 | P56: 42593 | Q56: =IF(Status="Aktive",Q11,IF(Status="Ruhende",Q26,Q41)) -> 43776 | R56: 44785 | S56: =IF(Status="Aktive",S11,IF(Status="Ruhende",S26,S41)) -> 45521 | T56: 46521 | U56: =IF(Status="Aktive",U11,IF(Status="Ruhende",U26,U41)) -> 47516 | V56: 49429 | W56: =IF(Status="Aktive",W11,IF(Status="Ruhende",W26,W41)) -> 50562 | X56: 51435 | Y56: =IF(Status="Aktive",Y11,IF(Status="Ruhende",Y26,Y41)) -> 52161 | Z56: 53184
A57: Vorarlberg | B57: =IF(Status="Aktive",B12,IF(Status="Ruhende",B27,B42)) -> 15108 | C57: 15414 | D57: 15666 | E57: 16136 | F57: 16238 | G57: 16390 | H57: 16564 | I57: 17555 | J57: 18004 | K57: 18539 | L57: 19142 | M57: 19591 | N57: 20087 | O57: 20706 | P57: 21212 | Q57: =IF(Status="Aktive",Q12,IF(Status="Ruhende",Q27,Q42)) -> 21540 | R57: 21879 | S57: =IF(Status="Aktive",S12,IF(Status="Ruhende",S27,S42)) -> 22334 | T57: 22772 | U57: =IF(Status="Aktive",U12,IF(Status="Ruhende",U27,U42)) -> 23235 | V57: 24040 | W57: =IF(Status="Aktive",W12,IF(Status="Ruhende",W27,W42)) -> 24471 | X57: 24952 | Y57: =IF(Status="Aktive",Y12,IF(Status="Ruhende",Y27,Y42)) -> 25121 | Z57: 25706
A58: Wien | B58: =IF(Status="Aktive",B13,IF(Status="Ruhende",B28,B43)) -> 67453 | C58: 69092 | D58: 71420 | E58: 76279 | F58: 79914 | G58: 82661 | H58: 85238 | I58: 89225 | J58: 92732 | K58: 96011 | L58: 97181 | M58: 99281 | N58: 101733 | O58: 102533 | P58: 104454 | Q58: =IF(Status="Aktive",Q13,IF(Status="Ruhende",Q28,Q43)) -> 107082 | R58: 108964 | S58: =IF(Status="Aktive",S13,IF(Status="Ruhende",S28,S43)) -> 111334 | T58: 113120 | U58: =IF(Status="Aktive",U13,IF(Status="Ruhende",U28,U43)) -> 114870 | V58: 118359 | W58: =IF(Status="Aktive",W13,IF(Status="Ruhende",W28,W43)) -> 120158 | X58: 121841 | Y58: =IF(Status="Aktive",Y13,IF(Status="Ruhende",Y28,Y43)) -> 124389 | Z58: 127255
A59: Gesamtergebnis | B59: =IF(Status="Aktive",B14,IF(Status="Ruhende",B29,B44)) -> 311300 | C59: 320773 | D59: 332093 | E59: 346006 | F59: 357856 | G59: 367848 | H59: 378469 | I59: 399669 | J59: 413584 | K59: 428424 | L59: 439477 | M59: 451649 | N59: 466187 | O59: 479338 | P59: 492485 | Q59: =IF(Status="Aktive",Q14,IF(Status="Ruhende",Q29,Q44)) -> 506145 | R59: 517477 | S59: =IF(Status="Aktive",S14,IF(Status="Ruhende",S29,S44)) -> 527951 | T59: 537636 | U59: =IF(Status="Aktive",U14,IF(Status="Ruhende",U29,U44)) -> 548923 | V59: 566994 | W59: =IF(Status="Aktive",W14,IF(Status="Ruhende",W29,W44)) -> 576063 | X59: 584448 | Y59: =IF(Status="Aktive",Y14,IF(Status="Ruhende",Y29,Y44)) -> 593639 | Z59: 605826
B62: =Auswahl_Jahr -> 2025 | C62: =Auswahl_Jahr-1 -> 2024 | D62: Anteil | E62: Veraend_abs | F62: Veraend_Proz | G62: X | H62: Y | K62: ="Verae_absolut_"&Auswahl_Bundesland -> Verae_absolut_Burgenland | L62: ="Verae_Proz_"&Auswahl_Bundesland -> Verae_Proz_Burgenland | N62: Max_Veraend_abs | O62: Max_Veraend_Proz
A63: Burgenland | B63: =LOOKUP($B$62,$47:$47,olap_km_bld!50:50) -> 21835 | C63: =LOOKUP($C$62,$47:$47,olap_km_bld!50:50) -> 21495 | D63: =B63*100/$B$72 -> 3.604170174 | E63: =IF(Auswahl_Jahr<2002,0,B63-C63) -> 340 | F63: =IF(Auswahl_Jahr<2002,0,(B63*100/C63)-100) -> 1.581763201 | G63: 7.9 | H63: 13700 | I63: B | J63: =D63 -> 3.604170174 | K63: =IF($A63=Auswahl_Bundesland,E63," ") -> 340 | L63: =IF(AND(Auswahl_Jahr<>1980,$A63=Auswahl_Bundesland),F63,NA()) -> 1.581763201 | M63: =IF(K63<>0,K63,NA()) -> 340 | N63: =IF(AND(MAX(E63:E71)>MIN(E63:E71)*-1,MIN(E63:E71)<0),MAX(E63:E71),IF(AND(MAX(E63:E71)<MIN(E63:E71)*-1,MAX(E63:E71)>0),MIN(E63:E71),0)) -> 0 | O63: =IF(AND(MAX(F63:F71)>MIN(F63:F71)*-1,MIN(F63:F71)<0),MAX(F63:F71),IF(AND(MAX(F63:F71)<MIN(F63:F71)*-1,MAX(F63:F71)>0),MIN(F63:F71),0)) -> 0
A64: Kärnten | B64: =LOOKUP($B$62,$47:$47,olap_km_bld!51:51) -> 39384 | C64: =LOOKUP($C$62,$47:$47,olap_km_bld!51:51) -> 38265 | D64: =B64*100/$B$72 -> 6.500876489 | E64: 1119 | F64: 2.924343395 | G64: 5.1 | H64: 5500 | I64: K | J64: =D64 -> 6.500876489 | M64: =IF(K64<>0,K64,NA()) ->  | N64: Min_Veraend_abs | O64: Min_Veraend_Proz
A65: Niederösterreich | B65: =LOOKUP($B$62,$47:$47,olap_km_bld!52:52) -> 118550 | C65: =LOOKUP($C$62,$47:$47,olap_km_bld!52:52) -> 116166 | D65: 19.5683249 | E65: 2384 | F65: 2.052235594 | G65: 6.75 | H65: 22000 | I65: NÖ | J65: 19.5683249 | N65: =N63*-1 -> 0 | O65: =O63*-1 -> 0
A66: Oberösterreich | B66: =LOOKUP($B$62,$47:$47,olap_km_bld!53:53) -> 91092 | C66: =LOOKUP($C$62,$47:$47,olap_km_bld!53:53) -> 88944 | D66: 15.03600044 | E66: 2148 | F66: 2.415002698 | G66: 5.1 | H66: 19500 | I66: OÖ | J66: 15.03600044
A67: Salzburg | B67: =LOOKUP($B$62,$47:$47,olap_km_bld!54:54) -> 42261 | C67: =LOOKUP($C$62,$47:$47,olap_km_bld!54:54) -> 41632 | D67: 6.975765319 | E67: 629 | F67: 1.510857033 | G67: 4.25 | H67: 11000 | I67: S | J67: 6.975765319
A68: Steiermark | B68: =LOOKUP($B$62,$47:$47,olap_km_bld!55:55) -> 86559 | C68: =LOOKUP($C$62,$47:$47,olap_km_bld!55:55) -> 85466 | D68: 14.28776579 | E68: 1093 | F68: 1.27887113 | G68: 6.25 | H68: 12000 | I68: ST | J68: 14.28776579
A69: Tirol | B69: =LOOKUP($B$62,$47:$47,olap_km_bld!56:56) -> 53184 | C69: =LOOKUP($C$62,$47:$47,olap_km_bld!56:56) -> 52161 | D69: 8.778758257 | E69: 1023 | F69: 1.961235406 | G69: 2.25 | H69: 10500 | I69: T | J69: 8.778758257
A70: Vorarlberg | B70: =LOOKUP($B$62,$47:$47,olap_km_bld!57:57) -> 25706 | C70: =LOOKUP($C$62,$47:$47,olap_km_bld!57:57) -> 25121 | D70: 4.243132517 | E70: 585 | F70: 2.328728952 | G70: 0.8 | H70: 11000 | I70: V | J70: 4.243132517
A71: Wien | B71: =LOOKUP($B$62,$47:$47,olap_km_bld!58:58) -> 127255 | C71: =LOOKUP($C$62,$47:$47,olap_km_bld!58:58) -> 124389 | D71: 21.00520612 | E71: 2866 | F71: 2.304062256 | G71: 7.75 | H71: 20000 | I71: W | J71: 21.00520612
A72: Österreich | B72: =LOOKUP($B$62,$47:$47,olap_km_bld!59:59) -> 605826 | C72: =LOOKUP($C$62,$47:$47,olap_km_bld!59:59) -> 593639 | D72: 100 | E72: =IF(ISERROR(TEXT(IF(Auswahl_Jahr<2002,0,B72-C72),"#.###")),TEXT(IF(Auswahl_Jahr<2002,0,B72-C72),"# ###"),TEXT(IF(Auswahl_Jahr<2002,0,B72-C72),"#.###")) -> 12.187 | F72: =TEXT(IF(Auswahl_Jahr<2002,0,(B72*100/C72)-100),"##0,0") -> 2,1 | G72: 2.25 | H72: 20000 | K72: =B72-C72 -> 12187 | L72: =(B72*100/C72)-100 -> 2.052931158 | M72: 12187
K73: =B73-C73 -> 0
A74: =Auswahl_Bundesland -> Burgenland | B74: =VLOOKUP($A$74,$A$63:$H$72,2,FALSE) -> 21835 | C74: =VLOOKUP($A$74,$A$63:$H$72,3,FALSE) -> 21495 | E74: =IF(ISERROR(TEXT(VLOOKUP($A$74,$A$63:$H$72,5,FALSE),"#.###")),TEXT(VLOOKUP($A$74,$A$63:$H$72,5,FALSE),"# ###"),TEXT(VLOOKUP($A$74,$A$63:$H$72,5,FALSE),"#.###")) -> 340 | F74: =TEXT(VLOOKUP($A$74,$A$63:$H$72,6,FALSE),"##0,0") -> 1,6 | G74: =VLOOKUP($A$74,$A$63:$H$72,7,FALSE) -> 7.9 | H74: =VLOOKUP($A$74,$A$63:$H$72,8,FALSE) -> 13700 | K74: 340 | L74: =(B74*100/C74)-100 -> 1.581763201
A76: =Status & " Kammermitglieder nach Bezirken in " & Auswahl_Bundesland & " " & Auswahl_Jahr -> Aktive Kammermitglieder nach Bezirken in Burgenland 2025
A77: ="Anteil in Prozent" -> Anteil in Prozent
A78: ="Absolute und prozentuelle Veränderung" -> Absolute und prozentuelle Veränderung
A79: =Status & " Kammermitglieder nach Bezirken in " & Auswahl_Bundesland & " " & Auswahl_Jahr -> Aktive Kammermitglieder nach Bezirken in Burgenland 2025
A80: =IF(Auswahl_Jahr>=2002,"","Für den Stichtag 31.12.2001 kann keine Veränderung berechnet werden, da uns Zahlen aus früheren Jahren elektronisch nicht zur Verfügung stehen.") -> 
A82: Anteil absteigend sortiert für Kreisdiagramm - mittels Formel
A83: 1 | B83: =INDEX($I$63:$J$71,MATCH(LARGE($J$63:$J$71,A83),$J$63:$J$71,0),1) -> W | C83: =INDEX($I$63:$J$71,MATCH(LARGE($J$63:$J$71,A83),$J$63:$J$71,0),2) -> 21.00520612
A84: 2 | B84: =INDEX($I$63:$J$71,MATCH(LARGE($J$63:$J$71,A84),$J$63:$J$71,0),1) -> NÖ | C84: =INDEX($I$63:$J$71,MATCH(LARGE($J$63:$J$71,A84),$J$63:$J$71,0),2) -> 19.5683249
A85: 3 | B85: OÖ | C85: 15.03600044
A86: 4 | B86: ST | C86: 14.28776579
A87: 5 | B87: T | C87: 8.778758257
A88: 6 | B88: S | C88: 6.975765319
A89: 7 | B89: K | C89: 6.500876489
A90: 8 | B90: V | C90: 4.243132517
A91: 9 | B91: B | C91: 3.604170174

Sheet olap_bm_auswahl (hidden)
A1: =IF(Auswahl_Bundesland="Burgenland",Dropdown_Bundesland!$G3,IF(Auswahl_Bundesland="Kärnten",Dropdown_Bundesland!$H3,IF(Auswahl_Bundesland="Niederösterreich",Dropdown_Bundesland!$I3,IF(Auswahl_Bundesland="Oberösterreich",Dropdown_Bundesland!$J3,IF(Auswahl_Bundesland="Salzburg",Dropdown_Bundesland!$K3,IF(AND(Auswahl_Bundesland="Steiermark",Auswahl_Jahr>2012),Dropdown_Bundesland!$L3,IF(AND(Auswahl_Bundesland="Steiermark",Auswahl_Jahr<2012),Dropdown_Bundesland!$P3,IF(AND(Auswahl_Bundesland="Steiermark",Auswahl_Jahr=2012),Dropdown_Bundesland!$Q3,IF(Auswahl_Bundesland="Tirol",Dropdown_Bundesland!$M3,IF(Auswahl_Bundesland="Vorarlberg",Dropdown_Bundesland!$N3,IF(Auswahl_Bundesland="Wien",Dropdown_Bundesland!$O3,""))))))))))) -> 7 | D1: 7 | E1: 8 | F1: 9 | G1: 10 | H1: 11 | I1: 12 | J1: 13 | K1: 14 | L1: 15 | M1: 16 | N1: 17 | O1: 18 | P1: 19 | Q1: 20 | R1: 21 | S1: 22 | T1: 23 | U1: 24 | V1: 25 | W1: 26 | X1: 27 | Y1: 28 | Z1: 29 | AA1: 30 | AB1: 31
C2: Bez_STAT | D2: 2001 | E2: 2002 | F2: 2003 | G2: 2004 | H2: 2005 | I2: 2006 | J2: 2007 | K2: 2008 | L2: 2009 | M2: 2010 | N2: 2011 | O2: 2012 | P2: 2013 | Q2: 2014 | R2: 2015 | S2: 2016 | T2: 2017 | U2: 2018 | V2: 2019 | W2: 2020 | X2: 2021 | Y2: 2022 | Z2: 2023 | AA2: 2024 | AB2: 2025
A3: =VLOOKUP(Status&Auswahl_Bundesland&C3,matrix_olap_bm,2,FALSE) -> 4 | B3: 1 | C3: =IF(Auswahl_Bundesland="Burgenland",LOOKUP(B3,Dropdown_Bundesland!$F:$F,Dropdown_Bundesland!$G:$G),IF(Auswahl_Bundesland="Kärnten",LOOKUP(B3,Dropdown_Bundesland!$F:$F,Dropdown_Bundesland!$H:$H),IF(AND(Auswahl_Bundesland="Niederösterreich",Auswahl_Jahr>=2017),LOOKUP(B3,Dropdown_Bundesland!$F:$F,Dropdown_Bundesland!$R:$R),IF(AND(Auswahl_Bundesland="Niederösterreich",Auswahl_Jahr<=2016),LOOKUP(B3,Dropdown_Bundesland!$F:$F,Dropdown_Bundesland!$I:$I),IF(Auswahl_Bundesland="Oberösterreich",LOOKUP(B3,Dropdown_Bundesland!$F:$F,Dropdown_Bundesland!$J:$J),IF(Auswahl_Bundesland="Salzburg",LOOKUP(B3,Dropdown_Bundesland!$F:$F,Dropdown_Bundesland!$K:$K),IF(AND(Auswahl_Bundesland="Steiermark",Auswahl_Jahr>2012),LOOKUP(B3,Dropdown_Bundesland!$F:$F,Dropdown_Bundesland!$L:$L),IF(AND(Auswahl_Bundesland="Steiermark",Auswahl_Jahr<2012),LOOKUP(B3,Dropdown_Bundesland!$F:$F,Dropdown_Bundesland!$P:$P),IF(AND(Auswahl_Bundesland="Steiermark",Auswahl_Jahr=2012),LOOKUP(B3,Dropdown_Bundesland!$F:$F,Dropdown_Bundesland!$Q:$Q),IF(Auswahl_Bundesland="Tirol",LOOKUP(B3,Dropdown_Bundesland!$F:$F,Dropdown_Bundesland!$M:$M),IF(Auswahl_Bundesland="Vorarlberg",LOOKUP(B3,Dropdown_Bundesland!$F:$F,Dropdown_Bundesland!$N:$N),IF(Auswahl_Bundesland="Wien",LOOKUP(B3,Dropdown_Bundesland!$F:$F,Dropdown_Bundesland!$O:$O),"")))))))))))) -> Eisenstadt-Umgebung | D3: =IF(ISERROR($A3),0,IF(INDEX(matrix_olap_bm,$A3,D$1)=0,".",INDEX(matrix_olap_bm,$A3,D$1))) -> 2241 | E3: 2344 | F3: 2442 | G3: 2589 | H3: 2703 | I3: 2745 | J3: 2818 | K3: 3116 | L3: 3286 | M3: 3521 | N3: 3627 | O3: 3677 | P3: 3801 | Q3: 3870 | R3: 4007 | S3: 4054 | T3: 4095 | U3: 4181 | V3: 4289 | W3: 4311 | X3: 4498 | Y3: 4506 | Z3: 4542 | AA3: 4618 | AB3: =IF(ISERROR($A3),0,IF(INDEX(matrix_olap_bm,$A3,AB$1)=0,".",INDEX(matrix_olap_bm,$A3,AB$1))) -> 4713
A4: =VLOOKUP(Status&Auswahl_Bundesland&C4,matrix_olap_bm,2,FALSE) -> 5 | B4: 2 | C4: =IF(Auswahl_Bundesland="Burgenland",LOOKUP(B4,Dropdown_Bundesland!$F:$F,Dropdown_Bundesland!$G:$G),IF(Auswahl_Bundesland="Kärnten",LOOKUP(B4,Dropdown_Bundesland!$F:$F,Dropdown_Bundesland!$H:$H),IF(AND(Auswahl_Bundesland="Niederösterreich",Auswahl_Jahr>=2017),LOOKUP(B4,Dropdown_Bundesland!$F:$F,Dropdown_Bundesland!$R:$R),IF(AND(Auswahl_Bundesland="Niederösterreich",Auswahl_Jahr<=2016),LOOKUP(B4,Dropdown_Bundesland!$F:$F,Dropdown_Bundesland!$I:$I),IF(Auswahl_Bundesland="Oberösterreich",LOOKUP(B4,Dropdown_Bundesland!$F:$F,Dropdown_Bundesland!$J:$J),IF(Auswahl_Bundesland="Salzburg",LOOKUP(B4,Dropdown_Bundesland!$F:$F,Dropdown_Bundesland!$K:$K),IF(AND(Auswahl_Bundesland="Steiermark",Auswahl_Jahr>2012),LOOKUP(B4,Dropdown_Bundesland!$F:$F,Dropdown_Bundesland!$L:$L),IF(AND(Auswahl_Bundesland="Steiermark",Auswahl_Jahr<2012),LOOKUP(B4,Dropdown_Bundesland!$F:$F,Dropdown_Bundesland!$P:$P),IF(AND(Auswahl_Bundesland="Steiermark",Auswahl_Jahr=2012),LOOKUP(B4,Dropdown_Bundesland!$F:$F,Dropdown_Bundesland!$Q:$Q),IF(Auswahl_Bundesland="Tirol",LOOKUP(B4,Dropdown_Bundesland!$F:$F,Dropdown_Bundesland!$M:$M),IF(Auswahl_Bundesland="Vorarlberg",LOOKUP(B4,Dropdown_Bundesland!$F:$F,Dropdown_Bundesland!$N:$N),IF(Auswahl_Bundesland="Wien",LOOKUP(B4,Dropdown_Bundesland!$F:$F,Dropdown_Bundesland!$O:$O),"")))))))))))) -> Neusiedl am See | D4: 1903 | E4: 2013 | F4: 2115 | G4: 2203 | H4: 2304 | I4: 2330 | J4: 2447 | K4: 2632 | L4: 2768 | M4: 2976 | N4: 3132 | O4: 3373 | P4: 3493 | Q4: 3638 | R4: 3741 | S4: 3968 | T4: 4035 | U4: 4210 | V4: 4246 | W4: 4332 | X4: 4415 | Y4: 4593 | Z4: 4654 | AA4: 4685 | AB4: 4718
A5: 6 | B5: 3 | C5: =IF(Auswahl_Bundesland="Burgenland",LOOKUP(B5,Dropdown_Bundesland!$F:$F,Dropdown_Bundesland!$G:$G),IF(Auswahl_Bundesland="Kärnten",LOOKUP(B5,Dropdown_Bundesland!$F:$F,Dropdown_Bundesland!$H:$H),IF(AND(Auswahl_Bundesland="Niederösterreich",Auswahl_Jahr>=2017),LOOKUP(B5,Dropdown_Bundesland!$F:$F,Dropdown_Bundesland!$R:$R),IF(AND(Auswahl_Bundesland="Niederösterreich",Auswahl_Jahr<=2016),LOOKUP(B5,Dropdown_Bundesland!$F:$F,Dropdown_Bundesland!$I:$I),IF(Auswahl_Bundesland="Oberösterreich",LOOKUP(B5,Dropdown_Bundesland!$F:$F,Dropdown_Bundesland!$J:$J),IF(Auswahl_Bundesland="Salzburg",LOOKUP(B5,Dropdown_Bundesland!$F:$F,Dropdown_Bundesland!$K:$K),IF(AND(Auswahl_Bundesland="Steiermark",Auswahl_Jahr>2012),LOOKUP(B5,Dropdown_Bundesland!$F:$F,Dropdown_Bundesland!$L:$L),IF(AND(Auswahl_Bundesland="Steiermark",Auswahl_Jahr<2012),LOOKUP(B5,Dropdown_Bundesland!$F:$F,Dropdown_Bundesland!$P:$P),IF(AND(Auswahl_Bundesland="Steiermark",Auswahl_Jahr=2012),LOOKUP(B5,Dropdown_Bundesland!$F:$F,Dropdown_Bundesland!$Q:$Q),IF(Auswahl_Bundesland="Tirol",LOOKUP(B5,Dropdown_Bundesland!$F:$F,Dropdown_Bundesland!$M:$M),IF(Auswahl_Bundesland="Vorarlberg",LOOKUP(B5,Dropdown_Bundesland!$F:$F,Dropdown_Bundesland!$N:$N),IF(Auswahl_Bundesland="Wien",LOOKUP(B5,Dropdown_Bundesland!$F:$F,Dropdown_Bundesland!$O:$O),"")))))))))))) -> Mattersburg | D5: 1386 | E5: 1419 | F5: 1459 | G5: 1494 | H5: 1579 | I5: 1647 | J5: 1702 | K5: 1818 | L5: 1919 | M5: 2026 | N5: 2025 | O5: 2068 | P5: 2116 | Q5: 2219 | R5: 2250 | S5: 2322 | T5: 2352 | U5: 2413 | V5: 2435 | W5: 2487 | X5: 2554 | Y5: 2598 | Z5: 2600 | AA5: 2662 | AB5: 2751
A6: 7 | B6: 4 | C6: =IF(Auswahl_Bundesland="Burgenland",LOOKUP(B6,Dropdown_Bundesland!$F:$F,Dropdown_Bundesland!$G:$G),IF(Auswahl_Bundesland="Kärnten",LOOKUP(B6,Dropdown_Bundesland!$F:$F,Dropdown_Bundesland!$H:$H),IF(AND(Auswahl_Bundesland="Niederösterreich",Auswahl_Jahr>=2017),LOOKUP(B6,Dropdown_Bundesland!$F:$F,Dropdown_Bundesland!$R:$R),IF(AND(Auswahl_Bundesland="Niederösterreich",Auswahl_Jahr<=2016),LOOKUP(B6,Dropdown_Bundesland!$F:$F,Dropdown_Bundesland!$I:$I),IF(Auswahl_Bundesland="Oberösterreich",LOOKUP(B6,Dropdown_Bundesland!$F:$F,Dropdown_Bundesland!$J:$J),IF(Auswahl_Bundesland="Salzburg",LOOKUP(B6,Dropdown_Bundesland!$F:$F,Dropdown_Bundesland!$K:$K),IF(AND(Auswahl_Bundesland="Steiermark",Auswahl_Jahr>2012),LOOKUP(B6,Dropdown_Bundesland!$F:$F,Dropdown_Bundesland!$L:$L),IF(AND(Auswahl_Bundesland="Steiermark",Auswahl_Jahr<2012),LOOKUP(B6,Dropdown_Bundesland!$F:$F,Dropdown_Bundesland!$P:$P),IF(AND(Auswahl_Bundesland="Steiermark",Auswahl_Jahr=2012),LOOKUP(B6,Dropdown_Bundesland!$F:$F,Dropdown_Bundesland!$Q:$Q),IF(Auswahl_Bundesland="Tirol",LOOKUP(B6,Dropdown_Bundesland!$F:$F,Dropdown_Bundesland!$M:$M),IF(Auswahl_Bundesland="Vorarlberg",LOOKUP(B6,Dropdown_Bundesland!$F:$F,Dropdown_Bundesland!$N:$N),IF(Auswahl_Bundesland="Wien",LOOKUP(B6,Dropdown_Bundesland!$F:$F,Dropdown_Bundesland!$O:$O),"")))))))))))) -> Oberpullendorf | D6: 1373 | E6: 1340 | F6: 1402 | G6: 1470 | H6: 1498 | I6: 1574 | J6: 1580 | K6: 1735 | L6: 1794 | M6: 1894 | N6: 2011 | O6: 2061 | P6: 2067 | Q6: 2182 | R6: 2230 | S6: 2317 | T6: 2297 | U6: 2355 | V6: 2399 | W6: 2486 | X6: 2536 | Y6: 2626 | Z6: 2669 | AA6: 2692 | AB6: 2785
A7: 8 | B7: 5 | C7: =IF(Auswahl_Bundesland="Burgenland",LOOKUP(B7,Dropdown_Bundesland!$F:$F,Dropdown_Bundesland!$G:$G),IF(Auswahl_Bundesland="Kärnten",LOOKUP(B7,Dropdown_Bundesland!$F:$F,Dropdown_Bundesland!$H:$H),IF(AND(Auswahl_Bundesland="Niederösterreich",Auswahl_Jahr>=2017),LOOKUP(B7,Dropdown_Bundesland!$F:$F,Dropdown_Bundesland!$R:$R),IF(AND(Auswahl_Bundesland="Niederösterreich",Auswahl_Jahr<=2016),LOOKUP(B7,Dropdown_Bundesland!$F:$F,Dropdown_Bundesland!$I:$I),IF(Auswahl_Bundesland="Oberösterreich",LOOKUP(B7,Dropdown_Bundesland!$F:$F,Dropdown_Bundesland!$J:$J),IF(Auswahl_Bundesland="Salzburg",LOOKUP(B7,Dropdown_Bundesland!$F:$F,Dropdown_Bundesland!$K:$K),IF(AND(Auswahl_Bundesland="Steiermark",Auswahl_Jahr>2012),LOOKUP(B7,Dropdown_Bundesland!$F:$F,Dropdown_Bundesland!$L:$L),IF(AND(Auswahl_Bundesland="Steiermark",Auswahl_Jahr<2012),LOOKUP(B7,Dropdown_Bundesland!$F:$F,Dropdown_Bundesland!$P:$P),IF(AND(Auswahl_Bundesland="Steiermark",Auswahl_Jahr=2012),LOOKUP(B7,Dropdown_Bundesland!$F:$F,Dropdown_Bundesland!$Q:$Q),IF(Auswahl_Bundesland="Tirol",LOOKUP(B7,Dropdown_Bundesland!$F:$F,Dropdown_Bundesland!$M:$M),IF(Auswahl_Bundesland="Vorarlberg",LOOKUP(B7,Dropdown_Bundesland!$F:$F,Dropdown_Bundesland!$N:$N),IF(Auswahl_Bundesland="Wien",LOOKUP(B7,Dropdown_Bundesland!$F:$F,Dropdown_Bundesland!$O:$O),"")))))))))))) -> Oberwart | D7: 1926 | E7: 1998 | F7: 2072 | G7: 2131 | H7: 2224 | I7: 2296 | J7: 2372 | K7: 2611 | L7: 2728 | M7: 2901 | N7: 3092 | O7: 3211 | P7: 3253 | Q7: 3283 | R7: 3343 | S7: 3368 | T7: 3439 | U7: 3560 | V7: 3678 | W7: 3772 | X7: 3816 | Y7: 3845 | Z7: 3992 | AA7: =IF(ISERROR($A7),0,IF(INDEX(matrix_olap_bm,$A7,AA$1)=0,".",INDEX(matrix_olap_bm,$A7,AA$1))) -> 3994 | AB7: 3942
A8: 9 | B8: 6 | C8: =IF(Auswahl_Bundesland="Burgenland",LOOKUP(B8,Dropdown_Bundesland!$F:$F,Dropdown_Bundesland!$G:$G),IF(Auswahl_Bundesland="Kärnten",LOOKUP(B8,Dropdown_Bundesland!$F:$F,Dropdown_Bundesland!$H:$H),IF(AND(Auswahl_Bundesland="Niederösterreich",Auswahl_Jahr>=2017),LOOKUP(B8,Dropdown_Bundesland!$F:$F,Dropdown_Bundesland!$R:$R),IF(AND(Auswahl_Bundesland="Niederösterreich",Auswahl_Jahr<=2016),LOOKUP(B8,Dropdown_Bundesland!$F:$F,Dropdown_Bundesland!$I:$I),IF(Auswahl_Bundesland="Oberösterreich",LOOKUP(B8,Dropdown_Bundesland!$F:$F,Dropdown_Bundesland!$J:$J),IF(Auswahl_Bundesland="Salzburg",LOOKUP(B8,Dropdown_Bundesland!$F:$F,Dropdown_Bundesland!$K:$K),IF(AND(Auswahl_Bundesland="Steiermark",Auswahl_Jahr>2012),LOOKUP(B8,Dropdown_Bundesland!$F:$F,Dropdown_Bundesland!$L:$L),IF(AND(Auswahl_Bundesland="Steiermark",Auswahl_Jahr<2012),LOOKUP(B8,Dropdown_Bundesland!$F:$F,Dropdown_Bundesland!$P:$P),IF(AND(Auswahl_Bundesland="Steiermark",Auswahl_Jahr=2012),LOOKUP(B8,Dropdown_Bundesland!$F:$F,Dropdown_Bundesland!$Q:$Q),IF(Auswahl_Bundesland="Tirol",LOOKUP(B8,Dropdown_Bundesland!$F:$F,Dropdown_Bundesland!$M:$M),IF(Auswahl_Bundesland="Vorarlberg",LOOKUP(B8,Dropdown_Bundesland!$F:$F,Dropdown_Bundesland!$N:$N),IF(Auswahl_Bundesland="Wien",LOOKUP(B8,Dropdown_Bundesland!$F:$F,Dropdown_Bundesland!$O:$O),"")))))))))))) -> Güssing | D8: 843 | E8: 905 | F8: 949 | G8: 1025 | H8: 1057 | I8: 1097 | J8: 1141 | K8: 1223 | L8: 1279 | M8: 1371 | N8: 1409 | O8: 1512 | P8: 1590 | Q8: 1708 | R8: 1832 | S8: 1883 | T8: 1902 | U8: 1917 | V8: 1925 | W8: 1890 | X8: 1876 | Y8: 1816 | Z8: 1798 | AA8: 1777 | AB8: 1796
A9: 10 | B9: 7 | C9: =IF(Auswahl_Bundesland="Burgenland",LOOKUP(B9,Dropdown_Bundesland!$F:$F,Dropdown_Bundesland!$G:$G),IF(Auswahl_Bundesland="Kärnten",LOOKUP(B9,Dropdown_Bundesland!$F:$F,Dropdown_Bundesland!$H:$H),IF(AND(Auswahl_Bundesland="Niederösterreich",Auswahl_Jahr>=2017),LOOKUP(B9,Dropdown_Bundesland!$F:$F,Dropdown_Bundesland!$R:$R),IF(AND(Auswahl_Bundesland="Niederösterreich",Auswahl_Jahr<=2016),LOOKUP(B9,Dropdown_Bundesland!$F:$F,Dropdown_Bundesland!$I:$I),IF(Auswahl_Bundesland="Oberösterreich",LOOKUP(B9,Dropdown_Bundesland!$F:$F,Dropdown_Bundesland!$J:$J),IF(Auswahl_Bundesland="Salzburg",LOOKUP(B9,Dropdown_Bundesland!$F:$F,Dropdown_Bundesland!$K:$K),IF(AND(Auswahl_Bundesland="Steiermark",Auswahl_Jahr>2012),LOOKUP(B9,Dropdown_Bundesland!$F:$F,Dropdown_Bundesland!$L:$L),IF(AND(Auswahl_Bundesland="Steiermark",Auswahl_Jahr<2012),LOOKUP(B9,Dropdown_Bundesland!$F:$F,Dropdown_Bundesland!$P:$P),IF(AND(Auswahl_Bundesland="Steiermark",Auswahl_Jahr=2012),LOOKUP(B9,Dropdown_Bundesland!$F:$F,Dropdown_Bundesland!$Q:$Q),IF(Auswahl_Bundesland="Tirol",LOOKUP(B9,Dropdown_Bundesland!$F:$F,Dropdown_Bundesland!$M:$M),IF(Auswahl_Bundesland="Vorarlberg",LOOKUP(B9,Dropdown_Bundesland!$F:$F,Dropdown_Bundesland!$N:$N),IF(Auswahl_Bundesland="Wien",LOOKUP(B9,Dropdown_Bundesland!$F:$F,Dropdown_Bundesland!$O:$O),"")))))))))))) -> Jennersdorf | D9: 557 | E9: 580 | F9: 609 | G9: 605 | H9: 622 | I9: 653 | J9: 697 | K9: 743 | L9: 771 | M9: 821 | N9: 861 | O9: 891 | P9: 899 | Q9: 939 | R9: 1075 | S9: 1180 | T9: 1256 | U9: 1276 | V9: 1328 | W9: 1335 | X9: 1399 | Y9: 1507 | Z9: 1514 | AA9: 1609 | AB9: 1663
B10: 8 | C10: =IF(Auswahl_Bundesland="Burgenland",LOOKUP(B10,Dropdown_Bundesland!$F:$F,Dropdown_Bundesland!$G:$G),IF(Auswahl_Bundesland="Kärnten",LOOKUP(B10,Dropdown_Bundesland!$F:$F,Dropdown_Bundesland!$H:$H),IF(AND(Auswahl_Bundesland="Niederösterreich",Auswahl_Jahr>=2017),LOOKUP(B10,Dropdown_Bundesland!$F:$F,Dropdown_Bundesland!$R:$R),IF(AND(Auswahl_Bundesland="Niederösterreich",Auswahl_Jahr<=2016),LOOKUP(B10,Dropdown_Bundesland!$F:$F,Dropdown_Bundesland!$I:$I),IF(Auswahl_Bundesland="Oberösterreich",LOOKUP(B10,Dropdown_Bundesland!$F:$F,Dropdown_Bundesland!$J:$J),IF(Auswahl_Bundesland="Salzburg",LOOKUP(B10,Dropdown_Bundesland!$F:$F,Dropdown_Bundesland!$K:$K),IF(AND(Auswahl_Bundesland="Steiermark",Auswahl_Jahr>2012),LOOKUP(B10,Dropdown_Bundesland!$F:$F,Dropdown_Bundesland!$L:$L),IF(AND(Auswahl_Bundesland="Steiermark",Auswahl_Jahr<2012),LOOKUP(B10,Dropdown_Bundesland!$F:$F,Dropdown_Bundesland!$P:$P),IF(AND(Auswahl_Bundesland="Steiermark",Auswahl_Jahr=2012),LOOKUP(B10,Dropdown_Bundesland!$F:$F,Dropdown_Bundesland!$Q:$Q),IF(Auswahl_Bundesland="Tirol",LOOKUP(B10,Dropdown_Bundesland!$F:$F,Dropdown_Bundesland!$M:$M),IF(Auswahl_Bundesland="Vorarlberg",LOOKUP(B10,Dropdown_Bundesland!$F:$F,Dropdown_Bundesland!$N:$N),IF(Auswahl_Bundesland="Wien",LOOKUP(B10,Dropdown_Bundesland!$F:$F,Dropdown_Bundesland!$O:$O),"")))))))))))) -> 0 | D10: 0 | E10: 0 | F10: 0 | G10: 0 | H10: 0 | I10: 0 | J10: 0 | K10: 0 | L10: 0 | M10: 0 | N10: 0 | O10: 0 | P10: 0 | Q10: 0 | R10: 0 | S10: 0 | T10: 0 | U10: 0 | V10: 0 | W10: 0 | X10: 0 | Y10: 0 | Z10: 0 | AA10: 0 | AB10: 0
B11: 9 | C11: =IF(Auswahl_Bundesland="Burgenland",LOOKUP(B11,Dropdown_Bundesland!$F:$F,Dropdown_Bundesland!$G:$G),IF(Auswahl_Bundesland="Kärnten",LOOKUP(B11,Dropdown_Bundesland!$F:$F,Dropdown_Bundesland!$H:$H),IF(AND(Auswahl_Bundesland="Niederösterreich",Auswahl_Jahr>=2017),LOOKUP(B11,Dropdown_Bundesland!$F:$F,Dropdown_Bundesland!$R:$R),IF(AND(Auswahl_Bundesland="Niederösterreich",Auswahl_Jahr<=2016),LOOKUP(B11,Dropdown_Bundesland!$F:$F,Dropdown_Bundesland!$I:$I),IF(Auswahl_Bundesland="Oberösterreich",LOOKUP(B11,Dropdown_Bundesland!$F:$F,Dropdown_Bundesland!$J:$J),IF(Auswahl_Bundesland="Salzburg",LOOKUP(B11,Dropdown_Bundesland!$F:$F,Dropdown_Bundesland!$K:$K),IF(AND(Auswahl_Bundesland="Steiermark",Auswahl_Jahr>2012),LOOKUP(B11,Dropdown_Bundesland!$F:$F,Dropdown_Bundesland!$L:$L),IF(AND(Auswahl_Bundesland="Steiermark",Auswahl_Jahr<2012),LOOKUP(B11,Dropdown_Bundesland!$F:$F,Dropdown_Bundesland!$P:$P),IF(AND(Auswahl_Bundesland="Steiermark",Auswahl_Jahr=2012),LOOKUP(B11,Dropdown_Bundesland!$F:$F,Dropdown_Bundesland!$Q:$Q),IF(Auswahl_Bundesland="Tirol",LOOKUP(B11,Dropdown_Bundesland!$F:$F,Dropdown_Bundesland!$M:$M),IF(Auswahl_Bundesland="Vorarlberg",LOOKUP(B11,Dropdown_Bundesland!$F:$F,Dropdown_Bundesland!$N:$N),IF(Auswahl_Bundesland="Wien",LOOKUP(B11,Dropdown_Bundesland!$F:$F,Dropdown_Bundesland!$O:$O),"")))))))))))) -> 0 | D11: 0 | E11: 0 | F11: 0 | G11: 0 | H11: 0 | I11: 0 | J11: 0 | K11: 0 | L11: 0 | M11: 0 | N11: 0 | O11: 0 | P11: 0 | Q11: 0 | R11: 0 | S11: 0 | T11: 0 | U11: 0 | V11: 0 | W11: 0 | X11: 0 | Y11: 0 | Z11: 0 | AA11: 0 | AB11: 0
B12: 10 | C12: =IF(Auswahl_Bundesland="Burgenland",LOOKUP(B12,Dropdown_Bundesland!$F:$F,Dropdown_Bundesland!$G:$G),IF(Auswahl_Bundesland="Kärnten",LOOKUP(B12,Dropdown_Bundesland!$F:$F,Dropdown_Bundesland!$H:$H),IF(AND(Auswahl_Bundesland="Niederösterreich",Auswahl_Jahr>=2017),LOOKUP(B12,Dropdown_Bundesland!$F:$F,Dropdown_Bundesland!$R:$R),IF(AND(Auswahl_Bundesland="Niederösterreich",Auswahl_Jahr<=2016),LOOKUP(B12,Dropdown_Bundesland!$F:$F,Dropdown_Bundesland!$I:$I),IF(Auswahl_Bundesland="Oberösterreich",LOOKUP(B12,Dropdown_Bundesland!$F:$F,Dropdown_Bundesland!$J:$J),IF(Auswahl_Bundesland="Salzburg",LOOKUP(B12,Dropdown_Bundesland!$F:$F,Dropdown_Bundesland!$K:$K),IF(AND(Auswahl_Bundesland="Steiermark",Auswahl_Jahr>2012),LOOKUP(B12,Dropdown_Bundesland!$F:$F,Dropdown_Bundesland!$L:$L),IF(AND(Auswahl_Bundesland="Steiermark",Auswahl_Jahr<2012),LOOKUP(B12,Dropdown_Bundesland!$F:$F,Dropdown_Bundesland!$P:$P),IF(AND(Auswahl_Bundesland="Steiermark",Auswahl_Jahr=2012),LOOKUP(B12,Dropdown_Bundesland!$F:$F,Dropdown_Bundesland!$Q:$Q),IF(Auswahl_Bundesland="Tirol",LOOKUP(B12,Dropdown_Bundesland!$F:$F,Dropdown_Bundesland!$M:$M),IF(Auswahl_Bundesland="Vorarlberg",LOOKUP(B12,Dropdown_Bundesland!$F:$F,Dropdown_Bundesland!$N:$N),IF(Auswahl_Bundesland="Wien",LOOKUP(B12,Dropdown_Bundesland!$F:$F,Dropdown_Bundesland!$O:$O),"")))))))))))) -> 0 | D12: 0 | E12: 0 | F12: 0 | G12: 0 | H12: 0 | I12: 0 | J12: 0 | K12: 0 | L12: 0 | M12: 0 | N12: 0 | O12: 0 | P12: 0 | Q12: 0 | R12: 0 | S12: 0 | T12: 0 | U12: 0 | V12: 0 | W12: 0 | X12: 0 | Y12: 0 | Z12: 0 | AA12: 0 | AB12: 0
B13: 11 | C13: =IF(Auswahl_Bundesland="Burgenland",LOOKUP(B13,Dropdown_Bundesland!$F:$F,Dropdown_Bundesland!$G:$G),IF(Auswahl_Bundesland="Kärnten",LOOKUP(B13,Dropdown_Bundesland!$F:$F,Dropdown_Bundesland!$H:$H),IF(AND(Auswahl_Bundesland="Niederösterreich",Auswahl_Jahr>=2017),LOOKUP(B13,Dropdown_Bundesland!$F:$F,Dropdown_Bundesland!$R:$R),IF(AND(Auswahl_Bundesland="Niederösterreich",Auswahl_Jahr<=2016),LOOKUP(B13,Dropdown_Bundesland!$F:$F,Dropdown_Bundesland!$I:$I),IF(Auswahl_Bundesland="Oberösterreich",LOOKUP(B13,Dropdown_Bundesland!$F:$F,Dropdown_Bundesland!$J:$J),IF(Auswahl_Bundesland="Salzburg",LOOKUP(B13,Dropdown_Bundesland!$F:$F,Dropdown_Bundesland!$K:$K),IF(AND(Auswahl_Bundesland="Steiermark",Auswahl_Jahr>2012),LOOKUP(B13,Dropdown_Bundesland!$F:$F,Dropdown_Bundesland!$L:$L),IF(AND(Auswahl_Bundesland="Steiermark",Auswahl_Jahr<2012),LOOKUP(B13,Dropdown_Bundesland!$F:$F,Dropdown_Bundesland!$P:$P),IF(AND(Auswahl_Bundesland="Steiermark",Auswahl_Jahr=2012),LOOKUP(B13,Dropdown_Bundesland!$F:$F,Dropdown_Bundesland!$Q:$Q),IF(Auswahl_Bundesland="Tirol",LOOKUP(B13,Dropdown_Bundesland!$F:$F,Dropdown_Bundesland!$M:$M),IF(Auswahl_Bundesland="Vorarlberg",LOOKUP(B13,Dropdown_Bundesland!$F:$F,Dropdown_Bundesland!$N:$N),IF(Auswahl_Bundesland="Wien",LOOKUP(B13,Dropdown_Bundesland!$F:$F,Dropdown_Bundesland!$O:$O),"")))))))))))) -> 0 | D13: =IF(ISERROR($A13),0,IF(INDEX(matrix_olap_bm,$A13,D$1)=0,".",INDEX(matrix_olap_bm,$A13,D$1))) -> 0 | E13: 0 | F13: 0 | G13: 0 | H13: 0 | I13: 0 | J13: 0 | K13: 0 | L13: 0 | M13: 0 | N13: 0 | O13: 0 | P13: 0 | Q13: 0 | R13: 0 | S13: 0 | T13: 0 | U13: 0 | V13: 0 | W13: 0 | X13: 0 | Y13: 0 | Z13: 0 | AA13: 0 | AB13: 0
B14: 12 | C14: =IF(Auswahl_Bundesland="Burgenland",LOOKUP(B14,Dropdown_Bundesland!$F:$F,Dropdown_Bundesland!$G:$G),IF(Auswahl_Bundesland="Kärnten",LOOKUP(B14,Dropdown_Bundesland!$F:$F,Dropdown_Bundesland!$H:$H),IF(AND(Auswahl_Bundesland="Niederösterreich",Auswahl_Jahr>=2017),LOOKUP(B14,Dropdown_Bundesland!$F:$F,Dropdown_Bundesland!$R:$R),IF(AND(Auswahl_Bundesland="Niederösterreich",Auswahl_Jahr<=2016),LOOKUP(B14,Dropdown_Bundesland!$F:$F,Dropdown_Bundesland!$I:$I),IF(Auswahl_Bundesland="Oberösterreich",LOOKUP(B14,Dropdown_Bundesland!$F:$F,Dropdown_Bundesland!$J:$J),IF(Auswahl_Bundesland="Salzburg",LOOKUP(B14,Dropdown_Bundesland!$F:$F,Dropdown_Bundesland!$K:$K),IF(AND(Auswahl_Bundesland="Steiermark",Auswahl_Jahr>2012),LOOKUP(B14,Dropdown_Bundesland!$F:$F,Dropdown_Bundesland!$L:$L),IF(AND(Auswahl_Bundesland="Steiermark",Auswahl_Jahr<2012),LOOKUP(B14,Dropdown_Bundesland!$F:$F,Dropdown_Bundesland!$P:$P),IF(AND(Auswahl_Bundesland="Steiermark",Auswahl_Jahr=2012),LOOKUP(B14,Dropdown_Bundesland!$F:$F,Dropdown_Bundesland!$Q:$Q),IF(Auswahl_Bundesland="Tirol",LOOKUP(B14,Dropdown_Bundesland!$F:$F,Dropdown_Bundesland!$M:$M),IF(Auswahl_Bundesland="Vorarlberg",LOOKUP(B14,Dropdown_Bundesland!$F:$F,Dropdown_Bundesland!$N:$N),IF(Auswahl_Bundesland="Wien",LOOKUP(B14,Dropdown_Bundesland!$F:$F,Dropdown_Bundesland!$O:$O),"")))))))))))) -> 0 | D14: 0 | E14: 0 | F14: 0 | G14: 0 | H14: 0 | I14: 0 | J14: 0 | K14: 0 | L14: 0 | M14: 0 | N14: 0 | O14: 0 | P14: 0 | Q14: 0 | R14: 0 | S14: 0 | T14: 0 | U14: 0 | V14: 0 | W14: 0 | X14: 0 | Y14: 0 | Z14: 0 | AA14: 0 | AB14: 0
B15: 13 | C15: =IF(Auswahl_Bundesland="Burgenland",LOOKUP(B15,Dropdown_Bundesland!$F:$F,Dropdown_Bundesland!$G:$G),IF(Auswahl_Bundesland="Kärnten",LOOKUP(B15,Dropdown_Bundesland!$F:$F,Dropdown_Bundesland!$H:$H),IF(AND(Auswahl_Bundesland="Niederösterreich",Auswahl_Jahr>=2017),LOOKUP(B15,Dropdown_Bundesland!$F:$F,Dropdown_Bundesland!$R:$R),IF(AND(Auswahl_Bundesland="Niederösterreich",Auswahl_Jahr<=2016),LOOKUP(B15,Dropdown_Bundesland!$F:$F,Dropdown_Bundesland!$I:$I),IF(Auswahl_Bundesland="Oberösterreich",LOOKUP(B15,Dropdown_Bundesland!$F:$F,Dropdown_Bundesland!$J:$J),IF(Auswahl_Bundesland="Salzburg",LOOKUP(B15,Dropdown_Bundesland!$F:$F,Dropdown_Bundesland!$K:$K),IF(AND(Auswahl_Bundesland="Steiermark",Auswahl_Jahr>2012),LOOKUP(B15,Dropdown_Bundesland!$F:$F,Dropdown_Bundesland!$L:$L),IF(AND(Auswahl_Bundesland="Steiermark",Auswahl_Jahr<2012),LOOKUP(B15,Dropdown_Bundesland!$F:$F,Dropdown_Bundesland!$P:$P),IF(AND(Auswahl_Bundesland="Steiermark",Auswahl_Jahr=2012),LOOKUP(B15,Dropdown_Bundesland!$F:$F,Dropdown_Bundesland!$Q:$Q),IF(Auswahl_Bundesland="Tirol",LOOKUP(B15,Dropdown_Bundesland!$F:$F,Dropdown_Bundesland!$M:$M),IF(Auswahl_Bundesland="Vorarlberg",LOOKUP(B15,Dropdown_Bundesland!$F:$F,Dropdown_Bundesland!$N:$N),IF(Auswahl_Bundesland="Wien",LOOKUP(B15,Dropdown_Bundesland!$F:$F,Dropdown_Bundesland!$O:$O),"")))))))))))) -> 0 | D15: 0 | E15: 0 | F15: 0 | G15: 0 | H15: 0 | I15: 0 | J15: 0 | K15: 0 | L15: 0 | M15: 0 | N15: 0 | O15: 0 | P15: 0 | Q15: 0 | R15: 0 | S15: 0 | T15: 0 | U15: 0 | V15: 0 | W15: 0 | X15: 0 | Y15: 0 | Z15: 0 | AA15: 0 | AB15: 0
B16: 14 | C16: =IF(Auswahl_Bundesland="Burgenland",LOOKUP(B16,Dropdown_Bundesland!$F:$F,Dropdown_Bundesland!$G:$G),IF(Auswahl_Bundesland="Kärnten",LOOKUP(B16,Dropdown_Bundesland!$F:$F,Dropdown_Bundesland!$H:$H),IF(AND(Auswahl_Bundesland="Niederösterreich",Auswahl_Jahr>=2017),LOOKUP(B16,Dropdown_Bundesland!$F:$F,Dropdown_Bundesland!$R:$R),IF(AND(Auswahl_Bundesland="Niederösterreich",Auswahl_Jahr<=2016),LOOKUP(B16,Dropdown_Bundesland!$F:$F,Dropdown_Bundesland!$I:$I),IF(Auswahl_Bundesland="Oberösterreich",LOOKUP(B16,Dropdown_Bundesland!$F:$F,Dropdown_Bundesland!$J:$J),IF(Auswahl_Bundesland="Salzburg",LOOKUP(B16,Dropdown_Bundesland!$F:$F,Dropdown_Bundesland!$K:$K),IF(AND(Auswahl_Bundesland="Steiermark",Auswahl_Jahr>2012),LOOKUP(B16,Dropdown_Bundesland!$F:$F,Dropdown_Bundesland!$L:$L),IF(AND(Auswahl_Bundesland="Steiermark",Auswahl_Jahr<2012),LOOKUP(B16,Dropdown_Bundesland!$F:$F,Dropdown_Bundesland!$P:$P),IF(AND(Auswahl_Bundesland="Steiermark",Auswahl_Jahr=2012),LOOKUP(B16,Dropdown_Bundesland!$F:$F,Dropdown_Bundesland!$Q:$Q),IF(Auswahl_Bundesland="Tirol",LOOKUP(B16,Dropdown_Bundesland!$F:$F,Dropdown_Bundesland!$M:$M),IF(Auswahl_Bundesland="Vorarlberg",LOOKUP(B16,Dropdown_Bundesland!$F:$F,Dropdown_Bundesland!$N:$N),IF(Auswahl_Bundesland="Wien",LOOKUP(B16,Dropdown_Bundesland!$F:$F,Dropdown_Bundesland!$O:$O),"")))))))))))) -> 0 | D16: 0 | E16: 0 | F16: 0 | G16: 0 | H16: 0 | I16: 0 | J16: 0 | K16: 0 | L16: 0 | M16: 0 | N16: 0 | O16: 0 | P16: 0 | Q16: 0 | R16: 0 | S16: 0 | T16: 0 | U16: 0 | V16: =IF(ISERROR($A16),0,IF(INDEX(matrix_olap_bm,$A16,V$1)=0,".",INDEX(matrix_olap_bm,$A16,V$1))) -> 0 | W16: 0 | X16: 0 | Y16: 0 | Z16: 0 | AA16: 0 | AB16: 0
B17: 15 | C17: =IF(Auswahl_Bundesland="Burgenland",LOOKUP(B17,Dropdown_Bundesland!$F:$F,Dropdown_Bundesland!$G:$G),IF(Auswahl_Bundesland="Kärnten",LOOKUP(B17,Dropdown_Bundesland!$F:$F,Dropdown_Bundesland!$H:$H),IF(AND(Auswahl_Bundesland="Niederösterreich",Auswahl_Jahr>=2017),LOOKUP(B17,Dropdown_Bundesland!$F:$F,Dropdown_Bundesland!$R:$R),IF(AND(Auswahl_Bundesland="Niederösterreich",Auswahl_Jahr<=2016),LOOKUP(B17,Dropdown_Bundesland!$F:$F,Dropdown_Bundesland!$I:$I),IF(Auswahl_Bundesland="Oberösterreich",LOOKUP(B17,Dropdown_Bundesland!$F:$F,Dropdown_Bundesland!$J:$J),IF(Auswahl_Bundesland="Salzburg",LOOKUP(B17,Dropdown_Bundesland!$F:$F,Dropdown_Bundesland!$K:$K),IF(AND(Auswahl_Bundesland="Steiermark",Auswahl_Jahr>2012),LOOKUP(B17,Dropdown_Bundesland!$F:$F,Dropdown_Bundesland!$L:$L),IF(AND(Auswahl_Bundesland="Steiermark",Auswahl_Jahr<2012),LOOKUP(B17,Dropdown_Bundesland!$F:$F,Dropdown_Bundesland!$P:$P),IF(AND(Auswahl_Bundesland="Steiermark",Auswahl_Jahr=2012),LOOKUP(B17,Dropdown_Bundesland!$F:$F,Dropdown_Bundesland!$Q:$Q),IF(Auswahl_Bundesland="Tirol",LOOKUP(B17,Dropdown_Bundesland!$F:$F,Dropdown_Bundesland!$M:$M),IF(Auswahl_Bundesland="Vorarlberg",LOOKUP(B17,Dropdown_Bundesland!$F:$F,Dropdown_Bundesland!$N:$N),IF(Auswahl_Bundesland="Wien",LOOKUP(B17,Dropdown_Bundesland!$F:$F,Dropdown_Bundesland!$O:$O),"")))))))))))) -> 0 | D17: 0 | E17: 0 | F17: 0 | G17: 0 | H17: 0 | I17: 0 | J17: 0 | K17: 0 | L17: 0 | M17: 0 | N17: 0 | O17: 0 | P17: 0 | Q17: 0 | R17: 0 | S17: 0 | T17: 0 | U17: 0 | V17: 0 | W17: 0 | X17: 0 | Y17: 0 | Z17: 0 | AA17: 0 | AB17: 0
B18: 16 | C18: =IF(Auswahl_Bundesland="Burgenland",LOOKUP(B18,Dropdown_Bundesland!$F:$F,Dropdown_Bundesland!$G:$G),IF(Auswahl_Bundesland="Kärnten",LOOKUP(B18,Dropdown_Bundesland!$F:$F,Dropdown_Bundesland!$H:$H),IF(AND(Auswahl_Bundesland="Niederösterreich",Auswahl_Jahr>=2017),LOOKUP(B18,Dropdown_Bundesland!$F:$F,Dropdown_Bundesland!$R:$R),IF(AND(Auswahl_Bundesland="Niederösterreich",Auswahl_Jahr<=2016),LOOKUP(B18,Dropdown_Bundesland!$F:$F,Dropdown_Bundesland!$I:$I),IF(Auswahl_Bundesland="Oberösterreich",LOOKUP(B18,Dropdown_Bundesland!$F:$F,Dropdown_Bundesland!$J:$J),IF(Auswahl_Bundesland="Salzburg",LOOKUP(B18,Dropdown_Bundesland!$F:$F,Dropdown_Bundesland!$K:$K),IF(AND(Auswahl_Bundesland="Steiermark",Auswahl_Jahr>2012),LOOKUP(B18,Dropdown_Bundesland!$F:$F,Dropdown_Bundesland!$L:$L),IF(AND(Auswahl_Bundesland="Steiermark",Auswahl_Jahr<2012),LOOKUP(B18,Dropdown_Bundesland!$F:$F,Dropdown_Bundesland!$P:$P),IF(AND(Auswahl_Bundesland="Steiermark",Auswahl_Jahr=2012),LOOKUP(B18,Dropdown_Bundesland!$F:$F,Dropdown_Bundesland!$Q:$Q),IF(Auswahl_Bundesland="Tirol",LOOKUP(B18,Dropdown_Bundesland!$F:$F,Dropdown_Bundesland!$M:$M),IF(Auswahl_Bundesland="Vorarlberg",LOOKUP(B18,Dropdown_Bundesland!$F:$F,Dropdown_Bundesland!$N:$N),IF(Auswahl_Bundesland="Wien",LOOKUP(B18,Dropdown_Bundesland!$F:$F,Dropdown_Bundesland!$O:$O),"")))))))))))) -> 0 | D18: 0 | E18: 0 | F18: 0 | G18: 0 | H18: 0 | I18: 0 | J18: 0 | K18: 0 | L18: 0 | M18: 0 | N18: 0 | O18: 0 | P18: 0 | Q18: 0 | R18: 0 | S18: 0 | T18: 0 | U18: 0 | V18: 0 | W18: 0 | X18: 0 | Y18: 0 | Z18: 0 | AA18: 0 | AB18: 0
B19: 17 | C19: =IF(Auswahl_Bundesland="Burgenland",LOOKUP(B19,Dropdown_Bundesland!$F:$F,Dropdown_Bundesland!$G:$G),IF(Auswahl_Bundesland="Kärnten",LOOKUP(B19,Dropdown_Bundesland!$F:$F,Dropdown_Bundesland!$H:$H),IF(AND(Auswahl_Bundesland="Niederösterreich",Auswahl_Jahr>=2017),LOOKUP(B19,Dropdown_Bundesland!$F:$F,Dropdown_Bundesland!$R:$R),IF(AND(Auswahl_Bundesland="Niederösterreich",Auswahl_Jahr<=2016),LOOKUP(B19,Dropdown_Bundesland!$F:$F,Dropdown_Bundesland!$I:$I),IF(Auswahl_Bundesland="Oberösterreich",LOOKUP(B19,Dropdown_Bundesland!$F:$F,Dropdown_Bundesland!$J:$J),IF(Auswahl_Bundesland="Salzburg",LOOKUP(B19,Dropdown_Bundesland!$F:$F,Dropdown_Bundesland!$K:$K),IF(AND(Auswahl_Bundesland="Steiermark",Auswahl_Jahr>2012),LOOKUP(B19,Dropdown_Bundesland!$F:$F,Dropdown_Bundesland!$L:$L),IF(AND(Auswahl_Bundesland="Steiermark",Auswahl_Jahr<2012),LOOKUP(B19,Dropdown_Bundesland!$F:$F,Dropdown_Bundesland!$P:$P),IF(AND(Auswahl_Bundesland="Steiermark",Auswahl_Jahr=2012),LOOKUP(B19,Dropdown_Bundesland!$F:$F,Dropdown_Bundesland!$Q:$Q),IF(Auswahl_Bundesland="Tirol",LOOKUP(B19,Dropdown_Bundesland!$F:$F,Dropdown_Bundesland!$M:$M),IF(Auswahl_Bundesland="Vorarlberg",LOOKUP(B19,Dropdown_Bundesland!$F:$F,Dropdown_Bundesland!$N:$N),IF(Auswahl_Bundesland="Wien",LOOKUP(B19,Dropdown_Bundesland!$F:$F,Dropdown_Bundesland!$O:$O),"")))))))))))) -> 0 | D19: 0 | E19: 0 | F19: 0 | G19: 0 | H19: 0 | I19: 0 | J19: 0 | K19: 0 | L19: 0 | M19: 0 | N19: 0 | O19: 0 | P19: 0 | Q19: 0 | R19: 0 | S19: 0 | T19: 0 | U19: 0 | V19: 0 | W19: 0 | X19: 0 | Y19: 0 | Z19: 0 | AA19: 0 | AB19: 0
B20: 18 | C20: =IF(Auswahl_Bundesland="Burgenland",LOOKUP(B20,Dropdown_Bundesland!$F:$F,Dropdown_Bundesland!$G:$G),IF(Auswahl_Bundesland="Kärnten",LOOKUP(B20,Dropdown_Bundesland!$F:$F,Dropdown_Bundesland!$H:$H),IF(AND(Auswahl_Bundesland="Niederösterreich",Auswahl_Jahr>=2017),LOOKUP(B20,Dropdown_Bundesland!$F:$F,Dropdown_Bundesland!$R:$R),IF(AND(Auswahl_Bundesland="Niederösterreich",Auswahl_Jahr<=2016),LOOKUP(B20,Dropdown_Bundesland!$F:$F,Dropdown_Bundesland!$I:$I),IF(Auswahl_Bundesland="Oberösterreich",LOOKUP(B20,Dropdown_Bundesland!$F:$F,Dropdown_Bundesland!$J:$J),IF(Auswahl_Bundesland="Salzburg",LOOKUP(B20,Dropdown_Bundesland!$F:$F,Dropdown_Bundesland!$K:$K),IF(AND(Auswahl_Bundesland="Steiermark",Auswahl_Jahr>2012),LOOKUP(B20,Dropdown_Bundesland!$F:$F,Dropdown_Bundesland!$L:$L),IF(AND(Auswahl_Bundesland="Steiermark",Auswahl_Jahr<2012),LOOKUP(B20,Dropdown_Bundesland!$F:$F,Dropdown_Bundesland!$P:$P),IF(AND(Auswahl_Bundesland="Steiermark",Auswahl_Jahr=2012),LOOKUP(B20,Dropdown_Bundesland!$F:$F,Dropdown_Bundesland!$Q:$Q),IF(Auswahl_Bundesland="Tirol",LOOKUP(B20,Dropdown_Bundesland!$F:$F,Dropdown_Bundesland!$M:$M),IF(Auswahl_Bundesland="Vorarlberg",LOOKUP(B20,Dropdown_Bundesland!$F:$F,Dropdown_Bundesland!$N:$N),IF(Auswahl_Bundesland="Wien",LOOKUP(B20,Dropdown_Bundesland!$F:$F,Dropdown_Bundesland!$O:$O),"")))))))))))) -> 0 | D20: 0 | E20: 0 | F20: 0 | G20: 0 | H20: 0 | I20: 0 | J20: 0 | K20: 0 | L20: 0 | M20: 0 | N20: 0 | O20: 0 | P20: 0 | Q20: 0 | R20: 0 | S20: 0 | T20: 0 | U20: 0 | V20: 0 | W20: 0 | X20: 0 | Y20: 0 | Z20: 0 | AA20: 0 | AB20: 0
B21: 19 | C21: =IF(Auswahl_Bundesland="Burgenland",LOOKUP(B21,Dropdown_Bundesland!$F:$F,Dropdown_Bundesland!$G:$G),IF(Auswahl_Bundesland="Kärnten",LOOKUP(B21,Dropdown_Bundesland!$F:$F,Dropdown_Bundesland!$H:$H),IF(AND(Auswahl_Bundesland="Niederösterreich",Auswahl_Jahr>=2017),LOOKUP(B21,Dropdown_Bundesland!$F:$F,Dropdown_Bundesland!$R:$R),IF(AND(Auswahl_Bundesland="Niederösterreich",Auswahl_Jahr<=2016),LOOKUP(B21,Dropdown_Bundesland!$F:$F,Dropdown_Bundesland!$I:$I),IF(Auswahl_Bundesland="Oberösterreich",LOOKUP(B21,Dropdown_Bundesland!$F:$F,Dropdown_Bundesland!$J:$J),IF(Auswahl_Bundesland="Salzburg",LOOKUP(B21,Dropdown_Bundesland!$F:$F,Dropdown_Bundesland!$K:$K),IF(AND(Auswahl_Bundesland="Steiermark",Auswahl_Jahr>2012),LOOKUP(B21,Dropdown_Bundesland!$F:$F,Dropdown_Bundesland!$L:$L),IF(AND(Auswahl_Bundesland="Steiermark",Auswahl_Jahr<2012),LOOKUP(B21,Dropdown_Bundesland!$F:$F,Dropdown_Bundesland!$P:$P),IF(AND(Auswahl_Bundesland="Steiermark",Auswahl_Jahr=2012),LOOKUP(B21,Dropdown_Bundesland!$F:$F,Dropdown_Bundesland!$Q:$Q),IF(Auswahl_Bundesland="Tirol",LOOKUP(B21,Dropdown_Bundesland!$F:$F,Dropdown_Bundesland!$M:$M),IF(Auswahl_Bundesland="Vorarlberg",LOOKUP(B21,Dropdown_Bundesland!$F:$F,Dropdown_Bundesland!$N:$N),IF(Auswahl_Bundesland="Wien",LOOKUP(B21,Dropdown_Bundesland!$F:$F,Dropdown_Bundesland!$O:$O),"")))))))))))) -> 0 | D21: 0 | E21: 0 | F21: 0 | G21: 0 | H21: 0 | I21: 0 | J21: 0 | K21: 0 | L21: 0 | M21: 0 | N21: 0 | O21: 0 | P21: 0 | Q21: 0 | R21: 0 | S21: 0 | T21: 0 | U21: 0 | V21: 0 | W21: 0 | X21: 0 | Y21: 0 | Z21: 0 | AA21: 0 | AB21: 0
B22: 20 | C22: =IF(Auswahl_Bundesland="Burgenland",LOOKUP(B22,Dropdown_Bundesland!$F:$F,Dropdown_Bundesland!$G:$G),IF(Auswahl_Bundesland="Kärnten",LOOKUP(B22,Dropdown_Bundesland!$F:$F,Dropdown_Bundesland!$H:$H),IF(AND(Auswahl_Bundesland="Niederösterreich",Auswahl_Jahr>=2017),LOOKUP(B22,Dropdown_Bundesland!$F:$F,Dropdown_Bundesland!$R:$R),IF(AND(Auswahl_Bundesland="Niederösterreich",Auswahl_Jahr<=2016),LOOKUP(B22,Dropdown_Bundesland!$F:$F,Dropdown_Bundesland!$I:$I),IF(Auswahl_Bundesland="Oberösterreich",LOOKUP(B22,Dropdown_Bundesland!$F:$F,Dropdown_Bundesland!$J:$J),IF(Auswahl_Bundesland="Salzburg",LOOKUP(B22,Dropdown_Bundesland!$F:$F,Dropdown_Bundesland!$K:$K),IF(AND(Auswahl_Bundesland="Steiermark",Auswahl_Jahr>2012),LOOKUP(B22,Dropdown_Bundesland!$F:$F,Dropdown_Bundesland!$L:$L),IF(AND(Auswahl_Bundesland="Steiermark",Auswahl_Jahr<2012),LOOKUP(B22,Dropdown_Bundesland!$F:$F,Dropdown_Bundesland!$P:$P),IF(AND(Auswahl_Bundesland="Steiermark",Auswahl_Jahr=2012),LOOKUP(B22,Dropdown_Bundesland!$F:$F,Dropdown_Bundesland!$Q:$Q),IF(Auswahl_Bundesland="Tirol",LOOKUP(B22,Dropdown_Bundesland!$F:$F,Dropdown_Bundesland!$M:$M),IF(Auswahl_Bundesland="Vorarlberg",LOOKUP(B22,Dropdown_Bundesland!$F:$F,Dropdown_Bundesland!$N:$N),IF(Auswahl_Bundesland="Wien",LOOKUP(B22,Dropdown_Bundesland!$F:$F,Dropdown_Bundesland!$O:$O),"")))))))))))) -> 0 | D22: 0 | E22: 0 | F22: 0 | G22: 0 | H22: 0 | I22: 0 | J22: 0 | K22: 0 | L22: 0 | M22: 0 | N22: 0 | O22: 0 | P22: 0 | Q22: 0 | R22: 0 | S22: 0 | T22: 0 | U22: 0 | V22: 0 | W22: 0 | X22: 0 | Y22: 0 | Z22: 0 | AA22: 0 | AB22: 0
B23: 21 | C23: =IF(Auswahl_Bundesland="Burgenland",LOOKUP(B23,Dropdown_Bundesland!$F:$F,Dropdown_Bundesland!$G:$G),IF(Auswahl_Bundesland="Kärnten",LOOKUP(B23,Dropdown_Bundesland!$F:$F,Dropdown_Bundesland!$H:$H),IF(AND(Auswahl_Bundesland="Niederösterreich",Auswahl_Jahr>=2017),LOOKUP(B23,Dropdown_Bundesland!$F:$F,Dropdown_Bundesland!$R:$R),IF(AND(Auswahl_Bundesland="Niederösterreich",Auswahl_Jahr<=2016),LOOKUP(B23,Dropdown_Bundesland!$F:$F,Dropdown_Bundesland!$I:$I),IF(Auswahl_Bundesland="Oberösterreich",LOOKUP(B23,Dropdown_Bundesland!$F:$F,Dropdown_Bundesland!$J:$J),IF(Auswahl_Bundesland="Salzburg",LOOKUP(B23,Dropdown_Bundesland!$F:$F,Dropdown_Bundesland!$K:$K),IF(AND(Auswahl_Bundesland="Steiermark",Auswahl_Jahr>2012),LOOKUP(B23,Dropdown_Bundesland!$F:$F,Dropdown_Bundesland!$L:$L),IF(AND(Auswahl_Bundesland="Steiermark",Auswahl_Jahr<2012),LOOKUP(B23,Dropdown_Bundesland!$F:$F,Dropdown_Bundesland!$P:$P),IF(AND(Auswahl_Bundesland="Steiermark",Auswahl_Jahr=2012),LOOKUP(B23,Dropdown_Bundesland!$F:$F,Dropdown_Bundesland!$Q:$Q),IF(Auswahl_Bundesland="Tirol",LOOKUP(B23,Dropdown_Bundesland!$F:$F,Dropdown_Bundesland!$M:$M),IF(Auswahl_Bundesland="Vorarlberg",LOOKUP(B23,Dropdown_Bundesland!$F:$F,Dropdown_Bundesland!$N:$N),IF(Auswahl_Bundesland="Wien",LOOKUP(B23,Dropdown_Bundesland!$F:$F,Dropdown_Bundesland!$O:$O),"")))))))))))) -> 0 | D23: 0 | E23: 0 | F23: 0 | G23: 0 | H23: 0 | I23: 0 | J23: 0 | K23: 0 | L23: 0 | M23: 0 | N23: 0 | O23: 0 | P23: 0 | Q23: 0 | R23: 0 | S23: 0 | T23: 0 | U23: 0 | V23: 0 | W23: 0 | X23: 0 | Y23: 0 | Z23: 0 | AA23: 0 | AB23: 0
B24: 22 | C24: =IF(Auswahl_Bundesland="Burgenland",LOOKUP(B24,Dropdown_Bundesland!$F:$F,Dropdown_Bundesland!$G:$G),IF(Auswahl_Bundesland="Kärnten",LOOKUP(B24,Dropdown_Bundesland!$F:$F,Dropdown_Bundesland!$H:$H),IF(AND(Auswahl_Bundesland="Niederösterreich",Auswahl_Jahr>=2017),LOOKUP(B24,Dropdown_Bundesland!$F:$F,Dropdown_Bundesland!$R:$R),IF(AND(Auswahl_Bundesland="Niederösterreich",Auswahl_Jahr<=2016),LOOKUP(B24,Dropdown_Bundesland!$F:$F,Dropdown_Bundesland!$I:$I),IF(Auswahl_Bundesland="Oberösterreich",LOOKUP(B24,Dropdown_Bundesland!$F:$F,Dropdown_Bundesland!$J:$J),IF(Auswahl_Bundesland="Salzburg",LOOKUP(B24,Dropdown_Bundesland!$F:$F,Dropdown_Bundesland!$K:$K),IF(AND(Auswahl_Bundesland="Steiermark",Auswahl_Jahr>2012),LOOKUP(B24,Dropdown_Bundesland!$F:$F,Dropdown_Bundesland!$L:$L),IF(AND(Auswahl_Bundesland="Steiermark",Auswahl_Jahr<2012),LOOKUP(B24,Dropdown_Bundesland!$F:$F,Dropdown_Bundesland!$P:$P),IF(AND(Auswahl_Bundesland="Steiermark",Auswahl_Jahr=2012),LOOKUP(B24,Dropdown_Bundesland!$F:$F,Dropdown_Bundesland!$Q:$Q),IF(Auswahl_Bundesland="Tirol",LOOKUP(B24,Dropdown_Bundesland!$F:$F,Dropdown_Bundesland!$M:$M),IF(Auswahl_Bundesland="Vorarlberg",LOOKUP(B24,Dropdown_Bundesland!$F:$F,Dropdown_Bundesland!$N:$N),IF(Auswahl_Bundesland="Wien",LOOKUP(B24,Dropdown_Bundesland!$F:$F,Dropdown_Bundesland!$O:$O),"")))))))))))) -> 0 | D24: 0 | E24: 0 | F24: 0 | G24: 0 | H24: 0 | I24: 0 | J24: 0 | K24: 0 | L24: 0 | M24: 0 | N24: 0 | O24: 0 | P24: 0 | Q24: 0 | R24: 0 | S24: 0 | T24: 0 | U24: 0 | V24: 0 | W24: 0 | X24: 0 | Y24: 0 | Z24: 0 | AA24: 0 | AB24: 0
B25: 23 | C25: =IF(Auswahl_Bundesland="Burgenland",LOOKUP(B25,Dropdown_Bundesland!$F:$F,Dropdown_Bundesland!$G:$G),IF(Auswahl_Bundesland="Kärnten",LOOKUP(B25,Dropdown_Bundesland!$F:$F,Dropdown_Bundesland!$H:$H),IF(AND(Auswahl_Bundesland="Niederösterreich",Auswahl_Jahr>=2017),LOOKUP(B25,Dropdown_Bundesland!$F:$F,Dropdown_Bundesland!$R:$R),IF(AND(Auswahl_Bundesland="Niederösterreich",Auswahl_Jahr<=2016),LOOKUP(B25,Dropdown_Bundesland!$F:$F,Dropdown_Bundesland!$I:$I),IF(Auswahl_Bundesland="Oberösterreich",LOOKUP(B25,Dropdown_Bundesland!$F:$F,Dropdown_Bundesland!$J:$J),IF(Auswahl_Bundesland="Salzburg",LOOKUP(B25,Dropdown_Bundesland!$F:$F,Dropdown_Bundesland!$K:$K),IF(AND(Auswahl_Bundesland="Steiermark",Auswahl_Jahr>2012),LOOKUP(B25,Dropdown_Bundesland!$F:$F,Dropdown_Bundesland!$L:$L),IF(AND(Auswahl_Bundesland="Steiermark",Auswahl_Jahr<2012),LOOKUP(B25,Dropdown_Bundesland!$F:$F,Dropdown_Bundesland!$P:$P),IF(AND(Auswahl_Bundesland="Steiermark",Auswahl_Jahr=2012),LOOKUP(B25,Dropdown_Bundesland!$F:$F,Dropdown_Bundesland!$Q:$Q),IF(Auswahl_Bundesland="Tirol",LOOKUP(B25,Dropdown_Bundesland!$F:$F,Dropdown_Bundesland!$M:$M),IF(Auswahl_Bundesland="Vorarlberg",LOOKUP(B25,Dropdown_Bundesland!$F:$F,Dropdown_Bundesland!$N:$N),IF(Auswahl_Bundesland="Wien",LOOKUP(B25,Dropdown_Bundesland!$F:$F,Dropdown_Bundesland!$O:$O),"")))))))))))) -> 0 | D25: 0 | E25: 0 | F25: 0 | G25: 0 | H25: 0 | I25: 0 | J25: 0 | K25: 0 | L25: 0 | M25: 0 | N25: 0 | O25: 0 | P25: 0 | Q25: 0 | R25: 0 | S25: 0 | T25: 0 | U25: 0 | V25: 0 | W25: 0 | X25: 0 | Y25: 0 | Z25: 0 | AA25: 0 | AB25: 0
B26: 24 | C26: =IF(Auswahl_Bundesland="Burgenland",LOOKUP(B26,Dropdown_Bundesland!$F:$F,Dropdown_Bundesland!$G:$G),IF(Auswahl_Bundesland="Kärnten",LOOKUP(B26,Dropdown_Bundesland!$F:$F,Dropdown_Bundesland!$H:$H),IF(AND(Auswahl_Bundesland="Niederösterreich",Auswahl_Jahr>=2017),LOOKUP(B26,Dropdown_Bundesland!$F:$F,Dropdown_Bundesland!$R:$R),IF(AND(Auswahl_Bundesland="Niederösterreich",Auswahl_Jahr<=2016),LOOKUP(B26,Dropdown_Bundesland!$F:$F,Dropdown_Bundesland!$I:$I),IF(Auswahl_Bundesland="Oberösterreich",LOOKUP(B26,Dropdown_Bundesland!$F:$F,Dropdown_Bundesland!$J:$J),IF(Auswahl_Bundesland="Salzburg",LOOKUP(B26,Dropdown_Bundesland!$F:$F,Dropdown_Bundesland!$K:$K),IF(AND(Auswahl_Bundesland="Steiermark",Auswahl_Jahr>2012),LOOKUP(B26,Dropdown_Bundesland!$F:$F,Dropdown_Bundesland!$L:$L),IF(AND(Auswahl_Bundesland="Steiermark",Auswahl_Jahr<2012),LOOKUP(B26,Dropdown_Bundesland!$F:$F,Dropdown_Bundesland!$P:$P),IF(AND(Auswahl_Bundesland="Steiermark",Auswahl_Jahr=2012),LOOKUP(B26,Dropdown_Bundesland!$F:$F,Dropdown_Bundesland!$Q:$Q),IF(Auswahl_Bundesland="Tirol",LOOKUP(B26,Dropdown_Bundesland!$F:$F,Dropdown_Bundesland!$M:$M),IF(Auswahl_Bundesland="Vorarlberg",LOOKUP(B26,Dropdown_Bundesland!$F:$F,Dropdown_Bundesland!$N:$N),IF(Auswahl_Bundesland="Wien",LOOKUP(B26,Dropdown_Bundesland!$F:$F,Dropdown_Bundesland!$O:$O),"")))))))))))) -> 0 | D26: 0 | E26: 0 | F26: 0 | G26: 0 | H26: 0 | I26: 0 | J26: 0 | K26: 0 | L26: 0 | M26: 0 | N26: 0 | O26: 0 | P26: 0 | Q26: 0 | R26: 0 | S26: 0 | T26: 0 | U26: 0 | V26: 0 | W26: 0 | X26: 0 | Y26: 0 | Z26: 0 | AA26: 0 | AB26: 0
D29: =Auswahl_Jahr -> 2025 | E29: =Auswahl_Jahr-1 -> 2024 | F29: Anteil | G29: Veraend_abs | H29: Veraend_Proz | I29: X | J29: Y | M29: ="Verae_absolut_"&Auswahl_Bezirk -> Verae_absolut_Oberpullendorf | N29: ="Verae_Proz_"&Auswahl_Bezirk -> Verae_Proz_Oberpullendorf | P29: Max_Veraend_abs | Q29: Max_Veraend_Proz
A30: =VLOOKUP(Status&Auswahl_Bundesland&C30,matrix_olap_bm,2,FALSE) -> 4 | B30: 1 | C30: =IF(Auswahl_Bundesland="Burgenland",LOOKUP(B30,Dropdown_Bundesland!$F:$F,Dropdown_Bundesland!$G:$G),IF(Auswahl_Bundesland="Kärnten",LOOKUP(B30,Dropdown_Bundesland!$F:$F,Dropdown_Bundesland!$H:$H),IF(AND(Auswahl_Bundesland="Niederösterreich",Auswahl_Jahr<=2016),LOOKUP(B30,Dropdown_Bundesland!$F:$F,Dropdown_Bundesland!$I:$I),IF(AND(Auswahl_Bundesland="Niederösterreich",Auswahl_Jahr>=2017),LOOKUP(B30,Dropdown_Bundesland!$F:$F,Dropdown_Bundesland!$R:$R),IF(Auswahl_Bundesland="Oberösterreich",LOOKUP(B30,Dropdown_Bundesland!$F:$F,Dropdown_Bundesland!$J:$J),IF(Auswahl_Bundesland="Salzburg",LOOKUP(B30,Dropdown_Bundesland!$F:$F,Dropdown_Bundesland!$K:$K),IF(AND(Auswahl_Bundesland="Steiermark",Auswahl_Jahr>2012),LOOKUP(B30,Dropdown_Bundesland!$F:$F,Dropdown_Bundesland!$L:$L),IF(AND(Auswahl_Bundesland="Steiermark",Auswahl_Jahr<2012),LOOKUP(B30,Dropdown_Bundesland!$F:$F,Dropdown_Bundesland!$P:$P),IF(AND(Auswahl_Bundesland="Steiermark",Auswahl_Jahr=2012),LOOKUP(B30,Dropdown_Bundesland!$F:$F,Dropdown_Bundesland!$Q:$Q),IF(Auswahl_Bundesland="Tirol",LOOKUP(B30,Dropdown_Bundesland!$F:$F,Dropdown_Bundesland!$M:$M),IF(Auswahl_Bundesland="Vorarlberg",LOOKUP(B30,Dropdown_Bundesland!$F:$F,Dropdown_Bundesland!$N:$N),IF(Auswahl_Bundesland="Wien",LOOKUP(B30,Dropdown_Bundesland!$F:$F,Dropdown_Bundesland!$O:$O),"")))))))))))) -> Eisenstadt-Umgebung | D30: =LOOKUP($D$29,$2:$2,3:3) -> 4713 | E30: =LOOKUP($E$29,$2:$2,3:3) -> 4618 | F30: =D30*100/$D$54 -> 21.07027897 | G30: =IF(Auswahl_Jahr<2002,0,IF(D30=0,0,D30-E30)) -> 95 | H30: =IF(Auswahl_Jahr<2002,0,IF(D30=0,0,(D30*100/E30)-100)) -> 2.057167605 | I30: =VLOOKUP($C30,Matrix_X_Y,2,FALSE) -> 3.8 | J30: =VLOOKUP($C30,Matrix_X_Y,3,FALSE) -> 21500 | K30: =C30 -> Eisenstadt-Umgebung | L30: =F30 -> 21.07027897 | M30: =IF($C30=Auswahl_Bezirk,G30," ") ->  | N30: =IF(AND(Auswahl_Jahr<>2001,$C30=Auswahl_Bezirk),H30,NA()) ->  | O30: =IF(M30<>0,M30,NA()) ->  | P30: =IF(AND(MAX(G30:G53)>MIN(G30:G53)*-1,MIN(G30:G53)<0),MAX(G30:G53),IF(AND(MAX(G30:G53)<MIN(G30:G53)*-1,MAX(G30:G53)>0),MIN(G30:G53),0)) -> 95 | Q30: =IF(AND(MAX(H30:H53)>MIN(H30:H53)*-1,MIN(H30:H53)<0),MAX(H30:H53),IF(AND(MAX(H30:H53)<MIN(H30:H53)*-1,MAX(H30:H53)>0),MIN(H30:H53),0)) -> 3.454680535
A31: 5 | B31: 2 | C31: =IF(Auswahl_Bundesland="Burgenland",LOOKUP(B31,Dropdown_Bundesland!$F:$F,Dropdown_Bundesland!$G:$G),IF(Auswahl_Bundesland="Kärnten",LOOKUP(B31,Dropdown_Bundesland!$F:$F,Dropdown_Bundesland!$H:$H),IF(AND(Auswahl_Bundesland="Niederösterreich",Auswahl_Jahr<=2016),LOOKUP(B31,Dropdown_Bundesland!$F:$F,Dropdown_Bundesland!$I:$I),IF(AND(Auswahl_Bundesland="Niederösterreich",Auswahl_Jahr>=2017),LOOKUP(B31,Dropdown_Bundesland!$F:$F,Dropdown_Bundesland!$R:$R),IF(Auswahl_Bundesland="Oberösterreich",LOOKUP(B31,Dropdown_Bundesland!$F:$F,Dropdown_Bundesland!$J:$J),IF(Auswahl_Bundesland="Salzburg",LOOKUP(B31,Dropdown_Bundesland!$F:$F,Dropdown_Bundesland!$K:$K),IF(AND(Auswahl_Bundesland="Steiermark",Auswahl_Jahr>2012),LOOKUP(B31,Dropdown_Bundesland!$F:$F,Dropdown_Bundesland!$L:$L),IF(AND(Auswahl_Bundesland="Steiermark",Auswahl_Jahr<2012),LOOKUP(B31,Dropdown_Bundesland!$F:$F,Dropdown_Bundesland!$P:$P),IF(AND(Auswahl_Bundesland="Steiermark",Auswahl_Jahr=2012),LOOKUP(B31,Dropdown_Bundesland!$F:$F,Dropdown_Bundesland!$Q:$Q),IF(Auswahl_Bundesland="Tirol",LOOKUP(B31,Dropdown_Bundesland!$F:$F,Dropdown_Bundesland!$M:$M),IF(Auswahl_Bundesland="Vorarlberg",LOOKUP(B31,Dropdown_Bundesland!$F:$F,Dropdown_Bundesland!$N:$N),IF(Auswahl_Bundesland="Wien",LOOKUP(B31,Dropdown_Bundesland!$F:$F,Dropdown_Bundesland!$O:$O),"")))))))))))) -> Neusiedl am See | D31: =LOOKUP($D$29,$2:$2,4:4) -> 4718 | E31: =LOOKUP($E$29,$2:$2,4:4) -> 4685 | F31: =D31*100/$D$54 -> 21.09263233 | G31: 33 | H31: 0.704375667 | I31: 4.5 | J31: 23000 | K31: =C31 -> Neusiedl am See | L31: =F31 -> 21.09263233 | O31: =IF(M31<>0,M31,NA()) ->  | P31: Min_Veraend_abs | Q31: Min_Veraend_Proz
A32: 6 | B32: 3 | C32: =IF(Auswahl_Bundesland="Burgenland",LOOKUP(B32,Dropdown_Bundesland!$F:$F,Dropdown_Bundesland!$G:$G),IF(Auswahl_Bundesland="Kärnten",LOOKUP(B32,Dropdown_Bundesland!$F:$F,Dropdown_Bundesland!$H:$H),IF(AND(Auswahl_Bundesland="Niederösterreich",Auswahl_Jahr<=2016),LOOKUP(B32,Dropdown_Bundesland!$F:$F,Dropdown_Bundesland!$I:$I),IF(AND(Auswahl_Bundesland="Niederösterreich",Auswahl_Jahr>=2017),LOOKUP(B32,Dropdown_Bundesland!$F:$F,Dropdown_Bundesland!$R:$R),IF(Auswahl_Bundesland="Oberösterreich",LOOKUP(B32,Dropdown_Bundesland!$F:$F,Dropdown_Bundesland!$J:$J),IF(Auswahl_Bundesland="Salzburg",LOOKUP(B32,Dropdown_Bundesland!$F:$F,Dropdown_Bundesland!$K:$K),IF(AND(Auswahl_Bundesland="Steiermark",Auswahl_Jahr>2012),LOOKUP(B32,Dropdown_Bundesland!$F:$F,Dropdown_Bundesland!$L:$L),IF(AND(Auswahl_Bundesland="Steiermark",Auswahl_Jahr<2012),LOOKUP(B32,Dropdown_Bundesland!$F:$F,Dropdown_Bundesland!$P:$P),IF(AND(Auswahl_Bundesland="Steiermark",Auswahl_Jahr=2012),LOOKUP(B32,Dropdown_Bundesland!$F:$F,Dropdown_Bundesland!$Q:$Q),IF(Auswahl_Bundesland="Tirol",LOOKUP(B32,Dropdown_Bundesland!$F:$F,Dropdown_Bundesland!$M:$M),IF(Auswahl_Bundesland="Vorarlberg",LOOKUP(B32,Dropdown_Bundesland!$F:$F,Dropdown_Bundesland!$N:$N),IF(Auswahl_Bundesland="Wien",LOOKUP(B32,Dropdown_Bundesland!$F:$F,Dropdown_Bundesland!$O:$O),"")))))))))))) -> Mattersburg | D32: 2751 | E32: 2662 | F32: 12.29881974 | G32: 89 | H32: 3.343350864 | I32: 3.3 | J32: 19300 | K32: Mattersburg | L32: 12.29881974 | P32: =P30*-1 -> -95 | Q32: =Q30*-1 -> -3.454680535
A33: 7 | B33: 4 | C33: =IF(Auswahl_Bundesland="Burgenland",LOOKUP(B33,Dropdown_Bundesland!$F:$F,Dropdown_Bundesland!$G:$G),IF(Auswahl_Bundesland="Kärnten",LOOKUP(B33,Dropdown_Bundesland!$F:$F,Dropdown_Bundesland!$H:$H),IF(AND(Auswahl_Bundesland="Niederösterreich",Auswahl_Jahr<=2016),LOOKUP(B33,Dropdown_Bundesland!$F:$F,Dropdown_Bundesland!$I:$I),IF(AND(Auswahl_Bundesland="Niederösterreich",Auswahl_Jahr>=2017),LOOKUP(B33,Dropdown_Bundesland!$F:$F,Dropdown_Bundesland!$R:$R),IF(Auswahl_Bundesland="Oberösterreich",LOOKUP(B33,Dropdown_Bundesland!$F:$F,Dropdown_Bundesland!$J:$J),IF(Auswahl_Bundesland="Salzburg",LOOKUP(B33,Dropdown_Bundesland!$F:$F,Dropdown_Bundesland!$K:$K),IF(AND(Auswahl_Bundesland="Steiermark",Auswahl_Jahr>2012),LOOKUP(B33,Dropdown_Bundesland!$F:$F,Dropdown_Bundesland!$L:$L),IF(AND(Auswahl_Bundesland="Steiermark",Auswahl_Jahr<2012),LOOKUP(B33,Dropdown_Bundesland!$F:$F,Dropdown_Bundesland!$P:$P),IF(AND(Auswahl_Bundesland="Steiermark",Auswahl_Jahr=2012),LOOKUP(B33,Dropdown_Bundesland!$F:$F,Dropdown_Bundesland!$Q:$Q),IF(Auswahl_Bundesland="Tirol",LOOKUP(B33,Dropdown_Bundesland!$F:$F,Dropdown_Bundesland!$M:$M),IF(Auswahl_Bundesland="Vorarlberg",LOOKUP(B33,Dropdown_Bundesland!$F:$F,Dropdown_Bundesland!$N:$N),IF(Auswahl_Bundesland="Wien",LOOKUP(B33,Dropdown_Bundesland!$F:$F,Dropdown_Bundesland!$O:$O),"")))))))))))) -> Oberpullendorf | D33: 2785 | E33: 2692 | F33: 12.4508226 | G33: 93 | H33: 3.454680535 | I33: 3.55 | J33: 15000 | K33: Oberpullendorf | L33: 12.4508226 | M33: 93 | N33: 3.454680535 | O33: 93
A34: 8 | B34: 5 | C34: =IF(Auswahl_Bundesland="Burgenland",LOOKUP(B34,Dropdown_Bundesland!$F:$F,Dropdown_Bundesland!$G:$G),IF(Auswahl_Bundesland="Kärnten",LOOKUP(B34,Dropdown_Bundesland!$F:$F,Dropdown_Bundesland!$H:$H),IF(AND(Auswahl_Bundesland="Niederösterreich",Auswahl_Jahr<=2016),LOOKUP(B34,Dropdown_Bundesland!$F:$F,Dropdown_Bundesland!$I:$I),IF(AND(Auswahl_Bundesland="Niederösterreich",Auswahl_Jahr>=2017),LOOKUP(B34,Dropdown_Bundesland!$F:$F,Dropdown_Bundesland!$R:$R),IF(Auswahl_Bundesland="Oberösterreich",LOOKUP(B34,Dropdown_Bundesland!$F:$F,Dropdown_Bundesland!$J:$J),IF(Auswahl_Bundesland="Salzburg",LOOKUP(B34,Dropdown_Bundesland!$F:$F,Dropdown_Bundesland!$K:$K),IF(AND(Auswahl_Bundesland="Steiermark",Auswahl_Jahr>2012),LOOKUP(B34,Dropdown_Bundesland!$F:$F,Dropdown_Bundesland!$L:$L),IF(AND(Auswahl_Bundesland="Steiermark",Auswahl_Jahr<2012),LOOKUP(B34,Dropdown_Bundesland!$F:$F,Dropdown_Bundesland!$P:$P),IF(AND(Auswahl_Bundesland="Steiermark",Auswahl_Jahr=2012),LOOKUP(B34,Dropdown_Bundesland!$F:$F,Dropdown_Bundesland!$Q:$Q),IF(Auswahl_Bundesland="Tirol",LOOKUP(B34,Dropdown_Bundesland!$F:$F,Dropdown_Bundesland!$M:$M),IF(Auswahl_Bundesland="Vorarlberg",LOOKUP(B34,Dropdown_Bundesland!$F:$F,Dropdown_Bundesland!$N:$N),IF(Auswahl_Bundesland="Wien",LOOKUP(B34,Dropdown_Bundesland!$F:$F,Dropdown_Bundesland!$O:$O),"")))))))))))) -> Oberwart | D34: 3942 | E34: 3994 | F34: 17.62339056 | G34: -52 | H34: -1.301952929 | I34: 3 | J34: 10500 | K34: Oberwart | L34: 17.62339056
A35: 9 | B35: 6 | C35: =IF(Auswahl_Bundesland="Burgenland",LOOKUP(B35,Dropdown_Bundesland!$F:$F,Dropdown_Bundesland!$G:$G),IF(Auswahl_Bundesland="Kärnten",LOOKUP(B35,Dropdown_Bundesland!$F:$F,Dropdown_Bundesland!$H:$H),IF(AND(Auswahl_Bundesland="Niederösterreich",Auswahl_Jahr<=2016),LOOKUP(B35,Dropdown_Bundesland!$F:$F,Dropdown_Bundesland!$I:$I),IF(AND(Auswahl_Bundesland="Niederösterreich",Auswahl_Jahr>=2017),LOOKUP(B35,Dropdown_Bundesland!$F:$F,Dropdown_Bundesland!$R:$R),IF(Auswahl_Bundesland="Oberösterreich",LOOKUP(B35,Dropdown_Bundesland!$F:$F,Dropdown_Bundesland!$J:$J),IF(Auswahl_Bundesland="Salzburg",LOOKUP(B35,Dropdown_Bundesland!$F:$F,Dropdown_Bundesland!$K:$K),IF(AND(Auswahl_Bundesland="Steiermark",Auswahl_Jahr>2012),LOOKUP(B35,Dropdown_Bundesland!$F:$F,Dropdown_Bundesland!$L:$L),IF(AND(Auswahl_Bundesland="Steiermark",Auswahl_Jahr<2012),LOOKUP(B35,Dropdown_Bundesland!$F:$F,Dropdown_Bundesland!$P:$P),IF(AND(Auswahl_Bundesland="Steiermark",Auswahl_Jahr=2012),LOOKUP(B35,Dropdown_Bundesland!$F:$F,Dropdown_Bundesland!$Q:$Q),IF(Auswahl_Bundesland="Tirol",LOOKUP(B35,Dropdown_Bundesland!$F:$F,Dropdown_Bundesland!$M:$M),IF(Auswahl_Bundesland="Vorarlberg",LOOKUP(B35,Dropdown_Bundesland!$F:$F,Dropdown_Bundesland!$N:$N),IF(Auswahl_Bundesland="Wien",LOOKUP(B35,Dropdown_Bundesland!$F:$F,Dropdown_Bundesland!$O:$O),"")))))))))))) -> Güssing | D35: 1796 | E35: 1777 | F35: 8.029327611 | G35: 19 | H35: 1.069217783 | I35: 3.1 | J35: 5900 | K35: Güssing | L35: 8.029327611
A36: 10 | B36: 7 | C36: =IF(Auswahl_Bundesland="Burgenland",LOOKUP(B36,Dropdown_Bundesland!$F:$F,Dropdown_Bundesland!$G:$G),IF(Auswahl_Bundesland="Kärnten",LOOKUP(B36,Dropdown_Bundesland!$F:$F,Dropdown_Bundesland!$H:$H),IF(AND(Auswahl_Bundesland="Niederösterreich",Auswahl_Jahr<=2016),LOOKUP(B36,Dropdown_Bundesland!$F:$F,Dropdown_Bundesland!$I:$I),IF(AND(Auswahl_Bundesland="Niederösterreich",Auswahl_Jahr>=2017),LOOKUP(B36,Dropdown_Bundesland!$F:$F,Dropdown_Bundesland!$R:$R),IF(Auswahl_Bundesland="Oberösterreich",LOOKUP(B36,Dropdown_Bundesland!$F:$F,Dropdown_Bundesland!$J:$J),IF(Auswahl_Bundesland="Salzburg",LOOKUP(B36,Dropdown_Bundesland!$F:$F,Dropdown_Bundesland!$K:$K),IF(AND(Auswahl_Bundesland="Steiermark",Auswahl_Jahr>2012),LOOKUP(B36,Dropdown_Bundesland!$F:$F,Dropdown_Bundesland!$L:$L),IF(AND(Auswahl_Bundesland="Steiermark",Auswahl_Jahr<2012),LOOKUP(B36,Dropdown_Bundesland!$F:$F,Dropdown_Bundesland!$P:$P),IF(AND(Auswahl_Bundesland="Steiermark",Auswahl_Jahr=2012),LOOKUP(B36,Dropdown_Bundesland!$F:$F,Dropdown_Bundesland!$Q:$Q),IF(Auswahl_Bundesland="Tirol",LOOKUP(B36,Dropdown_Bundesland!$F:$F,Dropdown_Bundesland!$M:$M),IF(Auswahl_Bundesland="Vorarlberg",LOOKUP(B36,Dropdown_Bundesland!$F:$F,Dropdown_Bundesland!$N:$N),IF(Auswahl_Bundesland="Wien",LOOKUP(B36,Dropdown_Bundesland!$F:$F,Dropdown_Bundesland!$O:$O),"")))))))))))) -> Jennersdorf | D36: 1663 | E36: 1609 | F36: 7.434728183 | G36: 54 | H36: 3.356121815 | I36: 2.82 | J36: 2500 | K36: Jennersdorf | L36: 7.434728183
B37: 8 | C37: =IF(Auswahl_Bundesland="Burgenland",LOOKUP(B37,Dropdown_Bundesland!$F:$F,Dropdown_Bundesland!$G:$G),IF(Auswahl_Bundesland="Kärnten",LOOKUP(B37,Dropdown_Bundesland!$F:$F,Dropdown_Bundesland!$H:$H),IF(AND(Auswahl_Bundesland="Niederösterreich",Auswahl_Jahr<=2016),LOOKUP(B37,Dropdown_Bundesland!$F:$F,Dropdown_Bundesland!$I:$I),IF(AND(Auswahl_Bundesland="Niederösterreich",Auswahl_Jahr>=2017),LOOKUP(B37,Dropdown_Bundesland!$F:$F,Dropdown_Bundesland!$R:$R),IF(Auswahl_Bundesland="Oberösterreich",LOOKUP(B37,Dropdown_Bundesland!$F:$F,Dropdown_Bundesland!$J:$J),IF(Auswahl_Bundesland="Salzburg",LOOKUP(B37,Dropdown_Bundesland!$F:$F,Dropdown_Bundesland!$K:$K),IF(AND(Auswahl_Bundesland="Steiermark",Auswahl_Jahr>2012),LOOKUP(B37,Dropdown_Bundesland!$F:$F,Dropdown_Bundesland!$L:$L),IF(AND(Auswahl_Bundesland="Steiermark",Auswahl_Jahr<2012),LOOKUP(B37,Dropdown_Bundesland!$F:$F,Dropdown_Bundesland!$P:$P),IF(AND(Auswahl_Bundesland="Steiermark",Auswahl_Jahr=2012),LOOKUP(B37,Dropdown_Bundesland!$F:$F,Dropdown_Bundesland!$Q:$Q),IF(Auswahl_Bundesland="Tirol",LOOKUP(B37,Dropdown_Bundesland!$F:$F,Dropdown_Bundesland!$M:$M),IF(Auswahl_Bundesland="Vorarlberg",LOOKUP(B37,Dropdown_Bundesland!$F:$F,Dropdown_Bundesland!$N:$N),IF(Auswahl_Bundesland="Wien",LOOKUP(B37,Dropdown_Bundesland!$F:$F,Dropdown_Bundesland!$O:$O),"")))))))))))) -> 0 | D37: 0 | E37: 0 | F37: 0 | G37: 0 | H37: 0 | K37: 0 | L37: =F37 -> 0
B38: 9 | C38: =IF(Auswahl_Bundesland="Burgenland",LOOKUP(B38,Dropdown_Bundesland!$F:$F,Dropdown_Bundesland!$G:$G),IF(Auswahl_Bundesland="Kärnten",LOOKUP(B38,Dropdown_Bundesland!$F:$F,Dropdown_Bundesland!$H:$H),IF(AND(Auswahl_Bundesland="Niederösterreich",Auswahl_Jahr<=2016),LOOKUP(B38,Dropdown_Bundesland!$F:$F,Dropdown_Bundesland!$I:$I),IF(AND(Auswahl_Bundesland="Niederösterreich",Auswahl_Jahr>=2017),LOOKUP(B38,Dropdown_Bundesland!$F:$F,Dropdown_Bundesland!$R:$R),IF(Auswahl_Bundesland="Oberösterreich",LOOKUP(B38,Dropdown_Bundesland!$F:$F,Dropdown_Bundesland!$J:$J),IF(Auswahl_Bundesland="Salzburg",LOOKUP(B38,Dropdown_Bundesland!$F:$F,Dropdown_Bundesland!$K:$K),IF(AND(Auswahl_Bundesland="Steiermark",Auswahl_Jahr>2012),LOOKUP(B38,Dropdown_Bundesland!$F:$F,Dropdown_Bundesland!$L:$L),IF(AND(Auswahl_Bundesland="Steiermark",Auswahl_Jahr<2012),LOOKUP(B38,Dropdown_Bundesland!$F:$F,Dropdown_Bundesland!$P:$P),IF(AND(Auswahl_Bundesland="Steiermark",Auswahl_Jahr=2012),LOOKUP(B38,Dropdown_Bundesland!$F:$F,Dropdown_Bundesland!$Q:$Q),IF(Auswahl_Bundesland="Tirol",LOOKUP(B38,Dropdown_Bundesland!$F:$F,Dropdown_Bundesland!$M:$M),IF(Auswahl_Bundesland="Vorarlberg",LOOKUP(B38,Dropdown_Bundesland!$F:$F,Dropdown_Bundesland!$N:$N),IF(Auswahl_Bundesland="Wien",LOOKUP(B38,Dropdown_Bundesland!$F:$F,Dropdown_Bundesland!$O:$O),"")))))))))))) -> 0 | D38: 0 | E38: 0 | F38: 0 | G38: 0 | H38: 0 | K38: 0 | L38: 0
B39: 10 | C39: =IF(Auswahl_Bundesland="Burgenland",LOOKUP(B39,Dropdown_Bundesland!$F:$F,Dropdown_Bundesland!$G:$G),IF(Auswahl_Bundesland="Kärnten",LOOKUP(B39,Dropdown_Bundesland!$F:$F,Dropdown_Bundesland!$H:$H),IF(AND(Auswahl_Bundesland="Niederösterreich",Auswahl_Jahr<=2016),LOOKUP(B39,Dropdown_Bundesland!$F:$F,Dropdown_Bundesland!$I:$I),IF(AND(Auswahl_Bundesland="Niederösterreich",Auswahl_Jahr>=2017),LOOKUP(B39,Dropdown_Bundesland!$F:$F,Dropdown_Bundesland!$R:$R),IF(Auswahl_Bundesland="Oberösterreich",LOOKUP(B39,Dropdown_Bundesland!$F:$F,Dropdown_Bundesland!$J:$J),IF(Auswahl_Bundesland="Salzburg",LOOKUP(B39,Dropdown_Bundesland!$F:$F,Dropdown_Bundesland!$K:$K),IF(AND(Auswahl_Bundesland="Steiermark",Auswahl_Jahr>2012),LOOKUP(B39,Dropdown_Bundesland!$F:$F,Dropdown_Bundesland!$L:$L),IF(AND(Auswahl_Bundesland="Steiermark",Auswahl_Jahr<2012),LOOKUP(B39,Dropdown_Bundesland!$F:$F,Dropdown_Bundesland!$P:$P),IF(AND(Auswahl_Bundesland="Steiermark",Auswahl_Jahr=2012),LOOKUP(B39,Dropdown_Bundesland!$F:$F,Dropdown_Bundesland!$Q:$Q),IF(Auswahl_Bundesland="Tirol",LOOKUP(B39,Dropdown_Bundesland!$F:$F,Dropdown_Bundesland!$M:$M),IF(Auswahl_Bundesland="Vorarlberg",LOOKUP(B39,Dropdown_Bundesland!$F:$F,Dropdown_Bundesland!$N:$N),IF(Auswahl_Bundesland="Wien",LOOKUP(B39,Dropdown_Bundesland!$F:$F,Dropdown_Bundesland!$O:$O),"")))))))))))) -> 0 | D39: 0 | E39: 0 | F39: 0 | G39: 0 | H39: 0 | K39: 0 | L39: 0
B40: 11 | C40: =IF(Auswahl_Bundesland="Burgenland",LOOKUP(B40,Dropdown_Bundesland!$F:$F,Dropdown_Bundesland!$G:$G),IF(Auswahl_Bundesland="Kärnten",LOOKUP(B40,Dropdown_Bundesland!$F:$F,Dropdown_Bundesland!$H:$H),IF(AND(Auswahl_Bundesland="Niederösterreich",Auswahl_Jahr<=2016),LOOKUP(B40,Dropdown_Bundesland!$F:$F,Dropdown_Bundesland!$I:$I),IF(AND(Auswahl_Bundesland="Niederösterreich",Auswahl_Jahr>=2017),LOOKUP(B40,Dropdown_Bundesland!$F:$F,Dropdown_Bundesland!$R:$R),IF(Auswahl_Bundesland="Oberösterreich",LOOKUP(B40,Dropdown_Bundesland!$F:$F,Dropdown_Bundesland!$J:$J),IF(Auswahl_Bundesland="Salzburg",LOOKUP(B40,Dropdown_Bundesland!$F:$F,Dropdown_Bundesland!$K:$K),IF(AND(Auswahl_Bundesland="Steiermark",Auswahl_Jahr>2012),LOOKUP(B40,Dropdown_Bundesland!$F:$F,Dropdown_Bundesland!$L:$L),IF(AND(Auswahl_Bundesland="Steiermark",Auswahl_Jahr<2012),LOOKUP(B40,Dropdown_Bundesland!$F:$F,Dropdown_Bundesland!$P:$P),IF(AND(Auswahl_Bundesland="Steiermark",Auswahl_Jahr=2012),LOOKUP(B40,Dropdown_Bundesland!$F:$F,Dropdown_Bundesland!$Q:$Q),IF(Auswahl_Bundesland="Tirol",LOOKUP(B40,Dropdown_Bundesland!$F:$F,Dropdown_Bundesland!$M:$M),IF(Auswahl_Bundesland="Vorarlberg",LOOKUP(B40,Dropdown_Bundesland!$F:$F,Dropdown_Bundesland!$N:$N),IF(Auswahl_Bundesland="Wien",LOOKUP(B40,Dropdown_Bundesland!$F:$F,Dropdown_Bundesland!$O:$O),"")))))))))))) -> 0 | D40: 0 | E40: 0 | F40: 0 | G40: 0 | H40: 0 | K40: 0 | L40: 0
B41: 12 | C41: =IF(Auswahl_Bundesland="Burgenland",LOOKUP(B41,Dropdown_Bundesland!$F:$F,Dropdown_Bundesland!$G:$G),IF(Auswahl_Bundesland="Kärnten",LOOKUP(B41,Dropdown_Bundesland!$F:$F,Dropdown_Bundesland!$H:$H),IF(AND(Auswahl_Bundesland="Niederösterreich",Auswahl_Jahr<=2016),LOOKUP(B41,Dropdown_Bundesland!$F:$F,Dropdown_Bundesland!$I:$I),IF(AND(Auswahl_Bundesland="Niederösterreich",Auswahl_Jahr>=2017),LOOKUP(B41,Dropdown_Bundesland!$F:$F,Dropdown_Bundesland!$R:$R),IF(Auswahl_Bundesland="Oberösterreich",LOOKUP(B41,Dropdown_Bundesland!$F:$F,Dropdown_Bundesland!$J:$J),IF(Auswahl_Bundesland="Salzburg",LOOKUP(B41,Dropdown_Bundesland!$F:$F,Dropdown_Bundesland!$K:$K),IF(AND(Auswahl_Bundesland="Steiermark",Auswahl_Jahr>2012),LOOKUP(B41,Dropdown_Bundesland!$F:$F,Dropdown_Bundesland!$L:$L),IF(AND(Auswahl_Bundesland="Steiermark",Auswahl_Jahr<2012),LOOKUP(B41,Dropdown_Bundesland!$F:$F,Dropdown_Bundesland!$P:$P),IF(AND(Auswahl_Bundesland="Steiermark",Auswahl_Jahr=2012),LOOKUP(B41,Dropdown_Bundesland!$F:$F,Dropdown_Bundesland!$Q:$Q),IF(Auswahl_Bundesland="Tirol",LOOKUP(B41,Dropdown_Bundesland!$F:$F,Dropdown_Bundesland!$M:$M),IF(Auswahl_Bundesland="Vorarlberg",LOOKUP(B41,Dropdown_Bundesland!$F:$F,Dropdown_Bundesland!$N:$N),IF(Auswahl_Bundesland="Wien",LOOKUP(B41,Dropdown_Bundesland!$F:$F,Dropdown_Bundesland!$O:$O),"")))))))))))) -> 0 | D41: 0 | E41: 0 | F41: 0 | G41: 0 | H41: 0 | K41: 0 | L41: 0
B42: 13 | C42: =IF(Auswahl_Bundesland="Burgenland",LOOKUP(B42,Dropdown_Bundesland!$F:$F,Dropdown_Bundesland!$G:$G),IF(Auswahl_Bundesland="Kärnten",LOOKUP(B42,Dropdown_Bundesland!$F:$F,Dropdown_Bundesland!$H:$H),IF(AND(Auswahl_Bundesland="Niederösterreich",Auswahl_Jahr<=2016),LOOKUP(B42,Dropdown_Bundesland!$F:$F,Dropdown_Bundesland!$I:$I),IF(AND(Auswahl_Bundesland="Niederösterreich",Auswahl_Jahr>=2017),LOOKUP(B42,Dropdown_Bundesland!$F:$F,Dropdown_Bundesland!$R:$R),IF(Auswahl_Bundesland="Oberösterreich",LOOKUP(B42,Dropdown_Bundesland!$F:$F,Dropdown_Bundesland!$J:$J),IF(Auswahl_Bundesland="Salzburg",LOOKUP(B42,Dropdown_Bundesland!$F:$F,Dropdown_Bundesland!$K:$K),IF(AND(Auswahl_Bundesland="Steiermark",Auswahl_Jahr>2012),LOOKUP(B42,Dropdown_Bundesland!$F:$F,Dropdown_Bundesland!$L:$L),IF(AND(Auswahl_Bundesland="Steiermark",Auswahl_Jahr<2012),LOOKUP(B42,Dropdown_Bundesland!$F:$F,Dropdown_Bundesland!$P:$P),IF(AND(Auswahl_Bundesland="Steiermark",Auswahl_Jahr=2012),LOOKUP(B42,Dropdown_Bundesland!$F:$F,Dropdown_Bundesland!$Q:$Q),IF(Auswahl_Bundesland="Tirol",LOOKUP(B42,Dropdown_Bundesland!$F:$F,Dropdown_Bundesland!$M:$M),IF(Auswahl_Bundesland="Vorarlberg",LOOKUP(B42,Dropdown_Bundesland!$F:$F,Dropdown_Bundesland!$N:$N),IF(Auswahl_Bundesland="Wien",LOOKUP(B42,Dropdown_Bundesland!$F:$F,Dropdown_Bundesland!$O:$O),"")))))))))))) -> 0 | D42: 0 | E42: 0 | F42: 0 | G42: 0 | H42: 0 | K42: 0 | L42: 0
B43: 14 | C43: =IF(Auswahl_Bundesland="Burgenland",LOOKUP(B43,Dropdown_Bundesland!$F:$F,Dropdown_Bundesland!$G:$G),IF(Auswahl_Bundesland="Kärnten",LOOKUP(B43,Dropdown_Bundesland!$F:$F,Dropdown_Bundesland!$H:$H),IF(AND(Auswahl_Bundesland="Niederösterreich",Auswahl_Jahr<=2016),LOOKUP(B43,Dropdown_Bundesland!$F:$F,Dropdown_Bundesland!$I:$I),IF(AND(Auswahl_Bundesland="Niederösterreich",Auswahl_Jahr>=2017),LOOKUP(B43,Dropdown_Bundesland!$F:$F,Dropdown_Bundesland!$R:$R),IF(Auswahl_Bundesland="Oberösterreich",LOOKUP(B43,Dropdown_Bundesland!$F:$F,Dropdown_Bundesland!$J:$J),IF(Auswahl_Bundesland="Salzburg",LOOKUP(B43,Dropdown_Bundesland!$F:$F,Dropdown_Bundesland!$K:$K),IF(AND(Auswahl_Bundesland="Steiermark",Auswahl_Jahr>2012),LOOKUP(B43,Dropdown_Bundesland!$F:$F,Dropdown_Bundesland!$L:$L),IF(AND(Auswahl_Bundesland="Steiermark",Auswahl_Jahr<2012),LOOKUP(B43,Dropdown_Bundesland!$F:$F,Dropdown_Bundesland!$P:$P),IF(AND(Auswahl_Bundesland="Steiermark",Auswahl_Jahr=2012),LOOKUP(B43,Dropdown_Bundesland!$F:$F,Dropdown_Bundesland!$Q:$Q),IF(Auswahl_Bundesland="Tirol",LOOKUP(B43,Dropdown_Bundesland!$F:$F,Dropdown_Bundesland!$M:$M),IF(Auswahl_Bundesland="Vorarlberg",LOOKUP(B43,Dropdown_Bundesland!$F:$F,Dropdown_Bundesland!$N:$N),IF(Auswahl_Bundesland="Wien",LOOKUP(B43,Dropdown_Bundesland!$F:$F,Dropdown_Bundesland!$O:$O),"")))))))))))) -> 0 | D43: 0 | E43: 0 | F43: 0 | G43: 0 | H43: 0 | K43: 0 | L43: 0
B44: 15 | C44: =IF(Auswahl_Bundesland="Burgenland",LOOKUP(B44,Dropdown_Bundesland!$F:$F,Dropdown_Bundesland!$G:$G),IF(Auswahl_Bundesland="Kärnten",LOOKUP(B44,Dropdown_Bundesland!$F:$F,Dropdown_Bundesland!$H:$H),IF(AND(Auswahl_Bundesland="Niederösterreich",Auswahl_Jahr<=2016),LOOKUP(B44,Dropdown_Bundesland!$F:$F,Dropdown_Bundesland!$I:$I),IF(AND(Auswahl_Bundesland="Niederösterreich",Auswahl_Jahr>=2017),LOOKUP(B44,Dropdown_Bundesland!$F:$F,Dropdown_Bundesland!$R:$R),IF(Auswahl_Bundesland="Oberösterreich",LOOKUP(B44,Dropdown_Bundesland!$F:$F,Dropdown_Bundesland!$J:$J),IF(Auswahl_Bundesland="Salzburg",LOOKUP(B44,Dropdown_Bundesland!$F:$F,Dropdown_Bundesland!$K:$K),IF(AND(Auswahl_Bundesland="Steiermark",Auswahl_Jahr>2012),LOOKUP(B44,Dropdown_Bundesland!$F:$F,Dropdown_Bundesland!$L:$L),IF(AND(Auswahl_Bundesland="Steiermark",Auswahl_Jahr<2012),LOOKUP(B44,Dropdown_Bundesland!$F:$F,Dropdown_Bundesland!$P:$P),IF(AND(Auswahl_Bundesland="Steiermark",Auswahl_Jahr=2012),LOOKUP(B44,Dropdown_Bundesland!$F:$F,Dropdown_Bundesland!$Q:$Q),IF(Auswahl_Bundesland="Tirol",LOOKUP(B44,Dropdown_Bundesland!$F:$F,Dropdown_Bundesland!$M:$M),IF(Auswahl_Bundesland="Vorarlberg",LOOKUP(B44,Dropdown_Bundesland!$F:$F,Dropdown_Bundesland!$N:$N),IF(Auswahl_Bundesland="Wien",LOOKUP(B44,Dropdown_Bundesland!$F:$F,Dropdown_Bundesland!$O:$O),"")))))))))))) -> 0 | D44: 0 | E44: 0 | F44: 0 | G44: 0 | H44: 0 | K44: 0 | L44: 0
B45: 16 | C45: =IF(Auswahl_Bundesland="Burgenland",LOOKUP(B45,Dropdown_Bundesland!$F:$F,Dropdown_Bundesland!$G:$G),IF(Auswahl_Bundesland="Kärnten",LOOKUP(B45,Dropdown_Bundesland!$F:$F,Dropdown_Bundesland!$H:$H),IF(AND(Auswahl_Bundesland="Niederösterreich",Auswahl_Jahr<=2016),LOOKUP(B45,Dropdown_Bundesland!$F:$F,Dropdown_Bundesland!$I:$I),IF(AND(Auswahl_Bundesland="Niederösterreich",Auswahl_Jahr>=2017),LOOKUP(B45,Dropdown_Bundesland!$F:$F,Dropdown_Bundesland!$R:$R),IF(Auswahl_Bundesland="Oberösterreich",LOOKUP(B45,Dropdown_Bundesland!$F:$F,Dropdown_Bundesland!$J:$J),IF(Auswahl_Bundesland="Salzburg",LOOKUP(B45,Dropdown_Bundesland!$F:$F,Dropdown_Bundesland!$K:$K),IF(AND(Auswahl_Bundesland="Steiermark",Auswahl_Jahr>2012),LOOKUP(B45,Dropdown_Bundesland!$F:$F,Dropdown_Bundesland!$L:$L),IF(AND(Auswahl_Bundesland="Steiermark",Auswahl_Jahr<2012),LOOKUP(B45,Dropdown_Bundesland!$F:$F,Dropdown_Bundesland!$P:$P),IF(AND(Auswahl_Bundesland="Steiermark",Auswahl_Jahr=2012),LOOKUP(B45,Dropdown_Bundesland!$F:$F,Dropdown_Bundesland!$Q:$Q),IF(Auswahl_Bundesland="Tirol",LOOKUP(B45,Dropdown_Bundesland!$F:$F,Dropdown_Bundesland!$M:$M),IF(Auswahl_Bundesland="Vorarlberg",LOOKUP(B45,Dropdown_Bundesland!$F:$F,Dropdown_Bundesland!$N:$N),IF(Auswahl_Bundesland="Wien",LOOKUP(B45,Dropdown_Bundesland!$F:$F,Dropdown_Bundesland!$O:$O),"")))))))))))) -> 0 | D45: 0 | E45: 0 | F45: 0 | G45: 0 | H45: 0 | K45: 0 | L45: 0
B46: 17 | C46: =IF(Auswahl_Bundesland="Burgenland",LOOKUP(B46,Dropdown_Bundesland!$F:$F,Dropdown_Bundesland!$G:$G),IF(Auswahl_Bundesland="Kärnten",LOOKUP(B46,Dropdown_Bundesland!$F:$F,Dropdown_Bundesland!$H:$H),IF(AND(Auswahl_Bundesland="Niederösterreich",Auswahl_Jahr<=2016),LOOKUP(B46,Dropdown_Bundesland!$F:$F,Dropdown_Bundesland!$I:$I),IF(AND(Auswahl_Bundesland="Niederösterreich",Auswahl_Jahr>=2017),LOOKUP(B46,Dropdown_Bundesland!$F:$F,Dropdown_Bundesland!$R:$R),IF(Auswahl_Bundesland="Oberösterreich",LOOKUP(B46,Dropdown_Bundesland!$F:$F,Dropdown_Bundesland!$J:$J),IF(Auswahl_Bundesland="Salzburg",LOOKUP(B46,Dropdown_Bundesland!$F:$F,Dropdown_Bundesland!$K:$K),IF(AND(Auswahl_Bundesland="Steiermark",Auswahl_Jahr>2012),LOOKUP(B46,Dropdown_Bundesland!$F:$F,Dropdown_Bundesland!$L:$L),IF(AND(Auswahl_Bundesland="Steiermark",Auswahl_Jahr<2012),LOOKUP(B46,Dropdown_Bundesland!$F:$F,Dropdown_Bundesland!$P:$P),IF(AND(Auswahl_Bundesland="Steiermark",Auswahl_Jahr=2012),LOOKUP(B46,Dropdown_Bundesland!$F:$F,Dropdown_Bundesland!$Q:$Q),IF(Auswahl_Bundesland="Tirol",LOOKUP(B46,Dropdown_Bundesland!$F:$F,Dropdown_Bundesland!$M:$M),IF(Auswahl_Bundesland="Vorarlberg",LOOKUP(B46,Dropdown_Bundesland!$F:$F,Dropdown_Bundesland!$N:$N),IF(Auswahl_Bundesland="Wien",LOOKUP(B46,Dropdown_Bundesland!$F:$F,Dropdown_Bundesland!$O:$O),"")))))))))))) -> 0 | D46: 0 | E46: 0 | F46: 0 | G46: 0 | H46: 0 | K46: 0 | L46: 0
B47: 18 | C47: =IF(Auswahl_Bundesland="Burgenland",LOOKUP(B47,Dropdown_Bundesland!$F:$F,Dropdown_Bundesland!$G:$G),IF(Auswahl_Bundesland="Kärnten",LOOKUP(B47,Dropdown_Bundesland!$F:$F,Dropdown_Bundesland!$H:$H),IF(AND(Auswahl_Bundesland="Niederösterreich",Auswahl_Jahr<=2016),LOOKUP(B47,Dropdown_Bundesland!$F:$F,Dropdown_Bundesland!$I:$I),IF(AND(Auswahl_Bundesland="Niederösterreich",Auswahl_Jahr>=2017),LOOKUP(B47,Dropdown_Bundesland!$F:$F,Dropdown_Bundesland!$R:$R),IF(Auswahl_Bundesland="Oberösterreich",LOOKUP(B47,Dropdown_Bundesland!$F:$F,Dropdown_Bundesland!$J:$J),IF(Auswahl_Bundesland="Salzburg",LOOKUP(B47,Dropdown_Bundesland!$F:$F,Dropdown_Bundesland!$K:$K),IF(AND(Auswahl_Bundesland="Steiermark",Auswahl_Jahr>2012),LOOKUP(B47,Dropdown_Bundesland!$F:$F,Dropdown_Bundesland!$L:$L),IF(AND(Auswahl_Bundesland="Steiermark",Auswahl_Jahr<2012),LOOKUP(B47,Dropdown_Bundesland!$F:$F,Dropdown_Bundesland!$P:$P),IF(AND(Auswahl_Bundesland="Steiermark",Auswahl_Jahr=2012),LOOKUP(B47,Dropdown_Bundesland!$F:$F,Dropdown_Bundesland!$Q:$Q),IF(Auswahl_Bundesland="Tirol",LOOKUP(B47,Dropdown_Bundesland!$F:$F,Dropdown_Bundesland!$M:$M),IF(Auswahl_Bundesland="Vorarlberg",LOOKUP(B47,Dropdown_Bundesland!$F:$F,Dropdown_Bundesland!$N:$N),IF(Auswahl_Bundesland="Wien",LOOKUP(B47,Dropdown_Bundesland!$F:$F,Dropdown_Bundesland!$O:$O),"")))))))))))) -> 0 | D47: 0 | E47: 0 | F47: 0 | G47: 0 | H47: 0 | K47: 0 | L47: 0
B48: 19 | C48: =IF(Auswahl_Bundesland="Burgenland",LOOKUP(B48,Dropdown_Bundesland!$F:$F,Dropdown_Bundesland!$G:$G),IF(Auswahl_Bundesland="Kärnten",LOOKUP(B48,Dropdown_Bundesland!$F:$F,Dropdown_Bundesland!$H:$H),IF(AND(Auswahl_Bundesland="Niederösterreich",Auswahl_Jahr<=2016),LOOKUP(B48,Dropdown_Bundesland!$F:$F,Dropdown_Bundesland!$I:$I),IF(AND(Auswahl_Bundesland="Niederösterreich",Auswahl_Jahr>=2017),LOOKUP(B48,Dropdown_Bundesland!$F:$F,Dropdown_Bundesland!$R:$R),IF(Auswahl_Bundesland="Oberösterreich",LOOKUP(B48,Dropdown_Bundesland!$F:$F,Dropdown_Bundesland!$J:$J),IF(Auswahl_Bundesland="Salzburg",LOOKUP(B48,Dropdown_Bundesland!$F:$F,Dropdown_Bundesland!$K:$K),IF(AND(Auswahl_Bundesland="Steiermark",Auswahl_Jahr>2012),LOOKUP(B48,Dropdown_Bundesland!$F:$F,Dropdown_Bundesland!$L:$L),IF(AND(Auswahl_Bundesland="Steiermark",Auswahl_Jahr<2012),LOOKUP(B48,Dropdown_Bundesland!$F:$F,Dropdown_Bundesland!$P:$P),IF(AND(Auswahl_Bundesland="Steiermark",Auswahl_Jahr=2012),LOOKUP(B48,Dropdown_Bundesland!$F:$F,Dropdown_Bundesland!$Q:$Q),IF(Auswahl_Bundesland="Tirol",LOOKUP(B48,Dropdown_Bundesland!$F:$F,Dropdown_Bundesland!$M:$M),IF(Auswahl_Bundesland="Vorarlberg",LOOKUP(B48,Dropdown_Bundesland!$F:$F,Dropdown_Bundesland!$N:$N),IF(Auswahl_Bundesland="Wien",LOOKUP(B48,Dropdown_Bundesland!$F:$F,Dropdown_Bundesland!$O:$O),"")))))))))))) -> 0 | D48: 0 | E48: 0 | F48: 0 | G48: 0 | H48: 0 | K48: 0 | L48: 0
B49: 20 | C49: =IF(Auswahl_Bundesland="Burgenland",LOOKUP(B49,Dropdown_Bundesland!$F:$F,Dropdown_Bundesland!$G:$G),IF(Auswahl_Bundesland="Kärnten",LOOKUP(B49,Dropdown_Bundesland!$F:$F,Dropdown_Bundesland!$H:$H),IF(AND(Auswahl_Bundesland="Niederösterreich",Auswahl_Jahr<=2016),LOOKUP(B49,Dropdown_Bundesland!$F:$F,Dropdown_Bundesland!$I:$I),IF(AND(Auswahl_Bundesland="Niederösterreich",Auswahl_Jahr>=2017),LOOKUP(B49,Dropdown_Bundesland!$F:$F,Dropdown_Bundesland!$R:$R),IF(Auswahl_Bundesland="Oberösterreich",LOOKUP(B49,Dropdown_Bundesland!$F:$F,Dropdown_Bundesland!$J:$J),IF(Auswahl_Bundesland="Salzburg",LOOKUP(B49,Dropdown_Bundesland!$F:$F,Dropdown_Bundesland!$K:$K),IF(AND(Auswahl_Bundesland="Steiermark",Auswahl_Jahr>2012),LOOKUP(B49,Dropdown_Bundesland!$F:$F,Dropdown_Bundesland!$L:$L),IF(AND(Auswahl_Bundesland="Steiermark",Auswahl_Jahr<2012),LOOKUP(B49,Dropdown_Bundesland!$F:$F,Dropdown_Bundesland!$P:$P),IF(AND(Auswahl_Bundesland="Steiermark",Auswahl_Jahr=2012),LOOKUP(B49,Dropdown_Bundesland!$F:$F,Dropdown_Bundesland!$Q:$Q),IF(Auswahl_Bundesland="Tirol",LOOKUP(B49,Dropdown_Bundesland!$F:$F,Dropdown_Bundesland!$M:$M),IF(Auswahl_Bundesland="Vorarlberg",LOOKUP(B49,Dropdown_Bundesland!$F:$F,Dropdown_Bundesland!$N:$N),IF(Auswahl_Bundesland="Wien",LOOKUP(B49,Dropdown_Bundesland!$F:$F,Dropdown_Bundesland!$O:$O),"")))))))))))) -> 0 | D49: 0 | E49: 0 | F49: 0 | G49: 0 | H49: 0 | K49: 0 | L49: 0
B50: 21 | C50: =IF(Auswahl_Bundesland="Burgenland",LOOKUP(B50,Dropdown_Bundesland!$F:$F,Dropdown_Bundesland!$G:$G),IF(Auswahl_Bundesland="Kärnten",LOOKUP(B50,Dropdown_Bundesland!$F:$F,Dropdown_Bundesland!$H:$H),IF(AND(Auswahl_Bundesland="Niederösterreich",Auswahl_Jahr<=2016),LOOKUP(B50,Dropdown_Bundesland!$F:$F,Dropdown_Bundesland!$I:$I),IF(AND(Auswahl_Bundesland="Niederösterreich",Auswahl_Jahr>=2017),LOOKUP(B50,Dropdown_Bundesland!$F:$F,Dropdown_Bundesland!$R:$R),IF(Auswahl_Bundesland="Oberösterreich",LOOKUP(B50,Dropdown_Bundesland!$F:$F,Dropdown_Bundesland!$J:$J),IF(Auswahl_Bundesland="Salzburg",LOOKUP(B50,Dropdown_Bundesland!$F:$F,Dropdown_Bundesland!$K:$K),IF(AND(Auswahl_Bundesland="Steiermark",Auswahl_Jahr>2012),LOOKUP(B50,Dropdown_Bundesland!$F:$F,Dropdown_Bundesland!$L:$L),IF(AND(Auswahl_Bundesland="Steiermark",Auswahl_Jahr<2012),LOOKUP(B50,Dropdown_Bundesland!$F:$F,Dropdown_Bundesland!$P:$P),IF(AND(Auswahl_Bundesland="Steiermark",Auswahl_Jahr=2012),LOOKUP(B50,Dropdown_Bundesland!$F:$F,Dropdown_Bundesland!$Q:$Q),IF(Auswahl_Bundesland="Tirol",LOOKUP(B50,Dropdown_Bundesland!$F:$F,Dropdown_Bundesland!$M:$M),IF(Auswahl_Bundesland="Vorarlberg",LOOKUP(B50,Dropdown_Bundesland!$F:$F,Dropdown_Bundesland!$N:$N),IF(Auswahl_Bundesland="Wien",LOOKUP(B50,Dropdown_Bundesland!$F:$F,Dropdown_Bundesland!$O:$O),"")))))))))))) -> 0 | D50: 0 | E50: 0 | F50: 0 | G50: 0 | H50: 0 | K50: 0 | L50: 0
B51: 22 | C51: =IF(Auswahl_Bundesland="Burgenland",LOOKUP(B51,Dropdown_Bundesland!$F:$F,Dropdown_Bundesland!$G:$G),IF(Auswahl_Bundesland="Kärnten",LOOKUP(B51,Dropdown_Bundesland!$F:$F,Dropdown_Bundesland!$H:$H),IF(AND(Auswahl_Bundesland="Niederösterreich",Auswahl_Jahr<=2016),LOOKUP(B51,Dropdown_Bundesland!$F:$F,Dropdown_Bundesland!$I:$I),IF(AND(Auswahl_Bundesland="Niederösterreich",Auswahl_Jahr>=2017),LOOKUP(B51,Dropdown_Bundesland!$F:$F,Dropdown_Bundesland!$R:$R),IF(Auswahl_Bundesland="Oberösterreich",LOOKUP(B51,Dropdown_Bundesland!$F:$F,Dropdown_Bundesland!$J:$J),IF(Auswahl_Bundesland="Salzburg",LOOKUP(B51,Dropdown_Bundesland!$F:$F,Dropdown_Bundesland!$K:$K),IF(AND(Auswahl_Bundesland="Steiermark",Auswahl_Jahr>2012),LOOKUP(B51,Dropdown_Bundesland!$F:$F,Dropdown_Bundesland!$L:$L),IF(AND(Auswahl_Bundesland="Steiermark",Auswahl_Jahr<2012),LOOKUP(B51,Dropdown_Bundesland!$F:$F,Dropdown_Bundesland!$P:$P),IF(AND(Auswahl_Bundesland="Steiermark",Auswahl_Jahr=2012),LOOKUP(B51,Dropdown_Bundesland!$F:$F,Dropdown_Bundesland!$Q:$Q),IF(Auswahl_Bundesland="Tirol",LOOKUP(B51,Dropdown_Bundesland!$F:$F,Dropdown_Bundesland!$M:$M),IF(Auswahl_Bundesland="Vorarlberg",LOOKUP(B51,Dropdown_Bundesland!$F:$F,Dropdown_Bundesland!$N:$N),IF(Auswahl_Bundesland="Wien",LOOKUP(B51,Dropdown_Bundesland!$F:$F,Dropdown_Bundesland!$O:$O),"")))))))))))) -> 0 | D51: 0 | E51: 0 | F51: 0 | G51: 0 | H51: 0 | K51: 0 | L51: 0
B52: 23 | C52: =IF(Auswahl_Bundesland="Burgenland",LOOKUP(B52,Dropdown_Bundesland!$F:$F,Dropdown_Bundesland!$G:$G),IF(Auswahl_Bundesland="Kärnten",LOOKUP(B52,Dropdown_Bundesland!$F:$F,Dropdown_Bundesland!$H:$H),IF(AND(Auswahl_Bundesland="Niederösterreich",Auswahl_Jahr<=2016),LOOKUP(B52,Dropdown_Bundesland!$F:$F,Dropdown_Bundesland!$I:$I),IF(AND(Auswahl_Bundesland="Niederösterreich",Auswahl_Jahr>=2017),LOOKUP(B52,Dropdown_Bundesland!$F:$F,Dropdown_Bundesland!$R:$R),IF(Auswahl_Bundesland="Oberösterreich",LOOKUP(B52,Dropdown_Bundesland!$F:$F,Dropdown_Bundesland!$J:$J),IF(Auswahl_Bundesland="Salzburg",LOOKUP(B52,Dropdown_Bundesland!$F:$F,Dropdown_Bundesland!$K:$K),IF(AND(Auswahl_Bundesland="Steiermark",Auswahl_Jahr>2012),LOOKUP(B52,Dropdown_Bundesland!$F:$F,Dropdown_Bundesland!$L:$L),IF(AND(Auswahl_Bundesland="Steiermark",Auswahl_Jahr<2012),LOOKUP(B52,Dropdown_Bundesland!$F:$F,Dropdown_Bundesland!$P:$P),IF(AND(Auswahl_Bundesland="Steiermark",Auswahl_Jahr=2012),LOOKUP(B52,Dropdown_Bundesland!$F:$F,Dropdown_Bundesland!$Q:$Q),IF(Auswahl_Bundesland="Tirol",LOOKUP(B52,Dropdown_Bundesland!$F:$F,Dropdown_Bundesland!$M:$M),IF(Auswahl_Bundesland="Vorarlberg",LOOKUP(B52,Dropdown_Bundesland!$F:$F,Dropdown_Bundesland!$N:$N),IF(Auswahl_Bundesland="Wien",LOOKUP(B52,Dropdown_Bundesland!$F:$F,Dropdown_Bundesland!$O:$O),"")))))))))))) -> 0 | D52: 0 | E52: 0 | F52: 0 | G52: 0 | H52: 0 | K52: 0 | L52: 0
B53: 24 | C53: =IF(Auswahl_Bundesland="Burgenland",LOOKUP(B53,Dropdown_Bundesland!$F:$F,Dropdown_Bundesland!$G:$G),IF(Auswahl_Bundesland="Kärnten",LOOKUP(B53,Dropdown_Bundesland!$F:$F,Dropdown_Bundesland!$H:$H),IF(AND(Auswahl_Bundesland="Niederösterreich",Auswahl_Jahr<=2016),LOOKUP(B53,Dropdown_Bundesland!$F:$F,Dropdown_Bundesland!$I:$I),IF(AND(Auswahl_Bundesland="Niederösterreich",Auswahl_Jahr>=2017),LOOKUP(B53,Dropdown_Bundesland!$F:$F,Dropdown_Bundesland!$R:$R),IF(Auswahl_Bundesland="Oberösterreich",LOOKUP(B53,Dropdown_Bundesland!$F:$F,Dropdown_Bundesland!$J:$J),IF(Auswahl_Bundesland="Salzburg",LOOKUP(B53,Dropdown_Bundesland!$F:$F,Dropdown_Bundesland!$K:$K),IF(AND(Auswahl_Bundesland="Steiermark",Auswahl_Jahr>2012),LOOKUP(B53,Dropdown_Bundesland!$F:$F,Dropdown_Bundesland!$L:$L),IF(AND(Auswahl_Bundesland="Steiermark",Auswahl_Jahr<2012),LOOKUP(B53,Dropdown_Bundesland!$F:$F,Dropdown_Bundesland!$P:$P),IF(AND(Auswahl_Bundesland="Steiermark",Auswahl_Jahr=2012),LOOKUP(B53,Dropdown_Bundesland!$F:$F,Dropdown_Bundesland!$Q:$Q),IF(Auswahl_Bundesland="Tirol",LOOKUP(B53,Dropdown_Bundesland!$F:$F,Dropdown_Bundesland!$M:$M),IF(Auswahl_Bundesland="Vorarlberg",LOOKUP(B53,Dropdown_Bundesland!$F:$F,Dropdown_Bundesland!$N:$N),IF(Auswahl_Bundesland="Wien",LOOKUP(B53,Dropdown_Bundesland!$F:$F,Dropdown_Bundesland!$O:$O),"")))))))))))) -> 0 | D53: 0 | E53: 0 | F53: 0 | G53: 0 | H53: 0 | K53: 0 | L53: 0
C54: =Auswahl_Bundesland -> Burgenland | D54: =SUM(D30:D53) -> 22368 | E54: =SUM(E30:E53) -> 22037 | F54: =D54*100/$D$54 -> 100 | G54: =IF(ISERROR(IF(Auswahl_Jahr<2002,0,TEXT(D54-E54,"#.###"))),IF(Auswahl_Jahr<2002,0,TEXT(D54-E54,"# ###")),IF(Auswahl_Jahr<2002,0,TEXT(D54-E54,"#.###"))) -> 331 | H54: =IF(Auswahl_Jahr<2002,0,TEXT((D54*100/E54)-100,"##0,0")) -> 1,5
C56: =Auswahl_Bezirk -> Oberpullendorf | D56: =VLOOKUP($C$56,$C$30:$J$53,2,FALSE) -> 2785 | E56: =VLOOKUP($C$56,$C$30:$J$53,3,FALSE) -> 2692 | F56: =TEXT(VLOOKUP($C$56,$C$30:$J$53,4,FALSE),"##0,0") -> 12,5 | G56: =IF(ISERROR(TEXT(VLOOKUP($C$56,$C$30:$J$53,5,FALSE),"#.###")),TEXT(VLOOKUP($C$56,$C$30:$J$53,5,FALSE),"# ###"),TEXT(VLOOKUP($C$56,$C$30:$J$53,5,FALSE),"#.###")) -> 93 | H56: =TEXT(VLOOKUP($C$56,$C$30:$J$53,6,FALSE),"##0,0") -> 3,5 | I56: =VLOOKUP($C$56,$C$30:$J$53,7,FALSE) -> 3.55 | J56: =VLOOKUP($C$56,$C$30:$J$53,8,FALSE) -> 15000
B59: =Auswahl_Bezirk -> Oberpullendorf | C59: =VLOOKUP(Auswahl_Bezirk,$K$30:$L$53,2,FALSE) -> 12.4508226 | F59: =Auswahl_Bezirk -> Oberpullendorf | G59: =VLOOKUP(Auswahl_Bezirk,$K$30:$L$53,2,FALSE) -> 12.4508226 | I59: =RANK(K59,L30:L53) -> 4 | J59: =Auswahl_Bezirk -> Oberpullendorf | K59: =VLOOKUP(Auswahl_Bezirk,$K$30:$L$53,2,FALSE) -> 12.4508226 | L59: 1
A60: =I60 -> 1 | B60: =INDEX($K$30:$L$53,MATCH(LARGE($L$30:$L$53,A60),$L$30:$L$53,0),1) -> Neusiedl am See | C60: =INDEX($K$30:$L$53,MATCH(LARGE($L$30:$L$53,A60),$L$30:$L$53,0),2) -> 21.09263233 | E60: =I60 -> 1 | F60: =INDEX($K$30:$L$53,MATCH(LARGE($L$30:$L$53,E60),$L$30:$L$53,0),1) -> Neusiedl am See | G60: =INDEX($K$30:$L$53,MATCH(LARGE($L$30:$L$53,E60),$L$30:$L$53,0),2) -> 21.09263233 | I60: =IF(L59<$I$59,L59,L59+1) -> 1 | L60: 2
A61: =I61 -> 2 | B61: Eisenstadt-Umgebung | C61: 21.07027897 | E61: =I61 -> 2 | F61: Eisenstadt-Umgebung | G61: 21.07027897 | I61: =IF(L60<$I$59,L60,L60+1) -> 2 | L61: 3
A62: 3 | B62: Oberwart | C62: 17.62339056 | E62: 3 | F62: Oberwart | G62: 17.62339056 | I62: 3 | L62: 4
A63: 5 | B63: Mattersburg | C63: 12.29881974 | E63: 5 | F63: Mattersburg | G63: 12.29881974 | I63: 5 | L63: 5
A64: 6 | B64: Güssing | C64: 8.029327611 | E64: 6 | F64: Güssing | G64: 8.029327611 | I64: 6 | L64: 6
A65: 7 | B65: Jennersdorf | C65: 7.434728183 | E65: 7 | F65: Jennersdorf | G65: 7.434728183 | I65: 7 | L65: 7
A66: 8 | B66: 0 | C66: 0 | E66: 8 | F66: 0 | G66: 0 | I66: 8 | L66: 8
A67: 9 | B67: 0 | C67: 0 | E67: 9 | F67: 0 | G67: 0 | I67: 9 | L67: 9
A68: 10 | B68: 0 | C68: 0 | E68: 10 | F68: Restliche Bezirke | G68: =G69-SUM(G59:G67) -> 0 | I68: 10 | L68: 10
E69: 11 | F69: Summe | G69: 100

Sheet olap_bm (hidden)
F1: 1 | G1: 2 | H1: 3 | I1: 4 | J1: 5 | K1: 6 | L1: 7 | M1: 8 | N1: 9 | O1: 10 | P1: 11 | Q1: 12 | R1: 13 | S1: 14 | T1: 15 | U1: 16 | V1: 17 | W1: 18 | X1: 19 | Y1: 20 | Z1: 21 | AA1: 22 | AB1: 23 | AC1: 24 | AD1: 25 | AE1: 26
A2: BLD_Bez | B2: Zeilenindex | C2: Bez_Nr | D2: Land_Bez | E2: Bez_Mgst | F2: Bez_STAT | G2: 2001 | H2: 2002 | I2: 2003 | J2: 2004 | K2: 2005 | L2: 2006 | M2: 2007 | N2: 2008 | O2: 2009 | P2: 2010 | Q2: 2011 | R2: 2012 | S2: 2013 | T2: 2014 | U2: 2015 | V2: 2016 | W2: 2017 | X2: 2018 | Y2: 2019 | Z2: 2020 | AA2: 2021 | AB2: 2022 | AC2: 2023 | AD2: 2024 | AE2: 2025
A3: =C3&D3&F3 ->  | B3: 3 | C3: aktive | D3: Burgenland | E3: 0 -im Bundesland gültig | G3: 0 | H3: 2 | I3: 6 | J3: 90 | K3: 13 | L3: 16 | M3: 34 | N3: 43 | O3: 38 | P3: 38 | Q3: 43 | R3: 35 | S3: 39 | T3: 44 | U3: 14 | V3: 22 | W3: 51 | X3: 49 | Y3: 50 | Z3: 43 | AA3: 42 | AB3: 50 | AC3: 54 | AD3: 56 | AE3: 56
A4: =C4&D4&F4 -> aktiveBurgenlandEisenstadt-Umgebung | B4: 4 | C4: aktive | D4: Burgenland | E4: 1 -Eisenstadt-Umgebung | F4: Eisenstadt-Umgebung | G4: 2241 | H4: 2344 | I4: 2442 | J4: 2589 | K4: 2703 | L4: 2745 | M4: 2818 | N4: 3116 | O4: 3286 | P4: 3521 | Q4: 3627 | R4: 3677 | S4: 3801 | T4: 3870 | U4: 4007 | V4: 4054 | W4: 4095 | X4: 4181 | Y4: 4289 | Z4: 4311 | AA4: 4498 | AB4: 4506 | AC4: 4542 | AD4: 4618 | AE4: 4713
A5: aktiveBurgenlandNeusiedl am See | B5: 5 | C5: aktive | D5: Burgenland | E5: 2 -Neusiedl am See | F5: Neusiedl am See | G5: 1903 | H5: 2013 | I5: 2115 | J5: 2203 | K5: 2304 | L5: 2330 | M5: 2447 | N5: 2632 | O5: 2768 | P5: 2976 | Q5: 3132 | R5: 3373 | S5: 3493 | T5: 3638 | U5: 3741 | V5: 3968 | W5: 4035 | X5: 4210 | Y5: 4246 | Z5: 4332 | AA5: 4415 | AB5: 4593 | AC5: 4654 | AD5: 4685 | AE5: 4718
A6: aktiveBurgenlandMattersburg | B6: 6 | C6: aktive | D6: Burgenland | E6: 3 -Mattersburg | F6: Mattersburg | G6: 1386 | H6: 1419 | I6: 1459 | J6: 1494 | K6: 1579 | L6: 1647 | M6: 1702 | N6: 1818 | O6: 1919 | P6: 2026 | Q6: 2025 | R6: 2068 | S6: 2116 | T6: 2219 | U6: 2250 | V6: 2322 | W6: 2352 | X6: 2413 | Y6: 2435 | Z6: 2487 | AA6: 2554 | AB6: 2598 | AC6: 2600 | AD6: 2662 | AE6: 2751
A7: aktiveBurgenlandOberpullendorf | B7: 7 | C7: aktive | D7: Burgenland | E7: 4 -Oberpullendorf | F7: Oberpullendorf | G7: 1373 | H7: 1340 | I7: 1402 | J7: 1470 | K7: 1498 | L7: 1574 | M7: 1580 | N7: 1735 | O7: 1794 | P7: 1894 | Q7: 2011 | R7: 2061 | S7: 2067 | T7: 2182 | U7: 2230 | V7: 2317 | W7: 2297 | X7: 2355 | Y7: 2399 | Z7: 2486 | AA7: 2536 | AB7: 2626 | AC7: 2669 | AD7: 2692 | AE7: 2785
A8: aktiveBurgenlandOberwart | B8: 8 | C8: aktive | D8: Burgenland | E8: 5 -Oberwart | F8: Oberwart | G8: 1926 | H8: 1998 | I8: 2072 | J8: 2131 | K8: 2224 | L8: 2296 | M8: 2372 | N8: 2611 | O8: 2728 | P8: 2901 | Q8: 3092 | R8: 3211 | S8: 3253 | T8: 3283 | U8: 3343 | V8: 3368 | W8: 3439 | X8: 3560 | Y8: 3678 | Z8: 3772 | AA8: 3816 | AB8: 3845 | AC8: 3992 | AD8: 3994 | AE8: 3942
A9: aktiveBurgenlandGüssing | B9: 9 | C9: aktive | D9: Burgenland | E9: 6 -Güssing | F9: Güssing | G9: 843 | H9: 905 | I9: 949 | J9: 1025 | K9: 1057 | L9: 1097 | M9: 1141 | N9: 1223 | O9: 1279 | P9: 1371 | Q9: 1409 | R9: 1512 | S9: 1590 | T9: 1708 | U9: 1832 | V9: 1883 | W9: 1902 | X9: 1917 | Y9: 1925 | Z9: 1890 | AA9: 1876 | AB9: 1816 | AC9: 1798 | AD9: 1777 | AE9: 1796
A10: aktiveBurgenlandJennersdorf | B10: 10 | C10: aktive | D10: Burgenland | E10: 7 -Jennersdorf | F10: Jennersdorf | G10: 557 | H10: 580 | I10: 609 | J10: 605 | K10: 622 | L10: 653 | M10: 697 | N10: 743 | O10: 771 | P10: 821 | Q10: 861 | R10: 891 | S10: 899 | T10: 939 | U10: 1075 | V10: 1180 | W10: 1256 | X10: 1276 | Y10: 1328 | Z10: 1335 | AA10: 1399 | AB10: 1507 | AC10: 1514 | AD10: 1609 | AE10: 1663
B11: 11 | C11: aktive | D11: Kärnten | E11: 0 -im Bundesland gültig | G11: 0 | H11: 0 | I11: 8 | J11: 76 | K11: 0 | L11: 0 | M11: 0 | N11: 0 | O11: 0 | P11: 1 | Q11: 0 | R11: 0 | S11: 1 | T11: 2 | U11: 0 | V11: 0 | W11: 0 | X11: 0 | AA11: 1
A12: aktiveKärntenFeldkirchen | B12: 12 | C12: aktive | D12: Kärnten | E12: 1 -Pol.Bez. Feldkirchen | F12: Feldkirchen | G12: 1174 | H12: 1197 | I12: 1220 | J12: 1241 | K12: 1290 | L12: 1365 | M12: 1402 | N12: 1448 | O12: 1456 | P12: 1482 | Q12: 1565 | R12: 1574 | S12: 1646 | T12: 1826 | U12: 1895 | V12: 1948 | W12: 1909 | X12: 1976 | Y12: 2015 | Z12: 2041 | AA12: 2106 | AB12: 2123 | AC12: 2155 | AD12: 2183 | AE12: 2232
A13: aktiveKärntenHermagor | B13: 13 | C13: aktive | D13: Kärnten | E13: 2 -Pol.Bez. Hermagor | F13: Hermagor | G13: 772 | H13: 793 | I13: 795 | J13: 816 | K13: 837 | L13: 847 | M13: 893 | N13: 914 | O13: 923 | P13: 958 | Q13: 960 | R13: 974 | S13: 1009 | T13: 1050 | U13: 1065 | V13: 1084 | W13: 1133 | X13: 1150 | Y13: 1172 | Z13: 1185 | AA13: 1208 | AB13: 1265 | AC13: 1308 | AD13: 1357 | AE13: 1440
A14: aktiveKärntenKlagenfurt-Land | B14: 14 | C14: aktive | D14: Kärnten | E14: 3 -Pol.Bez. Klagenfurt-Land | F14: Klagenfurt-Land | G14: 2132 | H14: 2209 | I14: 2273 | J14: 2319 | K14: 2405 | L14: 2481 | M14: 2508 | N14: 2585 | O14: 2673 | P14: 2702 | Q14: 2817 | R14: 2945 | S14: 3084 | T14: 3224 | U14: 3312 | V14: 3400 | W14: 3442 | X14: 3530 | Y14: 3655 | Z14: 3807 | AA14: 3920 | AB14: 3975 | AC14: 4042 | AD14: 4134 | AE14: 4235
A15: aktiveKärntenKlagenfurt am Wörthersee | B15: 15 | C15: aktive | D15: Kärnten | E15: 4 -Statutarstadt Klagenfurt | F15: Klagenfurt am Wörthersee | G15: 5037 | H15: 5140 | I15: 5272 | J15: 5422 | K15: 5534 | L15: 5682 | M15: 5824 | N15: 5949 | O15: 6119 | P15: 6154 | Q15: 6254 | R15: 6476 | S15: 6730 | T15: 6982 | U15: 7037 | V15: 7149 | W15: 7309 | X15: 7517 | Y15: 7666 | Z15: 7925 | AA15: 8139 | AB15: 8275 | AC15: 8388 | AD15: 8505 | AE15: 8634
A16: aktiveKärntenSankt Veit an der Glan | B16: 16 | C16: aktive | D16: Kärnten | E16: 5 -Pol.Bez. Sankt Veit an der Glan | F16: Sankt Veit an der Glan | G16: 1946 | H16: 2030 | I16: 2044 | J16: 2068 | K16: 2114 | L16: 2164 | M16: 2234 | N16: 2309 | O16: 2364 | P16: 2436 | Q16: 2573 | R16: 2627 | S16: 2741 | T16: 2891 | U16: 2999 | V16: 3132 | W16: 3222 | X16: 3264 | Y16: 3272 | Z16: 3272 | AA16: 3332 | AB16: 3328 | AC16: 3436 | AD16: 3511 | AE16: 3562
A17: aktiveKärntenSpittal an der Drau | B17: 17 | C17: aktive | D17: Kärnten | E17: 6 -Pol.Bez. Spittal an der Drau | F17: Spittal an der Drau | G17: 3266 | H17: 3227 | I17: 3351 | J17: 3394 | K17: 3449 | L17: 3536 | M17: 3598 | N17: 3687 | O17: 3761 | P17: 3819 | Q17: 3938 | R17: 4025 | S17: 4198 | T17: 4266 | U17: 4383 | V17: 4452 | W17: 4504 | X17: 4627 | Y17: 4691 | Z17: 4782 | AA17: 4990 | AB17: 5049 | AC17: 5156 | AD17: 5305 | AE17: 5371
A18: aktiveKärntenVillach-Land | B18: 18 | C18: aktive | D18: Kärnten | E18: 7 -Pol.Bez. Villach-Land | F18: Villach-Land | G18: 2311 | H18: 2388 | I18: 2463 | J18: 2548 | K18: 2634 | L18: 2723 | M18: 2800 | N18: 2883 | O18: 2957 | P18: 3036 | Q18: 3110 | R18: 3207 | S18: 3300 | T18: 3486 | U18: 3571 | V18: 3698 | W18: 3751 | X18: 3851 | Y18: 3853 | Z18: 3944 | AA18: 4075 | AB18: 4172 | AC18: 4348 | AD18: 4496 | AE18: 4512
A19: aktiveKärntenVillach | B19: 19 | C19: aktive | D19: Kärnten | E19: 8 -Statutarstadt Villach | F19: Villach | G19: 2711 | H19: 2796 | I19: 2857 | J19: 2879 | K19: 2999 | L19: 3079 | M19: 3173 | N19: 3305 | O19: 3410 | P19: 3400 | Q19: 3484 | R19: 3575 | S19: 3661 | T19: 3756 | U19: 3830 | V19: 3854 | W19: 3903 | X19: 3982 | Y19: 4051 | Z19: 4164 | AA19: 4267 | AB19: 4345 | AC19: 4403 | AD19: 4471 | AE19: 4573
A20: aktiveKärntenVölkermarkt | B20: 20 | C20: aktive | D20: Kärnten | E20: 9 -Pol.Bez. Völkermarkt | F20: Völkermarkt | G20: 1555 | H20: 1588 | I20: 1616 | J20: 1654 | K20: 1717 | L20: 1747 | M20: 1821 | N20: 1830 | O20: 1851 | P20: 1871 | Q20: 1881 | R20: 1905 | S20: 2017 | T20: 2116 | U20: 2159 | V20: 2195 | W20: 2252 | X20: 2340 | Y20: 2344 | Z20: 2400 | AA20: 2494 | AB20: 2529 | AC20: 2552 | AD20: 2601 | AE20: 2702
A21: aktiveKärntenWolfsberg | B21: 21 | C21: aktive | D21: Kärnten | E21: 10-Pol.Bez. Wolfsberg | F21: Wolfsberg | G21: 1807 | H21: 1852 | I21: 1937 | J21: 1972 | K21: 2081 | L21: 2136 | M21: 2181 | N21: 2249 | O21: 2253 | P21: 2302 | Q21: 2385 | R21: 2534 | S21: 2718 | T21: 2789 | U21: 2829 | V21: 3083 | W21: 3113 | X21: 3197 | Y21: 3225 | Z21: 3276 | AA21: 3367 | AB21: 3257 | AC21: 3291 | AD21: 3311 | AE21: 3816
B22: 22 | C22: aktive | D22: Niederösterreich | E22: 0 -im Bundesland gültig | G22: 0 | H22: 0 | I22: 0 | J22: 101 | K22: 28 | L22: 0 | M22: 7 | N22: 2 | O22: 5 | P22: 12 | Q22: 19 | R22: 8 | S22: 1 | T22: 0 | U22: 0 | V22: 0 | W22: 0 | X22: 0
A23: aktiveNiederösterreichAmstetten | B23: 23 | C23: aktive | D23: Niederösterreich | E23: 1 -Amstetten | F23: Amstetten | G23: 3687 | H23: 3821 | I23: 4117 | J23: 4263 | K23: 4422 | L23: 4627 | M23: 4829 | N23: 5223 | O23: 5366 | P23: 5532 | Q23: 5745 | R23: 6036 | S23: 6372 | T23: 6633 | U23: 6930 | V23: 7159 | W23: 7322 | X23: 7420 | Y23: 7520 | Z23: 7604 | AA23: 7792 | AB23: 7777 | AC23: 7750 | AD23: 7848 | AE23: 8121
A24: aktiveNiederösterreichBaden | B24: 24 | C24: aktive | D24: Niederösterreich | E24: 2 -Baden | F24: Baden | G24: 5293 | H24: 5551 | I24: 5769 | J24: 6113 | K24: 6472 | L24: 6673 | M24: 6875 | N24: 7231 | O24: 7424 | P24: 7708 | Q24: 7852 | R24: 8087 | S24: 8416 | T24: 8618 | U24: 8857 | V24: 9054 | W24: 9167 | X24: 9328 | Y24: 9599 | Z24: 9917 | AA24: 10238 | AB24: 10302 | AC24: 10553 | AD24: 10649 | AE24: 10888
A25: aktiveNiederösterreichBruck an der Leitha | B25: 25 | C25: aktive | D25: Niederösterreich | E25: 3 -Bruck/Leitha | F25: Bruck an der Leitha | G25: 1320 | H25: 1372 | I25: 1447 | J25: 1515 | K25: 1535 | L25: 1623 | M25: 1738 | N25: 1901 | O25: 2013 | P25: 2124 | Q25: 2187 | R25: 2269 | S25: 2336 | T25: 2427 | U25: 2538 | V25: 2596 | W25: 7001 | X25: 7158 | Y25: 7425 | Z25: 7772 | AA25: 8179 | AB25: 8797 | AC25: 9183 | AD25: 9435 | AE25: 9692
A26: aktiveNiederösterreichGänserndorf | B26: 26 | C26: aktive | D26: Niederösterreich | E26: 4 -Gänserndorf | F26: Gänserndorf | G26: 2708 | H26: 2825 | I26: 2956 | J26: 3142 | K26: 3299 | L26: 3415 | M26: 3517 | N26: 3928 | O26: 4095 | P26: 4383 | Q26: 4471 | R26: 4659 | S26: 4787 | T26: 4929 | U26: 5092 | V26: 5300 | W26: 5426 | X26: 5499 | Y26: 5607 | Z26: 5659 | AA26: 5888 | AB26: 5946 | AC26: 6102 | AD26: 6193 | AE26: 6324
A27: aktiveNiederösterreichGmünd | B27: 27 | C27: aktive | D27: Niederösterreich | E27: 5 -Gmünd | F27: Gmünd | G27: 1407 | H27: 1436 | I27: 1441 | J27: 1454 | K27: 1454 | L27: 1508 | M27: 1515 | N27: 1584 | O27: 1607 | P27: 1654 | Q27: 1723 | R27: 1731 | S27: 1811 | T27: 1885 | U27: 1945 | V27: 1960 | W27: 2012 | X27: 2070 | Y27: 2098 | Z27: 2136 | AA27: 2243 | AB27: 2251 | AC27: 2271 | AD27: 2305 | AE27: 2342
A28: aktiveNiederösterreichHollabrunn | B28: 28 | C28: aktive | D28: Niederösterreich | E28: 6 -Hollabrunn | F28: Hollabrunn | G28: 1417 | H28: 1482 | I28: 1509 | J28: 1568 | K28: 1630 | L28: 1738 | M28: 1798 | N28: 1943 | O28: 2004 | P28: 2075 | Q28: 2160 | R28: 2235 | S28: 2338 | T28: 2394 | U28: 2523 | V28: 2622 | W28: 2688 | X28: 2722 | Y28: 2771 | Z28: 2879 | AA28: 2987 | AB28: 3063 | AC28: 3085 | AD28: 3146 | AE28: 3192
A29: aktiveNiederösterreichHorn | B29: 29 | C29: aktive | D29: Niederösterreich | E29: 7 -Horn | F29: Horn | G29: 1146 | H29: 1152 | I29: 1196 | J29: 1237 | K29: 1277 | L29: 1318 | M29: 1372 | N29: 1465 | O29: 1489 | P29: 1570 | Q29: 1658 | R29: 1764 | S29: 1852 | T29: 1962 | U29: 2011 | V29: 2102 | W29: 2179 | X29: 2190 | Y29: 2233 | Z29: 2227 | AA29: 2238 | AB29: 2316 | AC29: 2275 | AD29: 2271 | AE29: 2269
A30: aktiveNiederösterreichKorneuburg | B30: 30 | C30: aktive | D30: Niederösterreich | E30: 8 -Korneuburg | F30: Korneuburg | G30: 2736 | H30: 2818 | I30: 2911 | J30: 3071 | K30: 3220 | L30: 3355 | M30: 3414 | N30: 3674 | O30: 3854 | P30: 3985 | Q30: 4157 | R30: 4354 | S30: 4546 | T30: 4666 | U30: 4807 | V30: 5009 | W30: 6039 | X30: 6152 | Y30: 6256 | Z30: 6426 | AA30: 6615 | AB30: 6738 | AC30: 6943 | AD30: 6972 | AE30: 6963
A31: aktiveNiederösterreichKrems-Land | B31: 31 | C31: aktive | D31: Niederösterreich | E31: 9 -Krems/Donau (Land) | F31: Krems-Land | G31: 2809 | H31: 2856 | I31: 2953 | J31: 3081 | K31: 3160 | L31: 3294 | M31: 3409 | N31: 3738 | O31: 3943 | P31: 4205 | Q31: 4235 | R31: 4400 | S31: 4520 | T31: 4627 | U31: 4777 | V31: 4925 | W31: 5028 | X31: 5092 | Y31: 5187 | Z31: 5288 | AA31: 5333 | AB31: 5413 | AC31: 5364 | AD31: 5387 | AE31: 5526
A32: aktiveNiederösterreichLilienfeld | B32: 32 | C32: aktive | D32: Niederösterreich | E32: 10-Lilienfeld | F32: Lilienfeld | G32: 971 | H32: 992 | I32: 1010 | J32: 1033 | K32: 1086 | L32: 1110 | M32: 1149 | N32: 1235 | O32: 1266 | P32: 1313 | Q32: 1362 | R32: 1392 | S32: 1442 | T32: 1486 | U32: 1521 | V32: 1560 | W32: 1563 | X32: 1587 | Y32: 1616 | Z32: 1623 | AA32: 1686 | AB32: 1681 | AC32: 1674 | AD32: 1697 | AE32: 1712
A33: aktiveNiederösterreichMelk | B33: 33 | C33: aktive | D33: Niederösterreich | E33: 11-Melk | F33: Melk | G33: 2533 | H33: 2615 | I33: 2736 | J33: 2782 | K33: 2834 | L33: 2910 | M33: 3002 | N33: 3269 | O33: 3334 | P33: 3477 | Q33: 3645 | R33: 3817 | S33: 3972 | T33: 4139 | U33: 4336 | V33: 4456 | W33: 4608 | X33: 4669 | Y33: 4782 | Z33: 4800 | AA33: 4939 | AB33: 5070 | AC33: 5116 | AD33: 5221 | AE33: 5337
A34: aktiveNiederösterreichMistelbach | B34: 34 | C34: aktive | D34: Niederösterreich | E34: 12-Mistelbach | F34: Mistelbach | G34: 2132 | H34: 2193 | I34: 2327 | J34: 2466 | K34: 2527 | L34: 2571 | M34: 2671 | N34: 3005 | O34: 3231 | P34: 3372 | Q34: 3519 | R34: 3671 | S34: 3902 | T34: 4137 | U34: 4338 | V34: 4462 | W34: 4654 | X34: 4746 | Y34: 4805 | Z34: 4814 | AA34: 4993 | AB34: 5073 | AC34: 5110 | AD34: 5116 | AE34: 5148
A35: aktiveNiederösterreichMödling | B35: 35 | C35: aktive | D35: Niederösterreich | E35: 13-Mödling | F35: Mödling | G35: 5939 | H35: 6194 | I35: 6435 | J35: 6680 | K35: 6997 | L35: 7181 | M35: 7456 | N35: 7990 | O35: 8330 | P35: 8633 | Q35: 8865 | R35: 9155 | S35: 9293 | T35: 9495 | U35: 9818 | V35: 9954 | W35: 10075 | X35: 10123 | Y35: 10314 | Z35: 10399 | AA35: 10530 | AB35: 10273 | AC35: 10316 | AD35: 10480 | AE35: 10633
A36: aktiveNiederösterreichNeunkirchen | B36: 36 | C36: aktive | D36: Niederösterreich | E36: 14-Neunkirchen | F36: Neunkirchen | G36: 2975 | H36: 3036 | I36: 3083 | J36: 3179 | K36: 3224 | L36: 3323 | M36: 3446 | N36: 3729 | O36: 3880 | P36: 3991 | Q36: 4145 | R36: 4290 | S36: 4429 | T36: 4603 | U36: 4737 | V36: 4805 | W36: 4923 | X36: 4945 | Y36: 4986 | Z36: 5085 | AA36: 5198 | AB36: 5247 | AC36: 5318 | AD36: 5443 | AE36: 5524
A37: aktiveNiederösterreichSankt Pölten-Land | B37: 37 | C37: aktive | D37: Niederösterreich | E37: 15-Sankt Pölten (Land) | F37: Sankt Pölten-Land | G37: 5347 | H37: 5505 | I37: 5698 | J37: 5925 | K37: 6041 | L37: 6210 | M37: 6396 | N37: 6887 | O37: 7128 | P37: 7523 | Q37: 7995 | R37: 8232 | S37: 8486 | T37: 8716 | U37: 8835 | V37: 9057 | W37: 11239 | X37: 11405 | Y37: 11623 | Z37: 11889 | AA37: 12268 | AB37: 12505 | AC37: 12742 | AD37: 12946 | AE37: 13349
A38: aktiveNiederösterreichScheibbs | B38: 38 | C38: aktive | D38: Niederösterreich | E38: 16-Scheibbs | F38: Scheibbs | G38: 1369 | H38: 1375 | I38: 1445 | J38: 1495 | K38: 1534 | L38: 1598 | M38: 1630 | N38: 1709 | O38: 1790 | P38: 1880 | Q38: 1992 | R38: 2043 | S38: 2105 | T38: 2187 | U38: 2244 | V38: 2324 | W38: 2404 | X38: 2493 | Y38: 2534 | Z38: 2637 | AA38: 2793 | AB38: 2824 | AC38: 2845 | AD38: 2941 | AE38: 3058
A39: aktiveNiederösterreichTulln | B39: 39 | C39: aktive | D39: Niederösterreich | E39: 17-Tulln | F39: Tulln | G39: 2300 | H39: 2393 | I39: 2518 | J39: 2649 | K39: 2785 | L39: 2901 | M39: 3053 | N39: 3317 | O39: 3446 | P39: 3612 | Q39: 3805 | R39: 3992 | S39: 4186 | T39: 4355 | U39: 4524 | V39: 4709 | W39: 6960 | X39: 7069 | Y39: 7187 | Z39: 7381 | AA39: 7656 | AB39: 7710 | AC39: 7853 | AD39: 7948 | AE39: 8073
A40: aktiveNiederösterreichWaidhofen an der Thaya | B40: 40 | C40: aktive | D40: Niederösterreich | E40: 18-Waidhofen/Thaya | F40: Waidhofen an der Thaya | G40: 987 | H40: 1012 | I40: 1020 | J40: 1032 | K40: 1037 | L40: 1042 | M40: 1062 | N40: 1105 | O40: 1132 | P40: 1176 | Q40: 1190 | R40: 1220 | S40: 1235 | T40: 1261 | U40: 1334 | V40: 1356 | W40: 1402 | X40: 1419 | Y40: 1443 | Z40: 1470 | AA40: 1552 | AB40: 1614 | AC40: 1709 | AD40: 1759 | AE40: 1806
A41: aktiveNiederösterreichWiener Neustadt-Land | B41: 41 | C41: aktive | D41: Niederösterreich | E41: 19-Wiener Neustadt (Land) | F41: Wiener Neustadt-Land | G41: 4328 | H41: 4474 | I41: 4661 | J41: 4887 | K41: 5077 | L41: 5219 | M41: 5393 | N41: 5740 | O41: 6132 | P41: 6540 | Q41: 6862 | R41: 7115 | S41: 7312 | T41: 7585 | U41: 8044 | V41: 8398 | W41: 8639 | X41: 8806 | Y41: 8905 | Z41: 8995 | AA41: 9380 | AB41: 9456 | AC41: 9517 | AD41: 9655 | AE41: 9855
A42: aktiveNiederösterreichWien-Umgebung | B42: 42 | C42: aktive | D42: Niederösterreich | E42: 20-Wien-Umgebung | F42: Wien-Umgebung | G42: 4596 | H42: 4815 | I42: 5064 | J42: 5286 | K42: 5502 | L42: 5632 | M42: 5873 | N42: 6290 | O42: 6589 | P42: 7065 | Q42: 7271 | R42: 7657 | S42: 8075 | T42: 8460 | U42: 8724 | V42: 9074 | W42: 0 | X42: 0
A43: aktiveNiederösterreichZwettl | B43: 43 | C43: aktive | D43: Niederösterreich | E43: 21-Zwettl | F43: Zwettl | G43: 1538 | H43: 1546 | I43: 1582 | J43: 1618 | K43: 1666 | L43: 1702 | M43: 1752 | N43: 1840 | O43: 1902 | P43: 1946 | Q43: 2047 | R43: 2111 | S43: 2203 | T43: 2276 | U43: 2398 | V43: 2528 | W43: 2585 | X43: 2590 | Y43: 2647 | Z43: 2584 | AA43: 2650 | AB43: 2611 | AC43: 2636 | AD43: 2644 | AE43: 2658
B44: 44 | C44: aktive | D44: Niederösterreich | E44: 99-im Bundesland gültig | G44: 144 | H44: 144 | I44: 148 | J44: 134 | K44: 137 | L44: 134 | M44: 133 | N44: 135 | O44: 122 | P44: 116 | Q44: 111 | R44: 113 | S44: 114 | T44: 113 | U44: 119 | V44: 113 | W44: 111 | X44: 111 | Y44: 121 | Z44: 123 | AA44: 126 | AB44: 130 | AC44: 132 | AD44: 131 | AE44: 136
B45: 45 | C45: aktive | D45: Oberösterreich | E45: 0 -im Bundesland gültig | G45: 0 | H45: 2 | I45: 0 | J45: 91 | K45: 15 | L45: 0 | M45: 2 | N45: 1 | O45: 0 | P45: 0 | Q45: 0 | R45: 0 | S45: 0 | T45: 1 | U45: 0 | V45: 0 | W45: 0 | X45: 0 | AE45: 1
A46: aktiveOberösterreichLinz | B46: 46 | C46: aktive | D46: Oberösterreich | E46: 1 -Statutarstadt Linz/Donau | F46: Linz | G46: 8259 | H46: 8437 | I46: 8658 | J46: 8896 | K46: 9062 | L46: 9281 | M46: 9361 | N46: 10000 | O46: 10246 | P46: 10510 | Q46: 10689 | R46: 10879 | S46: 11148 | T46: 11468 | U46: 11689 | V46: 11927 | W46: 11958 | X46: 12040 | Y46: 12118 | Z46: 12325 | AA46: 12656 | AB46: 12703 | AC46: 12797 | AD46: 12863 | AE46: 13139
A47: aktiveOberösterreichSteyr | B47: 47 | C47: aktive | D47: Oberösterreich | E47: 2 -Statutarstadt Steyr | F47: Steyr | G47: 1551 | H47: 1580 | I47: 1645 | J47: 1685 | K47: 1705 | L47: 1715 | M47: 1721 | N47: 1837 | O47: 1916 | P47: 1977 | Q47: 2022 | R47: 1989 | S47: 2030 | T47: 2084 | U47: 2135 | V47: 2134 | W47: 2115 | X47: 2089 | Y47: 2088 | Z47: 2158 | AA47: 2211 | AB47: 2162 | AC47: 2194 | AD47: 2077 | AE47: 2125
A48: aktiveOberösterreichWels | B48: 48 | C48: aktive | D48: Oberösterreich | E48: 3 -Statutarstadt Wels | F48: Wels | G48: 2827 | H48: 2860 | I48: 2927 | J48: 2928 | K48: 3013 | L48: 3097 | M48: 3135 | N48: 3857 | O48: 3923 | P48: 3987 | Q48: 4052 | R48: 4064 | S48: 4092 | T48: 4097 | U48: 4064 | V48: 4027 | W48: 4071 | X48: 4093 | Y48: 4091 | Z48: 4031 | AA48: 4112 | AB48: 4170 | AC48: 4131 | AD48: 4172 | AE48: 4135
A49: aktiveOberösterreichBraunau am Inn | B49: 49 | C49: aktive | D49: Oberösterreich | E49: 4 -Pol.Bez. Braunau am Inn | F49: Braunau am Inn | G49: 3060 | H49: 3191 | I49: 3224 | J49: 3348 | K49: 3480 | L49: 3510 | M49: 3616 | N49: 3823 | O49: 3975 | P49: 4085 | Q49: 4249 | R49: 4361 | S49: 4467 | T49: 4652 | U49: 4740 | V49: 4895 | W49: 4969 | X49: 5067 | Y49: 5175 | Z49: 5304 | AA49: 5508 | AB49: 5567 | AC49: 5673 | AD49: 5712 | AE49: 5946
A50: aktiveOberösterreichEferding | B50: 50 | C50: aktive | D50: Oberösterreich | E50: 5 -Pol.Bez. Eferding | F50: Eferding | G50: 999 | H50: 1041 | I50: 1094 | J50: 1109 | K50: 1125 | L50: 1163 | M50: 1220 | N50: 1277 | O50: 1347 | P50: 1417 | Q50: 1483 | R50: 1518 | S50: 1571 | T50: 1623 | U50: 1656 | V50: 1713 | W50: 1726 | X50: 1802 | Y50: 1835 | Z50: 1898 | AA50: 1971 | AB50: 2004 | AC50: 2038 | AD50: 2145 | AE50: 2190
A51: aktiveOberösterreichFreistadt | B51: 51 | C51: aktive | D51: Oberösterreich | E51: 6 -Pol.Bez. Freistadt | F51: Freistadt | G51: 1782 | H51: 1835 | I51: 1948 | J51: 2022 | K51: 2102 | L51: 2153 | M51: 2279 | N51: 2382 | O51: 2473 | P51: 2557 | Q51: 2620 | R51: 2679 | S51: 2776 | T51: 2858 | U51: 2995 | V51: 3118 | W51: 3220 | X51: 3239 | Y51: 3340 | Z51: 3434 | AA51: 3569 | AB51: 3739 | AC51: 3741 | AD51: 3831 | AE51: 3886
A52: aktiveOberösterreichGmunden | B52: 52 | C52: aktive | D52: Oberösterreich | E52: 7 -Pol.Bez. Gmunden | F52: Gmunden | G52: 3929 | H52: 4050 | I52: 4123 | J52: 4269 | K52: 4443 | L52: 4562 | M52: 4697 | N52: 4977 | O52: 5094 | P52: 5231 | Q52: 5393 | R52: 5480 | S52: 5675 | T52: 5845 | U52: 5958 | V52: 6101 | W52: 6352 | X52: 6382 | Y52: 6443 | Z52: 6586 | AA52: 6889 | AB52: 7058 | AC52: 7094 | AD52: 7168 | AE52: 7343
A53: aktiveOberösterreichGrieskirchen | B53: 53 | C53: aktive | D53: Oberösterreich | E53: 8 -Pol.Bez. Grieskirchen | F53: Grieskirchen | G53: 2085 | H53: 2161 | I53: 2253 | J53: 2304 | K53: 2387 | L53: 2407 | M53: 2439 | N53: 2500 | O53: 2613 | P53: 2724 | Q53: 2798 | R53: 2898 | S53: 3028 | T53: 3149 | U53: 3324 | V53: 3406 | W53: 3527 | X53: 3598 | Y53: 3640 | Z53: 3686 | AA53: 3776 | AB53: 3931 | AC53: 4031 | AD53: 4107 | AE53: 4220
A54: aktiveOberösterreichKirchdorf an der Krems | B54: 54 | C54: aktive | D54: Oberösterreich | E54: 9 -Pol.Bez. Kirchdorf an der Krems | F54: Kirchdorf an der Krems | G54: 1987 | H54: 2053 | I54: 2185 | J54: 2268 | K54: 2365 | L54: 2431 | M54: 2455 | N54: 2522 | O54: 2594 | P54: 2678 | Q54: 2725 | R54: 2761 | S54: 2794 | T54: 2882 | U54: 2957 | V54: 3010 | W54: 3103 | X54: 3140 | Y54: 3253 | Z54: 3328 | AA54: 3430 | AB54: 3494 | AC54: 3516 | AD54: 3583 | AE54: 3725
A55: aktiveOberösterreichLinz-Land | B55: 55 | C55: aktive | D55: Oberösterreich | E55: 10-Pol.Bez. Linz-Land | F55: Linz-Land | G55: 5138 | H55: 5342 | I55: 5464 | J55: 5682 | K55: 5927 | L55: 6047 | M55: 6165 | N55: 6561 | O55: 6885 | P55: 7119 | Q55: 7308 | R55: 7401 | S55: 7584 | T55: 7798 | U55: 7953 | V55: 8041 | W55: 8327 | X55: 8440 | Y55: 8568 | Z55: 8882 | AA55: 9089 | AB55: 9160 | AC55: 9203 | AD55: 9299 | AE55: 9465
A56: aktiveOberösterreichPerg | B56: 56 | C56: aktive | D56: Oberösterreich | E56: 11-Pol.Bez. Perg | F56: Perg | G56: 1828 | H56: 1895 | I56: 1998 | J56: 2070 | K56: 2164 | L56: 2231 | M56: 2315 | N56: 2476 | O56: 2547 | P56: 2608 | Q56: 2679 | R56: 2768 | S56: 2913 | T56: 3015 | U56: 3158 | V56: 3262 | W56: 3319 | X56: 3441 | Y56: 3441 | Z56: 3598 | AA56: 3814 | AB56: 3916 | AC56: 3984 | AD56: 4074 | AE56: 4148
A57: aktiveOberösterreichRied im Innkreis | B57: 57 | C57: aktive | D57: Oberösterreich | E57: 12-Pol.Bez. Ried im Innkreis | F57: Ried im Innkreis | G57: 1993 | H57: 2066 | I57: 2189 | J57: 2248 | K57: 2303 | L57: 2359 | M57: 2409 | N57: 2545 | O57: 2620 | P57: 2652 | Q57: 2703 | R57: 2793 | S57: 2844 | T57: 2964 | U57: 3076 | V57: 3116 | W57: 3177 | X57: 3246 | Y57: 3293 | Z57: 3429 | AA57: 3509 | AB57: 3551 | AC57: 3614 | AD57: 3599 | AE57: 3706
A58: aktiveOberösterreichRohrbach | B58: 58 | C58: aktive | D58: Oberösterreich | E58: 13-Pol.Bez. Rohrbach | F58: Rohrbach | G58: 1582 | H58: 1664 | I58: 1755 | J58: 1793 | K58: 1836 | L58: 1884 | M58: 1938 | N58: 2013 | O58: 2061 | P58: 2154 | Q58: 2215 | R58: 2263 | S58: 2344 | T58: 2422 | U58: 2523 | V58: 2633 | W58: 2772 | X58: 2806 | Y58: 2853 | Z58: 2933 | AA58: 3008 | AB58: 3063 | AC58: 3128 | AD58: 3149 | AE58: 3215
A59: aktiveOberösterreichSchärding | B59: 59 | C59: aktive | D59: Oberösterreich | E59: 14-Pol.Bez. Schärding | F59: Schärding | G59: 1695 | H59: 1734 | I59: 1831 | J59: 1870 | K59: 1966 | L59: 2023 | M59: 2100 | N59: 2172 | O59: 2265 | P59: 2305 | Q59: 2325 | R59: 2391 | S59: 2471 | T59: 2572 | U59: 2693 | V59: 2734 | W59: 2846 | X59: 2918 | Y59: 2959 | Z59: 3089 | AA59: 3205 | AB59: 3212 | AC59: 3269 | AD59: 3303 | AE59: 3408
A60: aktiveOberösterreichSteyr-Land | B60: 60 | C60: aktive | D60: Oberösterreich | E60: 15-Pol.Bez. Steyr-Land | F60: Steyr-Land | G60: 1945 | H60: 2004 | I60: 2077 | J60: 2186 | K60: 2247 | L60: 2306 | M60: 2380 | N60: 2488 | O60: 2596 | P60: 2660 | Q60: 2756 | R60: 2819 | S60: 2883 | T60: 2938 | U60: 3054 | V60: 3157 | W60: 3217 | X60: 3309 | Y60: 3347 | Z60: 3399 | AA60: 3511 | AB60: 3559 | AC60: 3583 | AD60: 3682 | AE60: 3834
A61: aktiveOberösterreichUrfahr-Umgebung | B61: 61 | C61: aktive | D61: Oberösterreich | E61: 16-Pol.Bez. Urfahr-Umgebung | F61: Urfahr-Umgebung | G61: 2360 | H61: 2454 | I61: 2592 | J61: 2683 | K61: 2780 | L61: 2885 | M61: 2961 | N61: 3535 | O61: 3749 | P61: 3886 | Q61: 3994 | R61: 4159 | S61: 4276 | T61: 4460 | U61: 4564 | V61: 4661 | W61: 4810 | X61: 4999 | Y61: 5091 | Z61: 5322 | AA61: 5461 | AB61: 5585 | AC61: 5638 | AD61: 5782 | AE61: 5949
A62: aktiveOberösterreichVöcklabruck | B62: 62 | C62: aktive | D62: Oberösterreich | E62: 17-Pol.Bez. Vöcklabruck | F62: Vöcklabruck | G62: 4665 | H62: 4805 | I62: 4994 | J62: 5144 | K62: 5199 | L62: 5359 | M62: 5482 | N62: 6158 | O62: 6389 | P62: 6663 | Q62: 6739 | R62: 6944 | S62: 7346 | T62: 7591 | U62: 7855 | V62: 8136 | W62: 8266 | X62: 8302 | Y62: 8440 | Z62: 8667 | AA62: 8961 | AB62: 9202 | AC62: 9283 | AD62: 9447 | AE62: 9614
A63: aktiveOberösterreichWels-Land | B63: 63 | C63: aktive | D63: Oberösterreich | E63: 18-Pol.Bez. Wels-Land | F63: Wels-Land | G63: 2263 | H63: 2388 | I63: 2467 | J63: 2605 | K63: 2726 | L63: 2840 | M63: 2881 | N63: 3039 | O63: 3182 | P63: 3290 | Q63: 3424 | R63: 3547 | S63: 3714 | T63: 3885 | U63: 4042 | V63: 4170 | W63: 4292 | X63: 4418 | Y63: 4557 | Z63: 4712 | AA63: 4870 | AB63: 4899 | AC63: 4961 | AD63: 5045 | AE63: 5199
B64: 64 | C64: aktive | D64: Salzburg | E64: 0 -im Bundesland gültig | G64: 0 | H64: 1 | I64: 1 | J64: 7 | K64: 12 | L64: 0 | M64: 1 | N64: 0 | O64: 0 | P64: 0 | Q64: 0 | R64: 0 | S64: 0 | T64: 0 | U64: 0 | V64: 0 | W64: 4 | X64: 36 | Y64: 46 | Z64: 44 | AA64: 40 | AB64: 42 | AC64: 52 | AD64: 56 | AE64: 72
A65: aktiveSalzburgSalzburg | B65: 65 | C65: aktive | D65: Salzburg | E65: 1 -Stadt Salzburg | F65: Salzburg | G65: 8465 | H65: 8585 | I65: 8811 | J65: 8976 | K65: 9102 | L65: 9253 | M65: 9461 | N65: 9802 | O65: 10039 | P65: 10327 | Q65: 10553 | R65: 10691 | S65: 10841 | T65: 11010 | U65: 11137 | V65: 11416 | W65: 11466 | X65: 11670 | Y65: 11819 | Z65: 11943 | AA65: 12249 | AB65: 12327 | AC65: 12352 | AD65: 12492 | AE65: 12641
A66: aktiveSalzburgHallein | B66: 66 | C66: aktive | D66: Salzburg | E66: 2 -Pol.Bez. Hallein | F66: Hallein | G66: 2335 | H66: 2401 | I66: 2517 | J66: 2585 | K66: 2650 | L66: 2700 | M66: 2798 | N66: 2876 | O66: 2929 | P66: 3000 | Q66: 3115 | R66: 3166 | S66: 3326 | T66: 3424 | U66: 3522 | V66: 3594 | W66: 3685 | X66: 3767 | Y66: 3818 | Z66: 3886 | AA66: 3992 | AB66: 4069 | AC66: 4052 | AD66: 4090 | AE66: 4151
A67: aktiveSalzburgSalzburg-Umgebung | B67: 67 | C67: aktive | D67: Salzburg | E67: 3 -Pol.Bez. Salzburg-Umgebung | F67: Salzburg-Umgebung | G67: 6470 | H67: 6663 | I67: 6945 | J67: 7194 | K67: 7350 | L67: 7488 | M67: 7664 | N67: 8008 | O67: 8231 | P67: 8489 | Q67: 8659 | R67: 8920 | S67: 9162 | T67: 9395 | U67: 9711 | V67: 9875 | W67: 9983 | X67: 10209 | Y67: 10382 | Z67: 10612 | AA67: 11036 | AB67: 11159 | AC67: 11386 | AD67: 11647 | AE67: 11801
A68: =C68&D68&F68 -> aktiveSalzburgSankt Johann im Pongau | B68: 68 | C68: aktive | D68: Salzburg | E68: 4 -Pol.Bez. Sankt Johann im Pongau | F68: Sankt Johann im Pongau | G68: 3825 | H68: 3877 | I68: 3903 | J68: 3990 | K68: 4060 | L68: 4148 | M68: 4283 | N68: 4356 | O68: 4414 | P68: 4512 | Q68: 4662 | R68: 4805 | S68: 4851 | T68: 5009 | U68: 5073 | V68: 5174 | W68: 5237 | X68: 5299 | Y68: 5372 | Z68: 5402 | AA68: 5676 | AB68: 5748 | AC68: 5920 | AD68: 5986 | AE68: 6107
A69: aktiveSalzburgTamsweg | B69: 69 | C69: aktive | D69: Salzburg | E69: 5 -Pol.Bez. Tamsweg | F69: Tamsweg | G69: 881 | H69: 880 | I69: 891 | J69: 921 | K69: 907 | L69: 918 | M69: 941 | N69: 979 | O69: 988 | P69: 1006 | Q69: 1033 | R69: 1042 | S69: 1063 | T69: 1118 | U69: 1164 | V69: 1166 | W69: 1196 | X69: 1208 | Y69: 1232 | Z69: 1251 | AA69: 1305 | AB69: 1325 | AC69: 1376 | AD69: 1384 | AE69: 1431
A70: aktiveSalzburgZell am See | B70: 70 | C70: aktive | D70: Salzburg | E70: 6 -Pol.Bez. Zell am See | F70: Zell am See | G70: 4176 | H70: 4253 | I70: 4387 | J70: 4451 | K70: 4562 | L70: 4643 | M70: 4712 | N70: 4846 | O70: 4902 | P70: 5038 | Q70: 5169 | R70: 5298 | S70: 5395 | T70: 5596 | U70: 5767 | V70: 5905 | W70: 6022 | X70: 6197 | Y70: 6367 | Z70: 6422 | AA70: 6691 | AB70: 6904 | AC70: 7053 | AD70: 7237 | AE70: 7332
B71: 71 | C71: aktive | D71: Salzburg | E71: 10-unbekannt | G71: 0 | H71: 0 | I71: 0 | J71: 1 | K71: 0 | L71: 0 | M71: 0 | N71: 0 | O71: 0 | P71: 0 | Q71: 0 | R71: 0 | S71: 0 | T71: 0 | U71: 0 | V71: 0 | W71: 0 | X71: 0
B72: 72 | C72: aktive | D72: Steiermark | E72: 0 -im Bundesland gültig | G72: 0 | H72: 0 | I72: 14 | J72: 198 | K72: 18 | L72: 0 | M72: 0 | N72: 0 | O72: 0 | P72: 0 | Q72: 0 | R72: 0 | S72: 0 | T72: 0 | U72: 1 | V72: 0 | W72: 0 | X72: 0
A73: aktiveSteiermarkGraz | B73: 73 | C73: aktive | D73: Steiermark | E73: 1 -Graz-Stadt | F73: Graz | G73: 11498 | H73: 11944 | I73: 12341 | J73: 12648 | K73: 13163 | L73: 13516 | M73: 13843 | N73: 14510 | O73: 14922 | P73: 15406 | Q73: 15824 | R73: 16208 | S73: 16681 | T73: 17084 | U73: 17368 | V73: 17417 | W73: 17869 | X73: 18352 | Y73: 18669 | Z73: 19491 | AA73: 20342 | AB73: 20478 | AC73: 20659 | AD73: 21020 | AE73: 21389
A74: aktiveSteiermarkBruck an der Mur | B74: 74 | C74: aktive | D74: Steiermark | E74: 2 -Bruck an der Mur | F74: Bruck an der Mur | G74: 2063 | H74: 2110 | I74: 2174 | J74: 2208 | K74: 2259 | L74: 2264 | M74: 2303 | N74: 2398 | O74: 2476 | P74: 2513 | Q74: 2547 | R74: 2824 | S74: 0 | T74: 0 | U74: 0 | V74: 0 | W74: 0 | X74: 0
A75: aktiveSteiermarkDeutschlandsberg | B75: 75 | C75: aktive | D75: Steiermark | E75: 3 -Deutschlandsberg | F75: Deutschlandsberg | G75: 2224 | H75: 2372 | I75: 2426 | J75: 2526 | K75: 2593 | L75: 2698 | M75: 2765 | N75: 2963 | O75: 3082 | P75: 3207 | Q75: 3241 | R75: 3319 | S75: 3506 | T75: 3589 | U75: 3751 | V75: 3929 | W75: 3995 | X75: 4079 | Y75: 4147 | Z75: 4194 | AA75: 4260 | AB75: 4220 | AC75: 4301 | AD75: 4377 | AE75: 4463
A76: aktiveSteiermarkFeldbach | B76: 76 | C76: aktive | D76: Steiermark | E76: 4 -Feldbach | F76: Feldbach | G76: 2123 | H76: 2238 | I76: 2297 | J76: 2379 | K76: 2480 | L76: 2489 | M76: 2550 | N76: 2709 | O76: 2762 | P76: 2848 | Q76: 2948 | R76: 3003 | S76: 0 | T76: 0 | U76: 0 | V76: 0 | W76: 0 | X76: 0
A77: aktiveSteiermarkFürstenfeld | B77: 77 | C77: aktive | D77: Steiermark | E77: 5 -Fürstenfeld | F77: Fürstenfeld | G77: 1008 | H77: 1039 | I77: 1098 | J77: 1099 | K77: 1134 | L77: 1175 | M77: 1208 | N77: 1244 | O77: 1288 | P77: 1307 | Q77: 1339 | R77: 1387 | S77: 0 | T77: 0 | U77: 0 | V77: 0 | W77: 0 | X77: 0
A78: aktiveSteiermarkGraz-Umgebung | B78: 78 | C78: aktive | D78: Steiermark | E78: 6 -Graz-Umgebung | F78: Graz-Umgebung | G78: 4705 | H78: 4947 | I78: 5290 | J78: 5628 | K78: 5964 | L78: 6262 | M78: 6497 | N78: 6910 | O78: 7180 | P78: 7422 | Q78: 7731 | R78: 7944 | S78: 8157 | T78: 8520 | U78: 8922 | V78: 9515 | W78: 9901 | X78: 10104 | Y78: 10367 | Z78: 10654 | AA78: 11059 | AB78: 11401 | AC78: 11601 | AD78: 11700 | AE78: 11789
A79: aktiveSteiermarkHartberg | B79: 79 | C79: aktive | D79: Steiermark | E79: 7 -Hartberg | F79: Hartberg | G79: 2210 | H79: 2348 | I79: 2427 | J79: 2497 | K79: 2598 | L79: 2715 | M79: 2796 | N79: 2948 | O79: 3075 | P79: 3268 | Q79: 3450 | R79: 3604 | S79: 0 | T79: 0 | U79: 0 | V79: 0 | W79: 0 | X79: 0
A80: aktiveSteiermarkJudenburg | B80: 80 | C80: aktive | D80: Steiermark | E80: 8 -Judenburg | F80: Judenburg | G80: 1674 | H80: 1684 | I80: 1729 | J80: 1743 | K80: 1794 | L80: 1838 | M80: 1881 | N80: 1964 | O80: 1987 | P80: 2075 | Q80: 2101 | R80: 0 | S80: 0 | T80: 0 | U80: 0 | V80: 0 | W80: 0 | X80: 0
A81: aktiveSteiermarkLeibnitz | B81: 81 | C81: aktive | D81: Steiermark | E81: 9 -Leibnitz | F81: Leibnitz | G81: 2689 | H81: 2795 | I81: 2890 | J81: 3040 | K81: 3199 | L81: 3279 | M81: 3352 | N81: 3494 | O81: 3583 | P81: 3741 | Q81: 3850 | R81: 3945 | S81: 4139 | T81: 4391 | U81: 4546 | V81: 4745 | W81: 4975 | X81: 5132 | Y81: 5309 | Z81: 5637 | AA81: 5849 | AB81: 5970 | AC81: 6149 | AD81: 6294 | AE81: 6356
A82: aktiveSteiermarkLeoben | B82: 82 | C82: aktive | D82: Steiermark | E82: 10-Leoben | F82: Leoben | G82: 2193 | H82: 2231 | I82: 2286 | J82: 2353 | K82: 2433 | L82: 2440 | M82: 2503 | N82: 2565 | O82: 2656 | P82: 2822 | Q82: 2899 | R82: 2951 | S82: 3063 | T82: 3080 | U82: 3149 | V82: 3207 | W82: 3293 | X82: 3305 | Y82: 3334 | Z82: 3287 | AA82: 3344 | AB82: 3358 | AC82: 3439 | AD82: 3486 | AE82: 3527
A83: aktiveSteiermarkLiezen | B83: 83 | C83: aktive | D83: Steiermark | E83: 11-Liezen | F83: Liezen | G83: 1650 | H83: 1685 | I83: 1738 | J83: 1739 | K83: 1826 | L83: 1874 | M83: 1946 | N83: 2060 | O83: 2044 | P83: 2130 | Q83: 2167 | R83: 2931 | S83: 3023 | T83: 3234 | U83: 3279 | V83: 3362 | W83: 3407 | X83: 3396 | Y83: 3433 | Z83: 3465 | AA83: 3514 | AB83: 3491 | AC83: 3551 | AD83: 3687 | AE83: 3784
A84: aktiveSteiermarkMürzzuschlag | B84: 84 | C84: aktive | D84: Steiermark | E84: 12-Mürzzuschlag | F84: Mürzzuschlag | G84: 1422 | H84: 1453 | I84: 1485 | J84: 1488 | K84: 1533 | L84: 1540 | M84: 1589 | N84: 1603 | O84: 1601 | P84: 1629 | Q84: 1679 | R84: 1695 | S84: 0 | T84: 0 | U84: 0 | V84: 0 | W84: 0 | X84: 0
A85: aktiveSteiermarkMurau | B85: 85 | C85: aktive | D85: Steiermark | E85: 13-Murau | F85: Murau | G85: 1054 | H85: 1070 | I85: 1102 | J85: 1103 | K85: 1152 | L85: 1177 | M85: 1199 | N85: 1252 | O85: 1291 | P85: 1312 | Q85: 1366 | R85: 1417 | S85: 1464 | T85: 1521 | U85: 1565 | V85: 1600 | W85: 1595 | X85: 1615 | Y85: 1624 | Z85: 1640 | AA85: 1699 | AB85: 1739 | AC85: 1783 | AD85: 1828 | AE85: 1824
A86: aktiveSteiermarkRadkersburg | B86: 86 | C86: aktive | D86: Steiermark | E86: 14-Radkersburg | F86: Radkersburg | G86: 809 | H86: 818 | I86: 864 | J86: 890 | K86: 948 | L86: 954 | M86: 957 | N86: 999 | O86: 1014 | P86: 1060 | Q86: 1053 | R86: 1096 | S86: 0 | T86: 0 | U86: 0 | V86: 0 | W86: 0 | X86: 0
A87: aktiveSteiermarkGröbming | B87: 87 | C87: aktive | D87: Steiermark | E87: 15-Gröbming | F87: Gröbming | G87: 1266 | H87: 1281 | I87: 1288 | J87: 1302 | K87: 1318 | L87: 1359 | M87: 1383 | N87: 1429 | O87: 1480 | P87: 1530 | Q87: 1569 | R87: 1592 | S87: 1640 | T87: 1668 | U87: 1690 | V87: 1740 | W87: 1734 | X87: 1779 | Y87: 1806 | Z87: 1829 | AA87: 1932 | AB87: 1971 | AC87: 2039 | AD87: 2092 | AE87: 2157
A88: aktiveSteiermarkVoitsberg | B88: 88 | C88: aktive | D88: Steiermark | E88: 16-Voitsberg | F88: Voitsberg | G88: 1988 | H88: 2086 | I88: 2175 | J88: 2200 | K88: 2259 | L88: 2261 | M88: 2285 | N88: 2384 | O88: 2444 | P88: 2590 | Q88: 2620 | R88: 2766 | S88: 2806 | T88: 2816 | U88: 2890 | V88: 2985 | W88: 3104 | X88: 3140 | Y88: 3196 | Z88: 3319 | AA88: 3300 | AB88: 3364 | AC88: 3376 | AD88: 3423 | AE88: 3492
A89: aktiveSteiermarkWeiz | B89: 89 | C89: aktive | D89: Steiermark | E89: 17-Weiz | F89: Weiz | G89: 2853 | H89: 2953 | I89: 3127 | J89: 3226 | K89: 3337 | L89: 3485 | M89: 3634 | N89: 3729 | O89: 3886 | P89: 4014 | Q89: 4084 | R89: 4231 | S89: 4480 | T89: 4718 | U89: 4915 | V89: 5156 | W89: 5387 | X89: 5925 | Y89: 6264 | Z89: 6637 | AA89: 7062 | AB89: 7210 | AC89: 7374 | AD89: 7454 | AE89: 7777
A90: aktiveSteiermarkBad Aussee | B90: 90 | C90: aktive | D90: Steiermark | E90: 18-Bad Aussee | F90: Bad Aussee | G90: 575 | H90: 595 | I90: 621 | J90: 650 | K90: 655 | L90: 692 | M90: 697 | N90: 725 | O90: 724 | P90: 733 | Q90: 749 | R90: 0 | S90: 0 | T90: 0 | U90: 0 | V90: 0 | W90: 0 | X90: 0
A91: aktiveSteiermarkKnittelfeld | B91: 91 | C91: aktive | D91: Steiermark | E91: 19-Knittelfeld | F91: Knittelfeld | G91: 946 | H91: 979 | I91: 1015 | J91: 1020 | K91: 1068 | L91: 1082 | M91: 1087 | N91: 1144 | O91: 1146 | P91: 1171 | Q91: 1207 | R91: 0 | S91: 0 | T91: 0 | U91: 0 | V91: 0 | W91: 0 | X91: 0
A92: aktiveSteiermarkMariazell | B92: 92 | C92: aktive | D92: Steiermark | E92: 20-Mariazell | F92: Mariazell | G92: 274 | H92: 269 | I92: 274 | J92: 290 | K92: 275 | L92: 283 | M92: 288 | N92: 296 | O92: 295 | P92: 293 | Q92: 299 | R92: 0 | S92: 0 | T92: 0 | U92: 0 | V92: 0 | W92: 0 | X92: 0
A93: aktiveSteiermarkMurtal | B93: 93 | C93: aktive | D93: Steiermark | E93: 21-Murtal | F93: Murtal | G93: 0 | H93: 0 | I93: 0 | J93: 0 | K93: 0 | L93: 0 | M93: 0 | N93: 0 | O93: 0 | P93: 0 | Q93: =22+Q80+Q91 -> 3330 | R93: 3392 | S93: 3647 | T93: 3946 | U93: 4156 | V93: 4344 | W93: 4440 | X93: 4526 | Y93: 4557 | Z93: 4721 | AA93: 4769 | AB93: 4941 | AC93: 4949 | AD93: 5226 | AE93: 4982
A94: aktiveSteiermarkBruck-Mürzzuschlag | B94: 94 | C94: aktive | D94: Steiermark | E94: 22-Bruck-Mürzzuschlag | F94: Bruck-Mürzzuschlag | G94: 0 | H94: 0 | I94: 0 | J94: 0 | K94: 0 | L94: 0 | M94: 0 | N94: 0 | O94: 0 | P94: 0 | Q94: 0 | R94: =39+R74+R84 -> 4558 | S94: 4627 | T94: 4729 | U94: 4908 | V94: 4967 | W94: 5077 | X94: 5099 | Y94: 5213 | Z94: 5290 | AA94: 5436 | AB94: 5493 | AC94: 5548 | AD94: 5609 | AE94: 5733
A95: aktiveSteiermarkHartberg-Fürstenfeld | B95: 95 | C95: aktive | D95: Steiermark | E95: 23-Hartberg-Fürstenfeld | F95: Hartberg-Fürstenfeld | G95: 0 | H95: 0 | I95: 0 | J95: 0 | K95: 0 | L95: 0 | M95: 0 | N95: 0 | O95: 0 | P95: 0 | Q95: 0 | R95: =46+R79+R77 -> 5037 | S95: 5132 | T95: 5355 | U95: 5485 | V95: 5601 | W95: 5916 | X95: 6133 | Y95: 6310 | Z95: 6361 | AA95: 6674 | AB95: 6827 | AC95: 6839 | AD95: 6958 | AE95: 6983
A96: aktiveSteiermarkSüdoststeiermark | B96: 96 | C96: aktive | D96: Steiermark | E96: 24-Südoststeiermark | F96: Südoststeiermark | G96: 0 | H96: 0 | I96: 0 | J96: 0 | K96: 0 | L96: 0 | M96: 0 | N96: 0 | O96: 0 | P96: 0 | Q96: 0 | R96: =60+R76+R86 -> 4159 | S96: 4261 | T96: 4412 | U96: 4552 | V96: 4717 | W96: 4916 | X96: 5010 | Y96: 5128 | Z96: 5168 | AA96: 5336 | AB96: 5439 | AC96: 5491 | AD96: 5511 | AE96: 5541
B97: 97 | C97: aktive | D97: Tirol | E97: 0 -im Bundesland gültig | G97: 47 | H97: 54 | I97: 49 | J97: 160 | K97: 92 | L97: 44 | M97: 42 | N97: 47 | O97: 47 | P97: 21 | Q97: 8 | R97: 9 | S97: 10 | T97: 6 | U97: 15 | V97: 7 | W97: 6 | X97: 6 | Y97: 9 | Z97: 12 | AA97: 8 | AB97: 7 | AC97: 4 | AD97: 7 | AE97: 1
A98: aktiveTirolInnsbruck | B98: 98 | C98: aktive | D98: Tirol | E98: 1 -Innsbruck Stadt | F98: Innsbruck | G98: 6168 | H98: 6422 | I98: 6535 | J98: 6671 | K98: 6737 | L98: 6777 | M98: 6969 | N98: 7240 | O98: 7376 | P98: 7512 | Q98: 7739 | R98: 7943 | S98: 8144 | T98: 8255 | U98: 8364 | V98: 8559 | W98: 8694 | X98: 8841 | Y98: 8919 | Z98: 8963 | AA98: 9267 | AB98: 9345 | AC98: 9381 | AD98: 9491 | AE98: 9581
A99: aktiveTirolImst | B99: 99 | C99: aktive | D99: Tirol | E99: 2 -Pol.Bez. Imst | F99: Imst | G99: 2299 | H99: 2350 | I99: 2419 | J99: 2512 | K99: 2579 | L99: 2617 | M99: 2683 | N99: 2774 | O99: 2838 | P99: 2943 | Q99: 2995 | R99: 3074 | S99: 3199 | T99: 3284 | U99: 3353 | V99: 3396 | W99: 3498 | X99: 3603 | Y99: 3687 | Z99: 3784 | AA99: 3930 | AB99: 4087 | AC99: 4146 | AD99: 4281 | AE99: 4336
A100: aktiveTirolInnsbruck Land | B100: 100 | C100: aktive | D100: Tirol | E100: 3 -Innsbruck Land | F100: Innsbruck Land | G100: 6235 | H100: 6495 | I100: 6645 | J100: 6859 | K100: 7062 | L100: 7232 | M100: 7464 | N100: 7779 | O100: 8009 | P100: 8347 | Q100: 8452 | R100: 8608 | S100: 8927 | T100: 9056 | U100: 9362 | V100: 9675 | W100: 9894 | X100: 9949 | Y100: 10198 | Z100: 10466 | AA100: 10871 | AB100: 11178 | AC100: 11555 | AD100: 11766 | AE100: 12032
A101: aktiveTirolKitzbühel | B101: 101 | C101: aktive | D101: Tirol | E101: 4 -Pol.Bez. Kitzbühel | F101: Kitzbühel | G101: 3486 | H101: 3549 | I101: 3762 | J101: 3842 | K101: 3910 | L101: 4005 | M101: 4129 | N101: 4229 | O101: 4315 | P101: 4418 | Q101: 4525 | R101: 4593 | S101: 4709 | T101: 4860 | U101: 4972 | V101: 5075 | W101: 5193 | X101: 5306 | Y101: 5406 | Z101: 5431 | AA101: 5622 | AB101: 5728 | AC101: 5851 | AD101: 5872 | AE101: 6015
A102: aktiveTirolKufstein | B102: 102 | C102: aktive | D102: Tirol | E102: 5 -Pol.Bez. Kufstein | F102: Kufstein | G102: 4139 | H102: 4317 | I102: 4480 | J102: 4726 | K102: 4781 | L102: 4929 | M102: 5107 | N102: 5226 | O102: 5317 | P102: 5444 | Q102: 5612 | R102: 5744 | S102: 5834 | T102: 5924 | U102: 6064 | V102: 6231 | W102: 6390 | X102: 6497 | Y102: 6708 | Z102: 7019 | AA102: 7267 | AB102: 7430 | AC102: 7455 | AD102: 7596 | AE102: 7803
A103: aktiveTirolLandeck | B103: 103 | C103: aktive | D103: Tirol | E103: 6 -Pol.Bez. Landeck | F103: Landeck | G103: 2106 | H103: 2121 | I103: 2193 | J103: 2231 | K103: 2274 | L103: 2302 | M103: 2350 | N103: 2388 | O103: 2420 | P103: 2423 | Q103: 2473 | R103: 2530 | S103: 2627 | T103: 2676 | U103: 2723 | V103: 2770 | W103: 2827 | X103: 2876 | Y103: 2926 | Z103: 2925 | AA103: 3041 | AB103: 3117 | AC103: 3241 | AD103: 3406 | AE103: 3460
A104: aktiveTirolLienz | B104: 104 | C104: aktive | D104: Tirol | E104: 7 -Pol.Bez. Lienz | F104: Lienz | G104: 1822 | H104: 1839 | I104: 1903 | J104: 1983 | K104: 2022 | L104: 2087 | M104: 2152 | N104: 2207 | O104: 2261 | P104: 2314 | Q104: 2367 | R104: 2447 | S104: 2498 | T104: 2615 | U104: 2736 | V104: 2867 | W104: 2949 | X104: 2958 | Y104: 3019 | Z104: 3093 | AA104: 3225 | AB104: 3264 | AC104: 3219 | AD104: 2994 | AE104: 3041
A105: aktiveTirolReutte | B105: 105 | C105: aktive | D105: Tirol | E105: 8 -Pol.Bez. Reutte | F105: Reutte | G105: 1480 | H105: 1517 | I105: 1539 | J105: 1582 | K105: 1604 | L105: 1618 | M105: 1669 | N105: 1720 | O105: 1772 | P105: 1792 | Q105: 1837 | R105: 1863 | S105: 1900 | T105: 1944 | U105: 2005 | V105: 2036 | W105: 2100 | X105: 2138 | Y105: 2181 | Z105: 2302 | AA105: 2423 | AB105: 2480 | AC105: 2572 | AD105: 2642 | AE105: 2698
A106: aktiveTirolSchwaz | B106: 106 | C106: aktive | D106: Tirol | E106: 9 -Pol.Bez. Schwaz | F106: Schwaz | G106: 3520 | H106: 3592 | I106: 3719 | J106: 3808 | K106: 3864 | L106: 3902 | M106: 4017 | N106: 4079 | O106: 4193 | P106: 4267 | Q106: 4297 | R106: 4399 | S106: 4431 | T106: 4546 | U106: 4641 | V106: 4798 | W106: 4892 | X106: 5014 | Y106: 5134 | Z106: 5230 | AA106: 5552 | AB106: 5674 | AC106: 5780 | AD106: 5883 | AE106: 5998
B107: 107 | C107: aktive | D107: Vorarlberg | E107: 0 -im Bundesland gültig | G107: 0 | H107: 0 | I107: 0 | J107: 64 | K107: 153 | L107: 0 | M107: 1 | N107: 0 | O107: 1 | P107: 2 | Q107: 1 | R107: 1 | S107: 1 | T107: 3 | U107: 5 | V107: 0 | W107: 0 | X107: 1 | Y107: 1 | AA107: 3 | AC107: 1 | AD107: 1 | AE107: 1
A108: aktiveVorarlbergBludenz | B108: 108 | C108: aktive | D108: Vorarlberg | E108: 1 -Pol.Bez. Bludenz | F108: Bludenz | G108: 2706 | H108: 2750 | I108: 2780 | J108: 2845 | K108: 2816 | L108: 2834 | M108: 2845 | N108: 3018 | O108: 3090 | P108: 3209 | Q108: 3295 | R108: 3395 | S108: 3524 | T108: 3593 | U108: 3663 | V108: 3743 | W108: 3802 | X108: 3859 | Y108: 3937 | Z108: 4004 | AA108: 4179 | AB108: 4248 | AC108: 4358 | AD108: 4448 | AE108: 4645
A109: aktiveVorarlbergBregenz | B109: 109 | C109: aktive | D109: Vorarlberg | E109: 2 -Pol.Bez. Bregenz | F109: Bregenz | G109: 5398 | H109: 5503 | I109: 5582 | J109: 5715 | K109: 5770 | L109: 5879 | M109: 5963 | N109: 6262 | O109: 6430 | P109: 6574 | Q109: 6728 | R109: 6900 | S109: 7056 | T109: 7340 | U109: 7502 | V109: 7617 | W109: 7758 | X109: 7975 | Y109: 8093 | Z109: 8264 | AA109: 8442 | AB109: 8578 | AC109: 8758 | AD109: 8807 | AE109: 9060
A110: aktiveVorarlbergDornbirn | B110: 110 | C110: aktive | D110: Vorarlberg | E110: 3 -Pol.Bez. Dornbirn | F110: Dornbirn | G110: 3796 | H110: 3892 | I110: 3965 | J110: 4047 | K110: 4052 | L110: 4135 | M110: 4126 | N110: 4334 | O110: 4406 | P110: 4547 | Q110: 4734 | R110: 4852 | S110: 4877 | T110: 5043 | U110: 5184 | V110: 5220 | W110: 5304 | X110: 5345 | Y110: 5502 | Z110: 5612 | AA110: 5882 | AB110: 5961 | AC110: 6058 | AD110: 6021 | AE110: 6110
A111: aktiveVorarlbergFeldkirch | B111: 111 | C111: aktive | D111: Vorarlberg | E111: 4 -Pol.Bez. Feldkirch | F111: Feldkirch | G111: 3859 | H111: 3938 | I111: 4007 | J111: 4157 | K111: 4172 | L111: 4215 | M111: 4275 | N111: 4595 | O111: 4738 | P111: 4855 | Q111: 5026 | R111: 5089 | S111: 5272 | T111: 5387 | U111: 5515 | V111: 5606 | W111: 5677 | X111: 5801 | Y111: 5884 | Z111: 6001 | AA111: 6195 | AB111: 6350 | AC111: 6436 | AD111: 6519 | AE111: 6579
B112: 112 | C112: aktive | D112: Wien | E112: 0 -im Bundesland gültig | G112: 108 | H112: 101 | I112: 108 | J112: 348 | K112: 320 | L112: 72 | M112: 46 | N112: 47 | O112: 37 | P112: 43 | Q112: 41 | R112: 23 | S112: 21 | T112: 23 | U112: 28 | V112: 27 | W112: 28 | X112: 283 | AD112: 1 | AE112: 1
A113: aktiveWienInnere Stadt | B113: 113 | C113: aktive | D113: Wien | E113: 1 -I. Bezirk | F113: Innere Stadt | G113: 5774 | H113: 5841 | I113: 5878 | J113: 6033 | K113: 6118 | L113: 6185 | M113: 6374 | N113: 6457 | O113: 6583 | P113: 6709 | Q113: 6921 | R113: 7054 | S113: 7271 | T113: 7478 | U113: 7639 | V113: 7676 | W113: 7934 | X113: 8265 | Y113: 8565 | Z113: 8960 | AA113: 9310 | AB113: 9525 | AC113: 9674 | AD113: 9834 | AE113: 10086
A114: aktiveWienLeopoldstadt | B114: 114 | C114: aktive | D114: Wien | E114: 2 -II. Bezirk | F114: Leopoldstadt | G114: 3950 | H114: 4001 | I114: 4085 | J114: 4426 | K114: 4709 | L114: 4828 | M114: 4985 | N114: 5164 | O114: 5354 | P114: 5573 | Q114: 5611 | R114: 5730 | S114: 5874 | T114: 5809 | U114: 5903 | V114: 6112 | W114: 6217 | X114: 6333 | Y114: 6540 | Z114: 6740 | AA114: 7004 | AB114: 7189 | AC114: 7357 | AD114: 7555 | AE114: 7861
A115: aktiveWienLandstraße | B115: 115 | C115: aktive | D115: Wien | E115: 3 -III. Bezirk | F115: Landstraße | G115: 4781 | H115: 4871 | I115: 5005 | J115: 5341 | K115: 5587 | L115: 5788 | M115: 6084 | N115: 6318 | O115: 6478 | P115: 6598 | Q115: 6717 | R115: 6947 | S115: 7192 | T115: 7330 | U115: 7544 | V115: 7768 | W115: 7858 | X115: 7940 | Y115: 8091 | Z115: 8288 | AA115: 8513 | AB115: 8616 | AC115: 8735 | AD115: 9004 | AE115: 9301
A116: aktiveWienWieden | B116: 116 | C116: aktive | D116: Wien | E116: 4 -IV. Bezirk | F116: Wieden | G116: 2614 | H116: 2647 | I116: 2711 | J116: 2813 | K116: 2869 | L116: 2954 | M116: 3027 | N116: 3135 | O116: 3261 | P116: 3301 | Q116: 3346 | R116: 3374 | S116: 3408 | T116: 3473 | U116: 3530 | V116: 3663 | W116: 4210 | X116: 4303 | Y116: 4330 | Z116: 4356 | AA116: 4410 | AB116: 4314 | AC116: 4306 | AD116: 4434 | AE116: 4565
A117: aktiveWienMargareten | B117: 117 | C117: aktive | D117: Wien | E117: 5 -V. Bezirk | F117: Margareten | G117: 2513 | H117: 2565 | I117: 2642 | J117: 2861 | K117: 3042 | L117: 3130 | M117: 3208 | N117: 3233 | O117: 3335 | P117: 3420 | Q117: 3431 | R117: 3445 | S117: 3538 | T117: 3511 | U117: 3557 | V117: 3636 | W117: 3632 | X117: 3690 | Y117: 3743 | Z117: 3760 | AA117: 3840 | AB117: 3835 | AC117: 3855 | AD117: 3938 | AE117: 4009
A118: aktiveWienMariahilf | B118: 118 | C118: aktive | D118: Wien | E118: 6 -VI. Bezirk | F118: Mariahilf | G118: 2847 | H118: 2809 | I118: 2930 | J118: 3049 | K118: 3061 | L118: 3118 | M118: 3183 | N118: 3243 | O118: 3349 | P118: 3488 | Q118: 3532 | R118: 3584 | S118: 3658 | T118: 3780 | U118: 3826 | V118: 3872 | W118: 3851 | X118: 3890 | Y118: 3964 | Z118: 4052 | AA118: 4090 | AB118: 4132 | AC118: 4122 | AD118: 4185 | AE118: 4248
A119: aktiveWienNeubau | B119: 119 | C119: aktive | D119: Wien | E119: 7 -VII. Bezirk | F119: Neubau | G119: 3161 | H119: 3250 | I119: 3314 | J119: 3430 | K119: 3487 | L119: 3602 | M119: 3689 | N119: 4278 | O119: 4755 | P119: 5135 | Q119: 5288 | R119: 5499 | S119: 5646 | T119: 5747 | U119: 5799 | V119: 5601 | W119: 5016 | X119: 4800 | Y119: 4586 | Z119: 4599 | AA119: 4758 | AB119: 4791 | AC119: 4801 | AD119: 4867 | AE119: 4958
A120: aktiveWienJosefstadt | B120: 120 | C120: aktive | D120: Wien | E120: 8 -VIII. Bezirk | F120: Josefstadt | G120: 1879 | H120: 1876 | I120: 1948 | J120: 2032 | K120: 2078 | L120: 2134 | M120: 2144 | N120: 2209 | O120: 2247 | P120: 2313 | Q120: 2362 | R120: 2417 | S120: 2483 | T120: 2533 | U120: 2649 | V120: 2750 | W120: 2643 | X120: 2670 | Y120: 2649 | Z120: 2671 | AA120: 2701 | AB120: 2725 | AC120: 2797 | AD120: 2797 | AE120: 2827
A121: aktiveWienAlsergrund | B121: 121 | C121: aktive | D121: Wien | E121: 9 -IX. Bezirk | F121: Alsergrund | G121: 2917 | H121: 2988 | I121: 3042 | J121: 3139 | K121: 3252 | L121: 3338 | M121: 3352 | N121: 3415 | O121: 3501 | P121: 3587 | Q121: 3560 | R121: 3634 | S121: 3738 | T121: 3803 | U121: 3923 | V121: 4022 | W121: 4038 | X121: 4118 | Y121: 4171 | Z121: 4238 | AA121: 4313 | AB121: 4312 | AC121: 4334 | AD121: 4404 | AE121: 4467
A122: aktiveWienFavoriten | B122: 122 | C122: aktive | D122: Wien | E122: 10-X. Bezirk | F122: Favoriten | G122: 4828 | H122: 4895 | I122: 4962 | J122: 5424 | K122: 5724 | L122: 6046 | M122: 6309 | N122: 6511 | O122: 6738 | P122: 7088 | Q122: 7197 | R122: 7243 | S122: 7363 | T122: 7222 | U122: 7238 | V122: 7383 | W122: 7518 | X122: 7792 | Y122: 7876 | Z122: 8046 | AA122: 8569 | AB122: 8910 | AC122: 8979 | AD122: 9249 | AE122: 9520
A123: aktiveWienSimmering | B123: 123 | C123: aktive | D123: Wien | E123: 11-XI. Bezirk | F123: Simmering | G123: 2188 | H123: 2289 | I123: 2402 | J123: 2572 | K123: 2703 | L123: 2766 | M123: 2872 | N123: 3055 | O123: 3148 | P123: 3301 | Q123: 3326 | R123: 3340 | S123: 3333 | T123: 3261 | U123: 3301 | V123: 3392 | W123: 3455 | X123: 3548 | Y123: 3597 | Z123: 3629 | AA123: 3842 | AB123: 4048 | AC123: 4111 | AD123: 4214 | AE123: 4321
A124: aktiveWienMeidling | B124: 124 | C124: aktive | D124: Wien | E124: 12-XII. Bezirk | F124: Meidling | G124: 3140 | H124: 3201 | I124: 3229 | J124: 3486 | K124: 3658 | L124: 3841 | M124: 3944 | N124: 4230 | O124: 4413 | P124: 4423 | Q124: 4450 | R124: 4493 | S124: 4548 | T124: 4558 | U124: 4569 | V124: 5061 | W124: 5868 | X124: 6204 | Y124: 6537 | Z124: 6573 | AA124: 6592 | AB124: 6439 | AC124: 6530 | AD124: 6632 | AE124: 6748
A125: aktiveWienHietzing | B125: 125 | C125: aktive | D125: Wien | E125: 13-XIII. Bezirk | F125: Hietzing | G125: 2315 | H125: 2380 | I125: 2458 | J125: 2545 | K125: 2628 | L125: 2680 | M125: 2715 | N125: 2842 | O125: 2985 | P125: 3034 | Q125: 3095 | R125: 3218 | S125: 3328 | T125: 3433 | U125: 3555 | V125: 3673 | W125: 3739 | X125: 3797 | Y125: 3778 | Z125: 3768 | AA125: 3899 | AB125: 4015 | AC125: 4042 | AD125: 4025 | AE125: 4083
A126: aktiveWienPenzing | B126: 126 | C126: aktive | D126: Wien | E126: 14-XIV. Bezirk | F126: Penzing | G126: 2977 | H126: 3037 | I126: 3134 | J126: 3389 | K126: 3547 | L126: 3692 | M126: 3763 | N126: 3964 | O126: 4153 | P126: 4312 | Q126: 4298 | R126: 4399 | S126: 4471 | T126: 4526 | U126: 4604 | V126: 4689 | W126: 4725 | X126: 4729 | Y126: 4835 | Z126: 4870 | AA126: 4959 | AB126: 5007 | AC126: 5121 | AD126: 5245 | AE126: 5440
A127: aktiveWienRudolfsheim-Fünfhaus | B127: 127 | C127: aktive | D127: Wien | E127: 15-XV. Bezirk | F127: Rudolfsheim-Fünfhaus | G127: 3305 | H127: 3372 | I127: 3407 | J127: 3640 | K127: 3847 | L127: 4007 | M127: 4107 | N127: 4200 | O127: 4232 | P127: 4515 | Q127: 4504 | R127: 4603 | S127: 4687 | T127: 4570 | U127: 4609 | V127: 4570 | W127: 4529 | X127: 4575 | Y127: 4661 | Z127: 4667 | AA127: 4736 | AB127: 4747 | AC127: 4794 | AD127: 4848 | AE127: 4931
A128: aktiveWienOttakring | B128: 128 | C128: aktive | D128: Wien | E128: 16-XVI. Bezirk | F128: Ottakring | G128: 3334 | H128: 3396 | I128: 3534 | J128: 3863 | K128: 4126 | L128: 4318 | M128: 4472 | N128: 4762 | O128: 5062 | P128: 5228 | Q128: 5232 | R128: 5369 | S128: 5487 | T128: 5437 | U128: 5481 | V128: 5439 | W128: 4963 | X128: 5032 | Y128: 5068 | Z128: 5069 | AA128: 5250 | AB128: 5284 | AC128: 5263 | AD128: 5271 | AE128: 5343
A129: aktiveWienHernals | B129: 129 | C129: aktive | D129: Wien | E129: 17-XVII. Bezirk | F129: Hernals | G129: 2221 | H129: 2253 | I129: 2266 | J129: 2566 | K129: 2735 | L129: 2797 | M129: 2890 | N129: 2953 | O129: 2933 | P129: 3030 | Q129: 2981 | R129: 3030 | S129: 3001 | T129: 2941 | U129: 2980 | V129: 2952 | W129: 2962 | X129: 3063 | Y129: 3055 | Z129: 3089 | AA129: 3170 | AB129: 3126 | AC129: 3157 | AD129: 3233 | AE129: 3300
A130: aktiveWienWähring | B130: 130 | C130: aktive | D130: Wien | E130: 18-XVIII. Bezirk | F130: Währing | G130: 2364 | H130: 2418 | I130: 2481 | J130: 2636 | K130: 2704 | L130: 2774 | M130: 2823 | N130: 2916 | O130: 3000 | P130: 3041 | Q130: 3109 | R130: 3217 | S130: 3260 | T130: 3308 | U130: 3269 | V130: 3378 | W130: 3460 | X130: 3509 | Y130: 3609 | Z130: 3679 | AA130: 3851 | AB130: 3872 | AC130: 3954 | AD130: 4016 | AE130: 4029
A131: aktiveWienDöbling | B131: 131 | C131: aktive | D131: Wien | E131: 19-XIX. Bezirk | F131: Döbling | G131: 3124 | H131: 3170 | I131: 3191 | J131: 3308 | K131: 3476 | L131: 3656 | M131: 3743 | N131: 4083 | O131: 4364 | P131: 4604 | Q131: 4663 | R131: 4769 | S131: 4980 | T131: 5039 | U131: 5138 | V131: 5149 | W131: 5220 | X131: 5284 | Y131: 5348 | Z131: 5419 | AA131: 5548 | AB131: 5596 | AC131: 5643 | AD131: 5707 | AE131: 5811
A132: =C132&D132&F132 -> aktiveWienBrigittenau | B132: 132 | C132: aktive | D132: Wien | E132: 20-XX. Bezirk | F132: Brigittenau | G132: 2469 | H132: 2504 | I132: 2627 | J132: 2804 | K132: 3051 | L132: 3138 | M132: 3184 | N132: 3256 | O132: 3371 | P132: 3496 | Q132: 3452 | R132: 3469 | S132: 3532 | T132: 3427 | U132: 3462 | V132: 3497 | W132: 3517 | X132: 3511 | Y132: 3546 | Z132: 3514 | AA132: 3654 | AB132: 3672 | AC132: 3716 | AD132: 3844 | AE132: 3883
A133: aktiveWienFloridsdorf | B133: 133 | C133: aktive | D133: Wien | E133: 21-XXI. Bezirk | F133: Floridsdorf | G133: 3889 | H133: 4056 | I133: 4174 | J133: 4382 | K133: 4645 | L133: 4797 | M133: 4892 | N133: 5050 | O133: 5233 | P133: 5308 | Q133: 5341 | R133: 5413 | S133: 5579 | T133: 5531 | U133: 5713 | V133: 5922 | W133: 6112 | X133: 6168 | Y133: 6360 | Z133: 6534 | AA133: 6825 | AB133: 7026 | AC133: 7200 | AD133: 7404 | AE133: 7473
A134: aktiveWienDonaustadt | B134: 134 | C134: aktive | D134: Wien | E134: 22-XXII. Bezirk | F134: Donaustadt | G134: 4061 | H134: 4308 | I134: 4608 | J134: 5026 | K134: 5204 | L134: 5400 | M134: 5632 | N134: 5880 | O134: 6074 | P134: 6241 | Q134: 6485 | R134: 6660 | S134: 6846 | T134: 7114 | U134: 7309 | V134: 7604 | W134: 7943 | X134: 8190 | Y134: 8507 | Z134: 8605 | AA134: 8756 | AB134: 9086 | AC134: 9459 | AD134: 9786 | AE134: 10236
A135: aktiveWienLiesing | B135: 135 | C135: aktive | D135: Wien | E135: 23-XXIII. Bezirk | F135: Liesing | G135: 4273 | H135: 4283 | I135: 4456 | J135: 4667 | K135: 4748 | L135: 4895 | M135: 5072 | N135: 5275 | O135: 5387 | P135: 5494 | Q135: 5559 | R135: 5716 | S135: 5846 | T135: 5943 | U135: 6076 | V135: 6299 | W135: 6472 | X135: 6718 | Y135: 6780 | Z135: 6925 | AA135: 7160 | AB135: 7393 | AC135: 7472 | AD135: 7622 | AE135: 7720
B136: 136 | C136: ruhende | D136: Burgenland | E136: 0 -im Bundesland gültig | G136: 0 | H136: 1 | I136: 0 | J136: 10 | K136: 2 | L136: 4 | M136: 2 | N136: 7 | O136: 6 | P136: 7 | Q136: 10 | R136: 9 | S136: 9 | T136: 10 | U136: 2 | V136: 4 | W136: 11 | X136: 10 | Y136: 10 | Z136: 17 | AA136: 17 | AB136: 14 | AC136: 6 | AD136: 7 | AE136: 8
A137: ruhendeBurgenlandEisenstadt-Umgebung | B137: 137 | C137: ruhende | D137: Burgenland | E137: 1 -Eisenstadt-Umgebung | F137: Eisenstadt-Umgebung | G137: 472 | H137: 493 | I137: 516 | J137: 561 | K137: 603 | L137: 639 | M137: 633 | N137: 894 | O137: 1045 | P137: 1148 | Q137: 1258 | R137: 1388 | S137: 1460 | T137: 1579 | U137: 1673 | V137: 1668 | W137: 1638 | X137: 1615 | Y137: 1503 | Z137: 1566 | AA137: 1466 | AB137: 1384 | AC137: 1256 | AD137: 1233 | AE137: 1242
A138: ruhendeBurgenlandNeusiedl am See | B138: 138 | C138: ruhende | D138: Burgenland | E138: 2 -Neusiedl am See | F138: Neusiedl am See | G138: 422 | H138: 420 | I138: 454 | J138: 460 | K138: 460 | L138: 461 | M138: 478 | N138: 542 | O138: 605 | P138: 711 | Q138: 774 | R138: 828 | S138: 959 | T138: 995 | U138: 1179 | V138: 1208 | W138: 1223 | X138: 1237 | Y138: 1132 | Z138: 1233 | AA138: 1134 | AB138: 1082 | AC138: 984 | AD138: 983 | AE138: 987
A139: ruhendeBurgenlandMattersburg | B139: 139 | C139: ruhende | D139: Burgenland | E139: 3 -Mattersburg | F139: Mattersburg | G139: 378 | H139: 384 | I139: 388 | J139: 412 | K139: 398 | L139: 403 | M139: 417 | N139: 507 | O139: 559 | P139: 637 | Q139: 747 | R139: 816 | S139: 840 | T139: 870 | U139: 868 | V139: 878 | W139: 868 | X139: 876 | Y139: 825 | Z139: 818 | AA139: 746 | AB139: 765 | AC139: 707 | AD139: 688 | AE139: 688
A140: ruhendeBurgenlandOberpullendorf | B140: 140 | C140: ruhende | D140: Burgenland | E140: 4 -Oberpullendorf | F140: Oberpullendorf | G140: 245 | H140: 270 | I140: 278 | J140: 282 | K140: 286 | L140: 276 | M140: 306 | N140: 347 | O140: 404 | P140: 471 | Q140: 559 | R140: 615 | S140: 676 | T140: 739 | U140: 830 | V140: 839 | W140: 852 | X140: 810 | Y140: 754 | Z140: 765 | AA140: 708 | AB140: 686 | AC140: 578 | AD140: 615 | AE140: 622
A141: ruhendeBurgenlandOberwart | B141: 141 | C141: ruhende | D141: Burgenland | E141: 5 -Oberwart | F141: Oberwart | G141: 373 | H141: 401 | I141: 431 | J141: 444 | K141: 472 | L141: 484 | M141: 468 | N141: 529 | O141: 600 | P141: 683 | Q141: 758 | R141: 839 | S141: 938 | T141: 1054 | U141: 1113 | V141: 1117 | W141: 1092 | X141: 1124 | Y141: 1108 | Z141: 1131 | AA141: 1052 | AB141: 1045 | AC141: 930 | AD141: 927 | AE141: 918
A142: ruhendeBurgenlandGüssing | B142: 142 | C142: ruhende | D142: Burgenland | E142: 6 -Güssing | F142: Güssing | G142: 136 | H142: 152 | I142: 184 | J142: 204 | K142: 237 | L142: 249 | M142: 238 | N142: 290 | O142: 341 | P142: 384 | Q142: 439 | R142: 527 | S142: 564 | T142: 613 | U142: 653 | V142: 643 | W142: 579 | X142: 520 | Y142: 493 | Z142: 517 | AA142: 446 | AB142: 407 | AC142: 383 | AD142: 379 | AE142: 404
A143: ruhendeBurgenlandJennersdorf | B143: 143 | C143: ruhende | D143: Burgenland | E143: 7 -Jennersdorf | F143: Jennersdorf | G143: 95 | H143: 95 | I143: 92 | J143: 102 | K143: 108 | L143: 123 | M143: 121 | N143: 134 | O143: 154 | P143: 167 | Q143: 193 | R143: 200 | S143: 211 | T143: 235 | U143: 252 | V143: 304 | W143: 294 | X143: 295 | Y143: 282 | Z143: 357 | AA143: 314 | AB143: 365 | AC143: 420 | AD143: 427 | AE143: 403
B144: 144 | C144: ruhende | D144: Kärnten | E144: 0 -im Bundesland gültig | G144: 0 | H144: 0 | I144: 0 | J144: 10 | K144: 0 | L144: 0 | M144: 0 | N144: 0 | O144: 0 | P144: 0 | Q144: 1 | R144: 1 | S144: 1 | T144: 1 | U144: 0 | V144: 0 | W144: 0 | X144: 0
A145: ruhendeKärntenFeldkirchen | B145: 145 | C145: ruhende | D145: Kärnten | E145: 1 -Pol.Bez. Feldkirchen | F145: Feldkirchen | G145: 264 | H145: 269 | I145: 300 | J145: 334 | K145: 328 | L145: 306 | M145: 304 | N145: 321 | O145: 319 | P145: 335 | Q145: 362 | R145: 433 | S145: 494 | T145: 406 | U145: 415 | V145: 438 | W145: 469 | X145: 408 | Y145: 409 | Z145: 425 | AA145: 379 | AB145: 409 | AC145: 391 | AD145: 413 | AE145: 402
A146: ruhendeKärntenHermagor | B146: 146 | C146: ruhende | D146: Kärnten | E146: 2 -Pol.Bez. Hermagor | F146: Hermagor | G146: 149 | H146: 144 | I146: 155 | J146: 142 | K146: 153 | L146: 160 | M146: 151 | N146: 148 | O146: 155 | P146: 159 | Q146: 171 | R146: 189 | S146: 185 | T146: 203 | U146: 199 | V146: 178 | W146: 184 | X146: 181 | Y146: 181 | Z146: 201 | AA146: 189 | AB146: 187 | AC146: 185 | AD146: 190 | AE146: 185
A147: ruhendeKärntenKlagenfurt-Land | B147: 147 | C147: ruhende | D147: Kärnten | E147: 3 -Pol.Bez. Klagenfurt-Land | F147: Klagenfurt-Land | G147: 653 | H147: 648 | I147: 703 | J147: 697 | K147: 682 | L147: 652 | M147: 677 | N147: 695 | O147: 713 | P147: 776 | Q147: 780 | R147: 831 | S147: 833 | T147: 901 | U147: 961 | V147: 967 | W147: 988 | X147: 948 | Y147: 947 | Z147: 940 | AA147: 910 | AB147: 875 | AC147: 866 | AD147: 854 | AE147: 890
A148: ruhendeKärntenKlagenfurt am Wörthersee | B148: 148 | C148: ruhende | D148: Kärnten | E148: 4 -Statutarstadt Klagenfurt | F148: Klagenfurt am Wörthersee | G148: 1159 | H148: 1213 | I148: 1270 | J148: 1205 | K148: 1207 | L148: 1175 | M148: 1159 | N148: 1202 | O148: 1246 | P148: 1307 | Q148: 1296 | R148: 1390 | S148: 1465 | T148: 1586 | U148: 1675 | V148: 1731 | W148: 1705 | X148: 1610 | Y148: 1584 | Z148: 1633 | AA148: 1582 | AB148: 1559 | AC148: 1527 | AD148: 1534 | AE148: 1546
A149: ruhendeKärntenSankt Veit an der Glan | B149: 149 | C149: ruhende | D149: Kärnten | E149: 5 -Pol.Bez. Sankt Veit an der Glan | F149: Sankt Veit an der Glan | G149: 515 | H149: 552 | I149: 571 | J149: 558 | K149: 553 | L149: 518 | M149: 502 | N149: 503 | O149: 531 | P149: 559 | Q149: 624 | R149: 659 | S149: 706 | T149: 726 | U149: 765 | V149: 778 | W149: 865 | X149: 853 | Y149: 802 | Z149: 793 | AA149: 729 | AB149: 696 | AC149: 687 | AD149: 692 | AE149: 703
A150: ruhendeKärntenSpittal an der Drau | B150: 150 | C150: ruhende | D150: Kärnten | E150: 6 -Pol.Bez. Spittal an der Drau | F150: Spittal an der Drau | G150: 836 | H150: 849 | I150: 912 | J150: 902 | K150: 853 | L150: 838 | M150: 832 | N150: 830 | O150: 858 | P150: 937 | Q150: 923 | R150: 958 | S150: 1003 | T150: 1047 | U150: 1037 | V150: 1000 | W150: 1019 | X150: 952 | Y150: 943 | Z150: 987 | AA150: 941 | AB150: 928 | AC150: 935 | AD150: 955 | AE150: 972
A151: ruhendeKärntenVillach-Land | B151: 151 | C151: ruhende | D151: Kärnten | E151: 7 -Pol.Bez. Villach-Land | F151: Villach-Land | G151: 584 | H151: 606 | I151: 629 | J151: 640 | K151: 623 | L151: 610 | M151: 596 | N151: 628 | O151: 635 | P151: 658 | Q151: 662 | R151: 679 | S151: 716 | T151: 756 | U151: 786 | V151: 778 | W151: 797 | X151: 762 | Y151: 773 | Z151: 771 | AA151: 738 | AB151: 724 | AC151: 747 | AD151: 764 | AE151: 793
A152: ruhendeKärntenVillach | B152: 152 | C152: ruhende | D152: Kärnten | E152: 8 -Statutarstadt Villach | F152: Villach | G152: 544 | H152: 572 | I152: 595 | J152: 609 | K152: 602 | L152: 580 | M152: 598 | N152: 594 | O152: 626 | P152: 673 | Q152: 667 | R152: 675 | S152: 686 | T152: 685 | U152: 692 | V152: 705 | W152: 758 | X152: 728 | Y152: 729 | Z152: 738 | AA152: 712 | AB152: 704 | AC152: 660 | AD152: 677 | AE152: 671
A153: ruhendeKärntenVölkermarkt | B153: 153 | C153: ruhende | D153: Kärnten | E153: 9 -Pol.Bez. Völkermarkt | F153: Völkermarkt | G153: 429 | H153: 435 | I153: 465 | J153: 460 | K153: 466 | L153: 425 | M153: 424 | N153: 448 | O153: 444 | P153: 456 | Q153: 482 | R153: 514 | S153: 543 | T153: 584 | U153: 595 | V153: 607 | W153: 672 | X153: 660 | Y153: 632 | Z153: 635 | AA153: 566 | AB153: 547 | AC153: 535 | AD153: 534 | AE153: 528
A154: ruhendeKärntenWolfsberg | B154: 154 | C154: ruhende | D154: Kärnten | E154: 10-Pol.Bez. Wolfsberg | F154: Wolfsberg | G154: 423 | H154: 418 | I154: 444 | J154: 455 | K154: 445 | L154: 433 | M154: 427 | N154: 428 | O154: 457 | P154: 436 | Q154: 454 | R154: 548 | S154: 649 | T154: 706 | U154: 742 | V154: 791 | W154: 860 | X154: 740 | Y154: 702 | Z154: 719 | AA154: 636 | AB154: 593 | AC154: 577 | AD154: 608 | AE154: 648
B155: 155 | C155: ruhende | D155: Niederösterreich | E155: 0 -im Bundesland gültig | G155: 0 | H155: 0 | I155: 0 | J155: 5 | K155: 0 | L155: 0 | M155: 0 | N155: 0 | O155: 2 | P155: 1 | Q155: 3 | R155: 2 | S155: 0 | T155: 0 | U155: 0 | V155: 0 | W155: 0 | X155: 0
A156: ruhendeNiederösterreichAmstetten | B156: 156 | C156: ruhende | D156: Niederösterreich | E156: 1 -Amstetten | F156: Amstetten | G156: 1079 | H156: 1070 | I156: 1123 | J156: 1145 | K156: 1136 | L156: 1129 | M156: 1117 | N156: 1187 | O156: 1255 | P156: 1297 | Q156: 1391 | R156: 1472 | S156: 1533 | T156: 1646 | U156: 1704 | V156: 1689 | W156: 1713 | X156: 1694 | Y156: 1726 | Z156: 1838 | AA156: 1759 | AB156: 1675 | AC156: 1538 | AD156: 1513 | AE156: 1513
A157: ruhendeNiederösterreichBaden | B157: 157 | C157: ruhende | D157: Niederösterreich | E157: 2 -Baden | F157: Baden | G157: 1989 | H157: 2062 | I157: 2160 | J157: 2213 | K157: 2269 | L157: 2322 | M157: 2343 | N157: 2403 | O157: 2504 | P157: 2563 | Q157: 2631 | R157: 2659 | S157: 2753 | T157: 2843 | U157: 2865 | V157: 2840 | W157: 2855 | X157: 2798 | Y157: 2769 | Z157: 2852 | AA157: 2845 | AB157: 2710 | AC157: 2494 | AD157: 2492 | AE157: 2414
A158: ruhendeNiederösterreichBruck an der Leitha | B158: 158 | C158: ruhende | D158: Niederösterreich | E158: 3 -Bruck/Leitha | F158: Bruck an der Leitha | G158: 372 | H158: 389 | I158: 404 | J158: 417 | K158: 435 | L158: 474 | M158: 486 | N158: 510 | O158: 529 | P158: 553 | Q158: 611 | R158: 659 | S158: 668 | T158: 767 | U158: 824 | V158: 803 | W158: 1846 | X158: 1878 | Y158: 1915 | Z158: 2031 | AA158: 2046 | AB158: 1989 | AC158: 1923 | AD158: 1890 | AE158: 1898
A159: ruhendeNiederösterreichGänserndorf | B159: 159 | C159: ruhende | D159: Niederösterreich | E159: 4 -Gänserndorf | F159: Gänserndorf | G159: 926 | H159: 961 | I159: 1023 | J159: 1056 | K159: 1137 | L159: 1178 | M159: 1221 | N159: 1283 | O159: 1375 | P159: 1456 | Q159: 1522 | R159: 1522 | S159: 1576 | T159: 1611 | U159: 1628 | V159: 1630 | W159: 1688 | X159: 1720 | Y159: 1716 | Z159: 1772 | AA159: 1769 | AB159: 1694 | AC159: 1547 | AD159: 1479 | AE159: 1512
A160: ruhendeNiederösterreichGmünd | B160: 160 | C160: ruhende | D160: Niederösterreich | E160: 5 -Gmünd | F160: Gmünd | G160: 490 | H160: 508 | I160: 526 | J160: 536 | K160: 554 | L160: 534 | M160: 543 | N160: 558 | O160: 562 | P160: 587 | Q160: 592 | R160: 626 | S160: 633 | T160: 670 | U160: 701 | V160: 716 | W160: 707 | X160: 657 | Y160: 623 | Z160: 669 | AA160: 675 | AB160: 627 | AC160: 567 | AD160: 555 | AE160: 554
A161: ruhendeNiederösterreichHollabrunn | B161: 161 | C161: ruhende | D161: Niederösterreich | E161: 6 -Hollabrunn | F161: Hollabrunn | G161: 482 | H161: 469 | I161: 481 | J161: 478 | K161: 486 | L161: 470 | M161: 486 | N161: 489 | O161: 516 | P161: 559 | Q161: 601 | R161: 648 | S161: 651 | T161: 692 | U161: 740 | V161: 758 | W161: 815 | X161: 747 | Y161: 722 | Z161: 759 | AA161: 725 | AB161: 672 | AC161: 598 | AD161: 590 | AE161: 589
A162: ruhendeNiederösterreichHorn | B162: 162 | C162: ruhende | D162: Niederösterreich | E162: 7 -Horn | F162: Horn | G162: 398 | H162: 421 | I162: 414 | J162: 413 | K162: 420 | L162: 425 | M162: 424 | N162: 447 | O162: 474 | P162: 494 | Q162: 506 | R162: 514 | S162: 507 | T162: 516 | U162: 575 | V162: 548 | W162: 589 | X162: 605 | Y162: 588 | Z162: 617 | AA162: 629 | AB162: 601 | AC162: 558 | AD162: 520 | AE162: 501
A163: ruhendeNiederösterreichKorneuburg | B163: 163 | C163: ruhende | D163: Niederösterreich | E163: 8 -Korneuburg | F163: Korneuburg | G163: 804 | H163: 842 | I163: 899 | J163: 931 | K163: 964 | L163: 968 | M163: 973 | N163: 987 | O163: 1056 | P163: 1124 | Q163: 1166 | R163: 1209 | S163: 1253 | T163: 1309 | U163: 1396 | V163: 1405 | W163: 1624 | X163: 1637 | Y163: 1613 | Z163: 1698 | AA163: 1710 | AB163: 1619 | AC163: 1488 | AD163: 1482 | AE163: 1489
A164: ruhendeNiederösterreichKrems-Land | B164: 164 | C164: ruhende | D164: Niederösterreich | E164: 9 -Krems/Donau (Land) | F164: Krems-Land | G164: 1014 | H164: 1053 | I164: 1043 | J164: 1063 | K164: 1048 | L164: 1058 | M164: 1070 | N164: 1096 | O164: 1172 | P164: 1297 | Q164: 1384 | R164: 1324 | S164: 1382 | T164: 1435 | U164: 1404 | V164: 1406 | W164: 1435 | X164: 1391 | Y164: 1415 | Z164: 1488 | AA164: 1435 | AB164: 1353 | AC164: 1235 | AD164: 1197 | AE164: 1147
A165: ruhendeNiederösterreichLilienfeld | B165: 165 | C165: ruhende | D165: Niederösterreich | E165: 10-Lilienfeld | F165: Lilienfeld | G165: 326 | H165: 335 | I165: 334 | J165: 335 | K165: 325 | L165: 334 | M165: 328 | N165: 328 | O165: 343 | P165: 345 | Q165: 363 | R165: 425 | S165: 421 | T165: 433 | U165: 436 | V165: 425 | W165: 461 | X165: 466 | Y165: 430 | Z165: 472 | AA165: 439 | AB165: 429 | AC165: 400 | AD165: 382 | AE165: 373
A166: ruhendeNiederösterreichMelk | B166: 166 | C166: ruhende | D166: Niederösterreich | E166: 11-Melk | F166: Melk | G166: 771 | H166: 825 | I166: 844 | J166: 873 | K166: 905 | L166: 936 | M166: 899 | N166: 928 | O166: 961 | P166: 964 | Q166: 1013 | R166: 1038 | S166: 1126 | T166: 1159 | U166: 1250 | V166: 1352 | W166: 1446 | X166: 1432 | Y166: 1417 | Z166: 1578 | AA166: 1516 | AB166: 1402 | AC166: 1218 | AD166: 1179 | AE166: 1143
A167: ruhendeNiederösterreichMistelbach | B167: 167 | C167: ruhende | D167: Niederösterreich | E167: 12-Mistelbach | F167: Mistelbach | G167: 613 | H167: 665 | I167: 705 | J167: 696 | K167: 717 | L167: 751 | M167: 766 | N167: 794 | O167: 819 | P167: 880 | Q167: 953 | R167: 1040 | S167: 1055 | T167: 1078 | U167: 1185 | V167: 1200 | W167: 1251 | X167: 1243 | Y167: 1298 | Z167: 1376 | AA167: 1372 | AB167: 1225 | AC167: 1193 | AD167: 1178 | AE167: 1166
A168: ruhendeNiederösterreichMödling | B168: 168 | C168: ruhende | D168: Niederösterreich | E168: 13-Mödling | F168: Mödling | G168: 2020 | H168: 2132 | I168: 2207 | J168: 2326 | K168: 2333 | L168: 2332 | M168: 2325 | N168: 2339 | O168: 2367 | P168: 2487 | Q168: 2570 | R168: 2636 | S168: 2713 | T168: 2708 | U168: 2785 | V168: 2729 | W168: 2737 | X168: 2725 | Y168: 2706 | Z168: 2834 | AA168: 2807 | AB168: 2657 | AC168: 2435 | AD168: 2350 | AE168: 2321
A169: ruhendeNiederösterreichNeunkirchen | B169: 169 | C169: ruhende | D169: Niederösterreich | E169: 14-Neunkirchen | F169: Neunkirchen | G169: 1048 | H169: 1064 | I169: 1123 | J169: 1120 | K169: 1131 | L169: 1161 | M169: 1169 | N169: 1186 | O169: 1244 | P169: 1253 | Q169: 1293 | R169: 1371 | S169: 1412 | T169: 1455 | U169: 1478 | V169: 1538 | W169: 1585 | X169: 1586 | Y169: 1571 | Z169: 1620 | AA169: 1591 | AB169: 1506 | AC169: 1411 | AD169: 1388 | AE169: 1376
A170: ruhendeNiederösterreichSankt Pölten-Land | B170: 170 | C170: ruhende | D170: Niederösterreich | E170: 15-Sankt Pölten (Land) | F170: Sankt Pölten-Land | G170: 1888 | H170: 1983 | I170: 2077 | J170: 2163 | K170: 2167 | L170: 2160 | M170: 2134 | N170: 2160 | O170: 2220 | P170: 2271 | Q170: 2335 | R170: 2533 | S170: 2640 | T170: 2806 | U170: 2895 | V170: 2900 | W170: 3469 | X170: 3427 | Y170: 3404 | Z170: 3599 | AA170: 3592 | AB170: 3444 | AC170: 3263 | AD170: 3275 | AE170: 3234
A171: ruhendeNiederösterreichScheibbs | B171: 171 | C171: ruhende | D171: Niederösterreich | E171: 16-Scheibbs | F171: Scheibbs | G171: 343 | H171: 369 | I171: 397 | J171: 415 | K171: 433 | L171: 422 | M171: 441 | N171: 439 | O171: 435 | P171: 429 | Q171: 459 | R171: 486 | S171: 487 | T171: 510 | U171: 540 | V171: 536 | W171: 553 | X171: 542 | Y171: 556 | Z171: 612 | AA171: 623 | AB171: 624 | AC171: 554 | AD171: 553 | AE171: 590
A172: ruhendeNiederösterreichTulln | B172: 172 | C172: ruhende | D172: Niederösterreich | E172: 17-Tulln | F172: Tulln | G172: 750 | H172: 767 | I172: 796 | J172: 806 | K172: 859 | L172: 879 | M172: 855 | N172: 901 | O172: 964 | P172: 1062 | Q172: 1088 | R172: 1175 | S172: 1221 | T172: 1239 | U172: 1300 | V172: 1339 | W172: 1894 | X172: 1908 | Y172: 1965 | Z172: 2000 | AA172: 2016 | AB172: 1932 | AC172: 1810 | AD172: 1811 | AE172: 1793
A173: ruhendeNiederösterreichWaidhofen an der Thaya | B173: 173 | C173: ruhende | D173: Niederösterreich | E173: 18-Waidhofen/Thaya | F173: Waidhofen an der Thaya | G173: 297 | H173: 293 | I173: 324 | J173: 319 | K173: 322 | L173: 316 | M173: 317 | N173: 306 | O173: 304 | P173: 322 | Q173: 344 | R173: 355 | S173: 354 | T173: 363 | U173: 384 | V173: 388 | W173: 388 | X173: 365 | Y173: 332 | Z173: 337 | AA173: 383 | AB173: 356 | AC173: 332 | AD173: 352 | AE173: 351
A174: ruhendeNiederösterreichWiener Neustadt-Land | B174: 174 | C174: ruhende | D174: Niederösterreich | E174: 19-Wiener Neustadt (Land) | F174: Wiener Neustadt-Land | G174: 1437 | H174: 1504 | I174: 1591 | J174: 1630 | K174: 1648 | L174: 1675 | M174: 1729 | N174: 1811 | O174: 1906 | P174: 2013 | Q174: 2105 | R174: 2255 | S174: 2296 | T174: 2438 | U174: 2505 | V174: 2541 | W174: 2612 | X174: 2596 | Y174: 2507 | Z174: 2665 | AA174: 2633 | AB174: 2512 | AC174: 2376 | AD174: 2334 | AE174: 2318
A175: ruhendeNiederösterreichWien-Umgebung | B175: 175 | C175: ruhende | D175: Niederösterreich | E175: 20-Wien-Umgebung | F175: Wien-Umgebung | G175: 1475 | H175: 1558 | I175: 1642 | J175: 1706 | K175: 1756 | L175: 1834 | M175: 1804 | N175: 1884 | O175: 1975 | P175: 2024 | Q175: 2166 | R175: 2299 | S175: 2315 | T175: 2365 | U175: 2358 | V175: 2338 | W175: 0 | X175: 0
A176: ruhendeNiederösterreichZwettl | B176: 176 | C176: ruhende | D176: Niederösterreich | E176: 21-Zwettl | F176: Zwettl | G176: 473 | H176: 490 | I176: 498 | J176: 479 | K176: 472 | L176: 474 | M176: 481 | N176: 474 | O176: 501 | P176: 517 | Q176: 501 | R176: 539 | S176: 551 | T176: 560 | U176: 595 | V176: 607 | W176: 638 | X176: 650 | Y176: 630 | Z176: 624 | AA176: 636 | AB176: 600 | AC176: 549 | AD176: 538 | AE176: 504
B177: 177 | C177: ruhende | D177: Niederösterreich | E177: 99-im Bundesland gültig | G177: 14 | H177: 14 | I177: 17 | J177: 15 | K177: 18 | L177: 19 | M177: 14 | N177: 17 | O177: 24 | P177: 26 | Q177: 20 | R177: 17 | S177: 20 | T177: 20 | U177: 20 | V177: 20 | W177: 20 | X177: 18 | Y177: 18 | Z177: 19 | AA177: 17 | AB177: 20 | AC177: 20 | AD177: 20 | AE177: 21
B178: 178 | C178: ruhende | D178: Oberösterreich | E178: 0 -im Bundesland gültig | G178: 0 | H178: 0 | I178: 0 | J178: 4 | K178: 6 | L178: 0 | M178: 0 | N178: 0 | O178: 0 | P178: 0 | Q178: 0 | R178: 0 | S178: 0 | T178: 0 | U178: 0 | V178: 0 | W178: 0 | X178: 0
A179: ruhendeOberösterreichLinz | B179: 179 | C179: ruhende | D179: Oberösterreich | E179: 1 -Statutarstadt Linz/Donau | F179: Linz | G179: 2634 | H179: 2694 | I179: 2776 | J179: 2811 | K179: 2770 | L179: 2730 | M179: 2802 | N179: 2820 | O179: 2946 | P179: 3029 | Q179: 3083 | R179: 3157 | S179: 3212 | T179: 3245 | U179: 3275 | V179: 3316 | W179: 3325 | X179: 3302 | Y179: 3315 | Z179: 3449 | AA179: 3428 | AB179: 3237 | AC179: 3085 | AD179: 3006 | AE179: 3054
A180: ruhendeOberösterreichSteyr | B180: 180 | C180: ruhende | D180: Oberösterreich | E180: 2 -Statutarstadt Steyr | F180: Steyr | G180: 450 | H180: 498 | I180: 494 | J180: 470 | K180: 455 | L180: 449 | M180: 433 | N180: 472 | O180: 469 | P180: 457 | Q180: 479 | R180: 499 | S180: 494 | T180: 511 | U180: 502 | V180: 499 | W180: 510 | X180: 505 | Y180: 496 | Z180: 507 | AA180: 494 | AB180: 481 | AC180: 468 | AD180: 436 | AE180: 423
A181: ruhendeOberösterreichWels | B181: 181 | C181: ruhende | D181: Oberösterreich | E181: 3 -Statutarstadt Wels | F181: Wels | G181: 692 | H181: 720 | I181: 735 | J181: 717 | K181: 693 | L181: 672 | M181: 676 | N181: 672 | O181: 712 | P181: 713 | Q181: 697 | R181: 742 | S181: 779 | T181: 761 | U181: 811 | V181: 869 | W181: 836 | X181: 811 | Y181: 839 | Z181: 853 | AA181: 829 | AB181: 812 | AC181: 817 | AD181: 797 | AE181: 790
A182: ruhendeOberösterreichBraunau am Inn | B182: 182 | C182: ruhende | D182: Oberösterreich | E182: 4 -Pol.Bez. Braunau am Inn | F182: Braunau am Inn | G182: 775 | H182: 810 | I182: 824 | J182: 824 | K182: 826 | L182: 819 | M182: 801 | N182: 830 | O182: 856 | P182: 926 | Q182: 926 | R182: 992 | S182: 1068 | T182: 1070 | U182: 1093 | V182: 1132 | W182: 1171 | X182: 1179 | Y182: 1176 | Z182: 1202 | AA182: 1193 | AB182: 1183 | AC182: 1084 | AD182: 1074 | AE182: 1024
A183: ruhendeOberösterreichEferding | B183: 183 | C183: ruhende | D183: Oberösterreich | E183: 5 -Pol.Bez. Eferding | F183: Eferding | G183: 316 | H183: 316 | I183: 335 | J183: 359 | K183: 373 | L183: 365 | M183: 349 | N183: 354 | O183: 364 | P183: 367 | Q183: 375 | R183: 401 | S183: 386 | T183: 375 | U183: 391 | V183: 396 | W183: 404 | X183: 421 | Y183: 437 | Z183: 460 | AA183: 460 | AB183: 440 | AC183: 411 | AD183: 431 | AE183: 419
A184: ruhendeOberösterreichFreistadt | B184: 184 | C184: ruhende | D184: Oberösterreich | E184: 6 -Pol.Bez. Freistadt | F184: Freistadt | G184: 414 | H184: 419 | I184: 421 | J184: 424 | K184: 443 | L184: 424 | M184: 425 | N184: 464 | O184: 512 | P184: 525 | Q184: 543 | R184: 561 | S184: 581 | T184: 616 | U184: 622 | V184: 636 | W184: 658 | X184: 651 | Y184: 673 | Z184: 688 | AA184: 724 | AB184: 720 | AC184: 691 | AD184: 674 | AE184: 712
A185: ruhendeOberösterreichGmunden | B185: 185 | C185: ruhende | D185: Oberösterreich | E185: 7 -Pol.Bez. Gmunden | F185: Gmunden | G185: 1164 | H185: 1197 | I185: 1216 | J185: 1212 | K185: 1231 | L185: 1184 | M185: 1207 | N185: 1163 | O185: 1187 | P185: 1194 | Q185: 1241 | R185: 1297 | S185: 1285 | T185: 1302 | U185: 1387 | V185: 1424 | W185: 1374 | X185: 1410 | Y185: 1391 | Z185: 1458 | AA185: 1441 | AB185: 1418 | AC185: 1356 | AD185: 1345 | AE185: 1310
A186: ruhendeOberösterreichGrieskirchen | B186: 186 | C186: ruhende | D186: Oberösterreich | E186: 8 -Pol.Bez. Grieskirchen | F186: Grieskirchen | G186: 474 | H186: 484 | I186: 504 | J186: 493 | K186: 480 | L186: 487 | M186: 487 | N186: 496 | O186: 503 | P186: 518 | Q186: 537 | R186: 537 | S186: 565 | T186: 593 | U186: 594 | V186: 601 | W186: 643 | X186: 629 | Y186: 642 | Z186: 708 | AA186: 718 | AB186: 684 | AC186: 647 | AD186: 660 | AE186: 674
A187: ruhendeOberösterreichKirchdorf an der Krems | B187: 187 | C187: ruhende | D187: Oberösterreich | E187: 9 -Pol.Bez. Kirchdorf an der Krems | F187: Kirchdorf an der Krems | G187: 509 | H187: 520 | I187: 491 | J187: 465 | K187: 484 | L187: 485 | M187: 498 | N187: 508 | O187: 525 | P187: 555 | Q187: 563 | R187: 583 | S187: 598 | T187: 640 | U187: 636 | V187: 656 | W187: 638 | X187: 640 | Y187: 669 | Z187: 684 | AA187: 696 | AB187: 672 | AC187: 629 | AD187: 642 | AE187: 643
A188: ruhendeOberösterreichLinz-Land | B188: 188 | C188: ruhende | D188: Oberösterreich | E188: 10-Pol.Bez. Linz-Land | F188: Linz-Land | G188: 1532 | H188: 1602 | I188: 1670 | J188: 1707 | K188: 1665 | L188: 1676 | M188: 1726 | N188: 1805 | O188: 1896 | P188: 1938 | Q188: 1925 | R188: 1957 | S188: 2039 | T188: 2158 | U188: 2280 | V188: 2250 | W188: 2256 | X188: 2215 | Y188: 2240 | Z188: 2327 | AA188: 2288 | AB188: 2183 | AC188: 2123 | AD188: 2162 | AE188: 2164
A189: ruhendeOberösterreichPerg | B189: 189 | C189: ruhende | D189: Oberösterreich | E189: 11-Pol.Bez. Perg | F189: Perg | G189: 414 | H189: 433 | I189: 474 | J189: 490 | K189: 507 | L189: 494 | M189: 497 | N189: 520 | O189: 525 | P189: 528 | Q189: 564 | R189: 557 | S189: 597 | T189: 605 | U189: 638 | V189: 688 | W189: 677 | X189: 678 | Y189: 669 | Z189: 717 | AA189: 729 | AB189: 722 | AC189: 739 | AD189: 724 | AE189: 698
A190: ruhendeOberösterreichRied im Innkreis | B190: 190 | C190: ruhende | D190: Oberösterreich | E190: 12-Pol.Bez. Ried im Innkreis | F190: Ried im Innkreis | G190: 461 | H190: 503 | I190: 511 | J190: 541 | K190: 544 | L190: 536 | M190: 525 | N190: 521 | O190: 537 | P190: 563 | Q190: 527 | R190: 521 | S190: 536 | T190: 529 | U190: 543 | V190: 549 | W190: 531 | X190: 540 | Y190: 543 | Z190: 582 | AA190: 591 | AB190: 581 | AC190: 576 | AD190: 572 | AE190: 593
A191: ruhendeOberösterreichRohrbach | B191: 191 | C191: ruhende | D191: Oberösterreich | E191: 13-Pol.Bez. Rohrbach | F191: Rohrbach | G191: 306 | H191: 299 | I191: 305 | J191: 334 | K191: 333 | L191: 323 | M191: 332 | N191: 341 | O191: 355 | P191: 363 | Q191: 377 | R191: 395 | S191: 430 | T191: 434 | U191: 461 | V191: 468 | W191: 473 | X191: 479 | Y191: 511 | Z191: 526 | AA191: 533 | AB191: 517 | AC191: 491 | AD191: 498 | AE191: 500
A192: ruhendeOberösterreichSchärding | B192: 192 | C192: ruhende | D192: Oberösterreich | E192: 14-Pol.Bez. Schärding | F192: Schärding | G192: 321 | H192: 338 | I192: 345 | J192: 345 | K192: 338 | L192: 350 | M192: 345 | N192: 364 | O192: 357 | P192: 357 | Q192: 378 | R192: 402 | S192: 392 | T192: 404 | U192: 437 | V192: 443 | W192: 459 | X192: 456 | Y192: 433 | Z192: 459 | AA192: 468 | AB192: 452 | AC192: 437 | AD192: 430 | AE192: 458
A193: ruhendeOberösterreichSteyr-Land | B193: 193 | C193: ruhende | D193: Oberösterreich | E193: 15-Pol.Bez. Steyr-Land | F193: Steyr-Land | G193: 461 | H193: 479 | I193: 482 | J193: 475 | K193: 496 | L193: 519 | M193: 522 | N193: 549 | O193: 565 | P193: 602 | Q193: 621 | R193: 622 | S193: 654 | T193: 653 | U193: 651 | V193: 689 | W193: 725 | X193: 692 | Y193: 703 | Z193: 728 | AA193: 736 | AB193: 743 | AC193: 715 | AD193: 706 | AE193: 699
A194: ruhendeOberösterreichUrfahr-Umgebung | B194: 194 | C194: ruhende | D194: Oberösterreich | E194: 16-Pol.Bez. Urfahr-Umgebung | F194: Urfahr-Umgebung | G194: 684 | H194: 727 | I194: 747 | J194: 763 | K194: 782 | L194: 775 | M194: 770 | N194: 833 | O194: 882 | P194: 905 | Q194: 929 | R194: 964 | S194: 1020 | T194: 1044 | U194: 1082 | V194: 1096 | W194: 1137 | X194: 1182 | Y194: 1202 | Z194: 1265 | AA194: 1253 | AB194: 1224 | AC194: 1166 | AD194: 1157 | AE194: 1151
A195: ruhendeOberösterreichVöcklabruck | B195: 195 | C195: ruhende | D195: Oberösterreich | E195: 17-Pol.Bez. Vöcklabruck | F195: Vöcklabruck | G195: 1261 | H195: 1312 | I195: 1340 | J195: 1374 | K195: 1419 | L195: 1346 | M195: 1364 | N195: 1377 | O195: 1419 | P195: 1425 | Q195: 1468 | R195: 1589 | S195: 1599 | T195: 1626 | U195: 1608 | V195: 1651 | W195: 1738 | X195: 1702 | Y195: 1724 | Z195: 1822 | AA195: 1825 | AB195: 1750 | AC195: 1651 | AD195: 1667 | AE195: 1681
A196: =C196&D196&F196 -> ruhendeOberösterreichWels-Land | B196: 196 | C196: ruhende | D196: Oberösterreich | E196: 18-Pol.Bez. Wels-Land | F196: Wels-Land | G196: 634 | H196: 683 | I196: 693 | J196: 675 | K196: 678 | L196: 675 | M196: 722 | N196: 697 | O196: 748 | P196: 757 | Q196: 773 | R196: 788 | S196: 860 | T196: 874 | U196: 878 | V196: 875 | W196: 885 | X196: 881 | Y196: 887 | Z196: 925 | AA196: 931 | AB196: 868 | AC196: 901 | AD196: 905 | AE196: 893
B197: 197 | C197: ruhende | D197: Salzburg | E197: 0 -im Bundesland gültig | G197: 0 | H197: 0 | I197: 0 | J197: 1 | K197: 0 | L197: 0 | M197: 0 | N197: 0 | O197: 0 | P197: 0 | Q197: 0 | R197: 0 | S197: 0 | T197: 0 | U197: 0 | V197: 0 | W197: 1 | X197: 3 | Y197: 6 | Z197: 7 | AA197: 8 | AB197: 8 | AC197: 7 | AD197: 4 | AE197: 5
A198: ruhendeSalzburgSalzburg | B198: 198 | C198: ruhende | D198: Salzburg | E198: 1 -Stadt Salzburg | F198: Salzburg | G198: 2820 | H198: 2966 | I198: 2922 | J198: 2868 | K198: 2949 | L198: 2953 | M198: 2846 | N198: 2855 | O198: 2894 | P198: 2911 | Q198: 2990 | R198: 2906 | S198: 2982 | T198: 3006 | U198: 2970 | V198: 2883 | W198: 2850 | X198: 2856 | Y198: 2843 | Z198: 2967 | AA198: 2786 | AB198: 2685 | AC198: 2677 | AD198: 2699 | AE198: 2679
A199: ruhendeSalzburgHallein | B199: 199 | C199: ruhende | D199: Salzburg | E199: 2 -Pol.Bez. Hallein | F199: Hallein | G199: 748 | H199: 744 | I199: 727 | J199: 736 | K199: 758 | L199: 737 | M199: 716 | N199: 717 | O199: 731 | P199: 768 | Q199: 824 | R199: 880 | S199: 866 | T199: 868 | U199: 881 | V199: 825 | W199: 796 | X199: 802 | Y199: 788 | Z199: 834 | AA199: 805 | AB199: 778 | AC199: 766 | AD199: 737 | AE199: 733
A200: ruhendeSalzburgSalzburg-Umgebung | B200: 200 | C200: ruhende | D200: Salzburg | E200: 3 -Pol.Bez. Salzburg-Umgebung | F200: Salzburg-Umgebung | G200: 2011 | H200: 2144 | I200: 2223 | J200: 2209 | K200: 2217 | L200: 2194 | M200: 2159 | N200: 2150 | O200: 2184 | P200: 2190 | Q200: 2238 | R200: 2268 | S200: 2352 | T200: 2436 | U200: 2498 | V200: 2493 | W200: 2536 | X200: 2460 | Y200: 2394 | Z200: 2422 | AA200: 2286 | AB200: 2265 | AC200: 2195 | AD200: 2160 | AE200: 2155
... 201 more rows

Sheet Landkarte (hidden)
B1: Burgenland | C1: 1 | D1: =Auswahl_Bundesland -> Burgenland | E1: =IF(AND(Auswahl_Jahr<2012,Auswahl_Bundesland="Steiermark"),10,IF(AND(Auswahl_Jahr=2012,Auswahl_Bundesland="Steiermark"),11,IF(AND(Auswahl_Jahr>=2017,Auswahl_Bundesland="Niederösterreich"),12,VLOOKUP(D1,B:C,2,FALSE)))) -> 1
B2: Kärnten | C2: 2
B3: Niederösterreich | C3: 3
B4: Oberösterreich | C4: 4
B5: Salzburg | C5: 5
B6: Steiermark | C6: 6
B7: Tirol | C7: 7
B8: Vorarlberg | C8: 8
B9: Wien | C9: 9
B10: Steiermark_2011 | C10: 10
B11: Steiermark_2012 | C11: 11
B12: Niederösterreich_2017 | C12: 12

Sheet X_Y (hidden)
A1: Bezirk | B1: X | C1: Y
A2: Eisenstadt-Umgebung | B2: 3.8 | C2: 21500
A3: Neusiedl am See | B3: 4.5 | C3: 23000
A4: Mattersburg | B4: 3.3 | C4: 19300
A5: Oberpullendorf | B5: 3.55 | C5: 15000
A6: Oberwart | B6: 3 | C6: 10500
A7: Güssing | B7: 3.1 | C7: 5900
A8: Jennersdorf | B8: 2.82 | C8: 2500
A9: Feldkirchen | B9: 4.4 | C9: 14500
A10: Hermagor | B10: 1.3 | C10: 10600
A11: Klagenfurt-Land | B11: 5.2 | C11: 6500
A12: Klagenfurt am Wörthersee | B12: 5.3 | C12: 11000
A13: Sankt Veit an der Glan | B13: 5.5 | C13: 17500
A14: Spittal an der Drau | B14: 1.8 | C14: 17500
A15: Villach-Land | B15: 3.2 | C15: 12000
A16: Villach | B16: 3.75 | C16: 9500
A17: Völkermarkt | B17: 6.5 | C17: 8500
A18: Wolfsberg | B18: 7.1 | C18: 16500
A19: Amstetten | B19: 1.9 | C19: 11500
A20: Baden | B20: 4.6 | C20: 10000
A21: Bruck an der Leitha | B21: 5.7 | C21: 12000
A22: Gänserndorf | B22: 5.7 | C22: 15500
A23: Gmünd | B23: 2.1 | C23: 22000
A24: Hollabrunn | B24: 4.4 | C24: 21000
A25: Horn | B25: 3.6 | C25: 23000
A26: Korneuburg | B26: 4.8 | C26: 18500
A27: Krems-Land | B27: 3.4 | C27: 18500
A28: Lilienfeld | B28: 3.5 | C28: 9000
A29: Melk | B29: 2.8 | C29: 14000
A30: Mistelbach | B30: 5.2 | C30: 22000
A31: Mödling | B31: 4.8 | C31: 12000
A32: Neunkirchen | B32: 4.25 | C32: 5000
A33: Sankt Pölten-Land | B33: 3.75 | C33: 14000
A34: Scheibbs | B34: 2.7 | C34: 9000
A35: Tulln | B35: 4.2 | C35: 16500
A36: Waidhofen an der Thaya | B36: 3.05 | C36: 25000
A37: Wiener Neustadt-Land | B37: 4.4 | C37: 8000
A38: Wien-Umgebung | B38: 4.5 | C38: 14000
A39: Zwettl | B39: 2.61 | C39: 19500
A40: Linz | B40: 4.6 | C40: 17500
A41: Steyr | B41: 4.85 | C41: 12900
A42: Wels | B42: 3.95 | C42: 15000
A43: Braunau am Inn | B43: 1.85 | C43: 14000
A44: Eferding | B44: 3.87 | C44: 18000
A45: Freistadt | B45: 5.3 | C45: 21000
A46: Gmunden | B46: 3.5 | C46: 7500
A47: Grieskirchen | B47: 3.4 | C47: 16500
A48: Kirchdorf an der Krems | B48: 4.5 | C48: 7000
A49: Linz-Land | B49: 4.6 | C49: 15000
A50: Perg | B50: 5.5 | C50: 16800
A51: Ried im Innkreis | B51: 2.7 | C51: 16000
A52: Rohrbach | B52: 3.8 | C52: 23000
A53: Schärding | B53: 2.95 | C53: 20000
A54: Steyr-Land | B54: 5.15 | C54: 9000
A55: Urfahr-Umgebung | B55: 4.55 | C55: 20500
A56: Vöcklabruck | B56: 2.95 | C56: 11000
A57: Wels-Land | B57: 3.82 | C57: 13000
A58: Salzburg | B58: 4.1 | C58: 20500
A59: Hallein | B59: 4.65 | C59: 17000
A60: Salzburg-Umgebung | B60: 4.3 | C60: 24000
A61: Sankt Johann im Pongau | B61: 4.65 | C61: 11000
A62: Tamsweg | B62: 5.6 | C62: 7000
A63: Zell am See | B63: 3.2 | C63: 10000
A64: Graz | B64: 5.65 | C64: 10800
A65: Bruck an der Mur | B65: 5 | C65: 22000
A66: Deutschlandsberg | B66: 5 | C66: 5000
A67: Feldbach | B67: 7 | C67: 8000
A68: Fürstenfeld | B68: 7.4 | C68: 11500
A69: Graz-Umgebung | B69: 5.25 | C69: 14000
A70: Hartberg | B70: 7.2 | C70: 16000
A71: Judenburg | B71: 2.85 | C71: 14000
A72: Leibnitz | B72: 6 | C72: 4500
A73: Leoben | B73: 4 | C73: 19000
A74: Liezen | B74: 1.8 | C74: 20000
A75: Mürzzuschlag | B75: 6 | C75: 22000
A76: Murau | B76: 1.7 | C76: 13000
A77: Radkersburg | B77: 7 | C77: 4000
A78: Gröbming | B78: 0.75 | C78: 19500
A79: Voitsberg | B79: 4.5 | C79: 10800
A80: Weiz | B80: 6.3 | C80: 15000
A81: Bad Aussee | B81: 0.5 | C81: 22000
A82: Knittelfeld | B82: 3.7 | C82: 15000
A83: Mariazell | B83: 5.25 | C83: 26200
A84: Murtal | B84: 3.2 | C84: 14000
A85: Bruck-Mürzzuschlag | B85: 5.3 | C85: 22000
A86: Hartberg-Fürstenfeld | B86: 7.2 | C86: 15000
A87: Südoststeiermark | B87: 7 | C87: 6000
A88: Innsbruck | B88: 3.67 | C88: 16400
A89: Imst | B89: 2.4 | C89: 14000
A90: Innsbruck Land | B90: 3.6 | C90: 12000
A91: Kitzbühel | B91: 6.3 | C91: 20000
A92: Kufstein | B92: 5.4 | C92: 22000
A93: Landeck | B93: 1.3 | C93: 12000
A94: Lienz | B94: 6.6 | C94: 7000
A95: Reutte | B95: 1.8 | C95: 20000
A96: Schwaz | B96: 5 | C96: 14000
A97: Bludenz | B97: 4.2 | C97: 11000
A98: Bregenz | B98: 4.5 | C98: 19000
A99: Dornbirn | B99: 3.65 | C99: 20000
A100: Feldkirch | B100: 3.3 | C100: 16000
A101: Innere Stadt | B101: 3.48 | C101: 12500
A102: Leopoldstadt | B102: 4.35 | C102: 12900
A103: Landstraße | B103: 4 | C103: 10500
A104: Wieden | B104: 3.53 | C104: 10300
A105: Margareten | B105: 3.23 | C105: 9300
A106: Mariahilf | B106: 3.1 | C106: 10300
A107: Neubau | B107: 3.05 | C107: 11300
A108: Josefstadt | B108: 3.05 | C108: 12800
A109: Alsergrund | B109: 3.25 | C109: 14500
A110: Favoriten | B110: 4 | C110: 5000
A111: Simmering | B111: 5 | C111: 6500
A112: Meidling | B112: 2.6 | C112: 6800
A113: Hietzing | B113: 1.2 | C113: 8000
A114: Penzing | B114: 0.65 | C114: 14500
A115: Rudolfsheim-Fünfhaus | B115: 2.7 | C115: 10600
A116: Ottakring | B116: 2.2 | C116: 13000
A117: Hernals | B117: 1.8 | C117: 15500
A118: Währing | B118: 2.4 | C118: 16000
A119: Döbling | B119: 2.7 | C119: 19000
A120: Brigittenau | B120: 3.62 | C120: 16800
A121: Floridsdorf | B121: 4.2 | C121: 22000
A122: Donaustadt | B122: 5.8 | C122: 15000
A123: Liesing | B123: 2.2 | C123: 3500
